Workbook

Sheet HVAC Inputs
C2: This tab contains data for: | D2: =RIGHT(CELL("filename",A1),LEN(CELL("filename",A1))-FIND("]",CELL("filename",A1))) -> HVAC Inputs
A4: Each entry in the below table represents the inputs and assumptions for one particular energy efficiency measure included in the BTO Prioritization Tool analysis.
A6: Abbreviations:
A7: C: Commercial; R: Residential; O: Outdoor; I: Industrial; (N) New homes/buildings only; (E) Existing homes/buildings only; CZ: Climate Zone; HP: Heat Pump
A9: Indexing # | C9: These columns describe the measure and its characteristics | I9: These columns describe the market to which the measure is applied | L9: These columns describe the efficiency level of the measure | Q9: These columns contain the cost data for the measure and what it replaces in the market | W9: These columns list sources and notes applicable to the measure
A10: Measure No. | C10: Description | D10: Brief description | E10: Component | F10: Deployment Level (0-5) | G10: Lifetime (years) | I10: Sector Targeted | J10: Market Description | L10: Units of Operation | M10: Efficient Operation | N10: Baseline Operation | O10: Energy Savings (%) | Q10: Market Cost (as defined in the source) | R10: Market Cost (per standard unit) | S10: Market Cost (per efficient unit, at scale) | T10: Incremental Measure Cost | U10: Stock Unit Definition | W10: Source(s) Used | X10: Relevant Notes
A11: 142 | C11: =INDEX('[2]Technical measure database'!$A$5:$CQ$1028, MATCH($A11, '[2]Technical measure database'!$A$5:$A$1028, 0), 2) -> Demonstrate and deploy displacement ventilation in new commercial buildings | D11: =INDEX('[2]Technical measure database'!$A$5:$CQ$1028, MATCH($A11, '[2]Technical measure database'!$A$5:$A$1028, 0), 3) -> C: Disp. Ventilation | E11: =INDEX('[2]Technical measure database'!$A$5:$CQ$1028, MATCH($A11, '[2]Technical measure database'!$A$5:$A$1028, 0), 4) -> System | F11: =INDEX('[2]Technical measure database'!$A$5:$CQ$1028, MATCH($A11, '[2]Technical measure database'!$A$5:$A$1028, 0), 6)&": "&CHOOSE(INDEX('[2]Technical measure database'!$A$5:$CQ$1028, MATCH($A11, '[2]Technical measure database'!$A$5:$A$1028, 0), 6)+1, "Roadmap Goal/Target", "Early R&D (not basic science, but still lab bench)", "Late R&D (cost reduction, performance improvement, may be available to early adopters)", "Early Deployment (savings not yet proven in whole building context)", "Late Deployment (savings proven, but need to transform the market)", "Standards (rule in place, underway, planned, or ready to be planned)") -> 2: Late R&D (cost reduction, performance improvement, may be available to early adopters) | G11: =INDEX('[2]Technical measure database'!$A$5:$CQ$1028, MATCH($A11, '[2]Technical measure database'!$A$5:$A$1028, 0), 67) -> 60 | I11: =INDEX('[2]Technical measure database'!$A$5:$CQ$1028,MATCH($A11,'[2]Technical measure database'!$A$5:$A$1028,0),7) -> Commercial | J11: =INDEX('[2]Technical measure database'!$A$5:$CQ$1028, MATCH($A11, '[2]Technical measure database'!$A$5:$A$1028, 0), 71) -> Total HVAC load in new commercial buildings | L11: =INDEX('[2]Technical measure database'!$A$5:$CQ$1028, MATCH($A11, '[2]Technical measure database'!$A$5:$A$1028, 0), 11) -> Energy savings (%) | M11: =INDEX('[2]Technical measure database'!$A$5:$CQ$1028, MATCH($A11, '[2]Technical measure database'!$A$5:$A$1028, 0), 12) -> 0.1 | N11: =INDEX('[2]Technical measure database'!$A$5:$CQ$1028, MATCH($A11, '[2]Technical measure database'!$A$5:$A$1028, 0), 13) -> 0 | O11: =M11-N11 -> 0.1 | Q11: =INDEX('[2]Technical measure database'!$A$5:$CQ$1028, MATCH($A11, '[2]Technical measure database'!$A$5:$A$1028, 0), 15) -> See pumps/fans | R11: =INDEX('[2]Technical measure database'!$A$5:$CQ$1028, MATCH($A11, '[2]Technical measure database'!$A$5:$A$1028, 0), 16) -> 25 | S11: =INDEX('[2]Technical measure database'!$A$5:$CQ$1028, MATCH($A11, '[2]Technical measure database'!$A$5:$A$1028, 0), 17) -> 20 | T11: =INDEX('[2]Technical measure database'!$A$5:$CQ$1028, MATCH($A11, '[2]Technical measure database'!$A$5:$A$1028, 0), 18) -> -5 | U11: =INDEX('[2]Technical measure database'!$A$5:$CQ$1028, MATCH($A11, '[2]Technical measure database'!$A$5:$A$1028, 0), 19) -> per square foot | W11: =INDEX('[2]Technical measure database'!$A$5:$CQ$1028, MATCH($A11, '[2]Technical measure database'!$A$5:$A$1028, 0), 24) -> Awbi, Energy Efficient Room Air Distribution ; Renewable Energy (15), 1998; Argon Air Primary Source: Goetzler, W., Zogg, R., Burgos, J., Hiraiwa, H. & Young, J. Energy Savings Potential and RD & D Opportunities for Commercial Building HVAC Systems. (2011) Awbi, Energy Efficient Room Air Distribution ; Renewable Energy (15) | X11: =INDEX('[2]Technical measure database'!$A$5:$CQ$1028, MATCH($A11, '[2]Technical measure database'!$A$5:$A$1028, 0), 25) -> BTP Tool: Applies to new commercial buildings only; all HVAC Appendix B: Technical Energy-Savings Potential: 0.17 Quads ~10% system energy savings. Costs from Argon Air estimate to install in new building
A12: 90 | C12: =INDEX('[2]Technical measure database'!$A$5:$CQ$1028, MATCH($A12, '[2]Technical measure database'!$A$5:$A$1028, 0), 2) -> Move to include proper A/C sizing in commercial codes | D12: =INDEX('[2]Technical measure database'!$A$5:$CQ$1028, MATCH($A12, '[2]Technical measure database'!$A$5:$A$1028, 0), 3) -> C: Right sized AC | E12: =INDEX('[2]Technical measure database'!$A$5:$CQ$1028, MATCH($A12, '[2]Technical measure database'!$A$5:$A$1028, 0), 4) -> Use intensity | F12: =INDEX('[2]Technical measure database'!$A$5:$CQ$1028, MATCH($A12, '[2]Technical measure database'!$A$5:$A$1028, 0), 6)&": "&CHOOSE(INDEX('[2]Technical measure database'!$A$5:$CQ$1028, MATCH($A12, '[2]Technical measure database'!$A$5:$A$1028, 0), 6)+1, "Roadmap Goal/Target", "Early R&D (not basic science, but still lab bench)", "Late R&D (cost reduction, performance improvement, may be available to early adopters)", "Early Deployment (savings not yet proven in whole building context)", "Late Deployment (savings proven, but need to transform the market)", "Standards (rule in place, underway, planned, or ready to be planned)") -> 4: Late Deployment (savings proven, but need to transform the market) | G12: =INDEX('[2]Technical measure database'!$A$5:$CQ$1028, MATCH($A12, '[2]Technical measure database'!$A$5:$A$1028, 0), 67) -> 20 | I12: =INDEX('[2]Technical measure database'!$A$5:$CQ$1028,MATCH($A12,'[2]Technical measure database'!$A$5:$A$1028,0),7) -> Commercial | J12: =INDEX('[2]Technical measure database'!$A$5:$CQ$1028, MATCH($A12, '[2]Technical measure database'!$A$5:$A$1028, 0), 71) -> All commercial cooling | L12: =INDEX('[2]Technical measure database'!$A$5:$CQ$1028, MATCH($A12, '[2]Technical measure database'!$A$5:$A$1028, 0), 11) -> Energy savings (%) | M12: =INDEX('[2]Technical measure database'!$A$5:$CQ$1028, MATCH($A12, '[2]Technical measure database'!$A$5:$A$1028, 0), 12) -> 0.125 | N12: =INDEX('[2]Technical measure database'!$A$5:$CQ$1028, MATCH($A12, '[2]Technical measure database'!$A$5:$A$1028, 0), 13) -> 0 | O12: =M12-N12 -> 0.125 | Q12: =INDEX('[2]Technical measure database'!$A$5:$CQ$1028, MATCH($A12, '[2]Technical measure database'!$A$5:$A$1028, 0), 15) -> -$10/kBtu/hr | R12: N/A | S12: N/A | T12: =INDEX('[2]Technical measure database'!$A$5:$CQ$1028, MATCH($A12, '[2]Technical measure database'!$A$5:$A$1028, 0), 18) -> -0.4285714286 | U12: =INDEX('[2]Technical measure database'!$A$5:$CQ$1028, MATCH($A12, '[2]Technical measure database'!$A$5:$A$1028, 0), 19) -> per square foot; 1 ton per 280 sq.ft. | W12: =INDEX('[2]Technical measure database'!$A$5:$CQ$1028, MATCH($A12, '[2]Technical measure database'!$A$5:$A$1028, 0), 24) -> Drawn from residential Primary Source: Djunaedy, E., Van Den Wymelenberg, K., Acker, B., Thimmana, H. (n.d.). "Oversizing of HVAC System: Signatures and Penalties. Energy and Buildings" Energy and Buildings, In Press Florida Solar Energy Center, "Right-Size Heating and Cooling Equipment", Department of Energy (2002) NREL Measure Database (for cost per unit capacity) Other Supporting Sources: Florida Solar Energy Center, "Right-Size Heating and Cooling Equipment", Department of Energy (2002) | X12: =INDEX('[2]Technical measure database'!$A$5:$CQ$1028, MATCH($A12, '[2]Technical measure database'!$A$5:$A$1028, 0), 25) -> Appendix B: Pg. 6: "estimated an energy savings of 0.2% for every 1% reduction in oversizing" Pg 1: "One Florida study showed a typical 9 percent increase in annual space cooling electricity usage for units that were oversized by 50 percent or more;nearly 40 percent of contractors indicated that they purposefully over-sized equipment", Assume 50% oversizing on average for cooling, 25% for heating
A13: 140 | C13: =INDEX('[2]Technical measure database'!$A$5:$CQ$1028, MATCH($A13, '[2]Technical measure database'!$A$5:$A$1028, 0), 2) -> Demonstrate and deploy chilled beams for heating and cooling in new commercial buildings | D13: =INDEX('[2]Technical measure database'!$A$5:$CQ$1028, MATCH($A13, '[2]Technical measure database'!$A$5:$A$1028, 0), 3) -> C: Chilled Beams | E13: =INDEX('[2]Technical measure database'!$A$5:$CQ$1028, MATCH($A13, '[2]Technical measure database'!$A$5:$A$1028, 0), 4) -> System | F13: =INDEX('[2]Technical measure database'!$A$5:$CQ$1028, MATCH($A13, '[2]Technical measure database'!$A$5:$A$1028, 0), 6)&": "&CHOOSE(INDEX('[2]Technical measure database'!$A$5:$CQ$1028, MATCH($A13, '[2]Technical measure database'!$A$5:$A$1028, 0), 6)+1, "Roadmap Goal/Target", "Early R&D (not basic science, but still lab bench)", "Late R&D (cost reduction, performance improvement, may be available to early adopters)", "Early Deployment (savings not yet proven in whole building context)", "Late Deployment (savings proven, but need to transform the market)", "Standards (rule in place, underway, planned, or ready to be planned)") -> 4: Late Deployment (savings proven, but need to transform the market) | G13: =INDEX('[2]Technical measure database'!$A$5:$CQ$1028, MATCH($A13, '[2]Technical measure database'!$A$5:$A$1028, 0), 67) -> 60 | I13: =INDEX('[2]Technical measure database'!$A$5:$CQ$1028,MATCH($A13,'[2]Technical measure database'!$A$5:$A$1028,0),7) -> Commercial | J13: =INDEX('[2]Technical measure database'!$A$5:$CQ$1028, MATCH($A13, '[2]Technical measure database'!$A$5:$A$1028, 0), 71) -> Total commercial heating and cooling in new buildings, except two coldest climates | L13: =INDEX('[2]Technical measure database'!$A$5:$CQ$1028, MATCH($A13, '[2]Technical measure database'!$A$5:$A$1028, 0), 11) -> Energy savings (%) | M13: =INDEX('[2]Technical measure database'!$A$5:$CQ$1028, MATCH($A13, '[2]Technical measure database'!$A$5:$A$1028, 0), 12) -> 0.2 | N13: =INDEX('[2]Technical measure database'!$A$5:$CQ$1028, MATCH($A13, '[2]Technical measure database'!$A$5:$A$1028, 0), 13) -> 0 | O13: 0.2 | Q13: =INDEX('[2]Technical measure database'!$A$5:$CQ$1028, MATCH($A13, '[2]Technical measure database'!$A$5:$A$1028, 0), 15) -> $8/sq.ft. | R13: N/A | S13: N/A | T13: =INDEX('[2]Technical measure database'!$A$5:$CQ$1028, MATCH($A13, '[2]Technical measure database'!$A$5:$A$1028, 0), 18) -> -1 | U13: =INDEX('[2]Technical measure database'!$A$5:$CQ$1028, MATCH($A13, '[2]Technical measure database'!$A$5:$A$1028, 0), 19) -> per square foot; 150 BTU/h/sq.ft | W13: =INDEX('[2]Technical measure database'!$A$5:$CQ$1028, MATCH($A13, '[2]Technical measure database'!$A$5:$A$1028, 0), 24) -> Roth, K., John, D., Zogg, R. & Brodrcik, J. Chilled Beam Cooling. ASHRAE Journal 84-86 (2007) Sachs, H..; Lin, W.; Lowenberger, A.; "Emerging Energy Savings HVAC Technologies and Practices for the Buildings Sector"; ACEEE (2009) | X13: =INDEX('[2]Technical measure database'!$A$5:$CQ$1028, MATCH($A13, '[2]Technical measure database'!$A$5:$A$1028, 0), 25) -> BTP Tool: Savings in building Vent, height can offset cost, assumed typical cost for 150 BTU/h @~$33/kBTU/h Appendix B: "a chiller dedicated for chilled beam cooling has a lower temperature lift and operates at a 15% to 20% higher efficiency than for an conventional system" Multiple sources provide 20% savings estimate; currently avilable technology provides price estimate at -$1/sq ft +/- $3/sqft
A14: 125 | C14: =INDEX('[2]Technical measure database'!$A$5:$CQ$1028, MATCH($A14, '[2]Technical measure database'!$A$5:$A$1028, 0), 2) -> Reduce over sizing in home heaters | D14: =INDEX('[2]Technical measure database'!$A$5:$CQ$1028, MATCH($A14, '[2]Technical measure database'!$A$5:$A$1028, 0), 3) -> R: Right Sized Heater | E14: =INDEX('[2]Technical measure database'!$A$5:$CQ$1028, MATCH($A14, '[2]Technical measure database'!$A$5:$A$1028, 0), 4) -> Use intensity | F14: =INDEX('[2]Technical measure database'!$A$5:$CQ$1028, MATCH($A14, '[2]Technical measure database'!$A$5:$A$1028, 0), 6)&": "&CHOOSE(INDEX('[2]Technical measure database'!$A$5:$CQ$1028, MATCH($A14, '[2]Technical measure database'!$A$5:$A$1028, 0), 6)+1, "Roadmap Goal/Target", "Early R&D (not basic science, but still lab bench)", "Late R&D (cost reduction, performance improvement, may be available to early adopters)", "Early Deployment (savings not yet proven in whole building context)", "Late Deployment (savings proven, but need to transform the market)", "Standards (rule in place, underway, planned, or ready to be planned)") -> 3: Early Deployment (savings not yet proven in whole building context) | G14: =INDEX('[2]Technical measure database'!$A$5:$CQ$1028, MATCH($A14, '[2]Technical measure database'!$A$5:$A$1028, 0), 67) -> 20 | I14: =INDEX('[2]Technical measure database'!$A$5:$CQ$1028,MATCH($A14,'[2]Technical measure database'!$A$5:$A$1028,0),7) -> Residential | J14: =INDEX('[2]Technical measure database'!$A$5:$CQ$1028, MATCH($A14, '[2]Technical measure database'!$A$5:$A$1028, 0), 71) -> Total residential heating energy consumption | L14: =INDEX('[2]Technical measure database'!$A$5:$CQ$1028, MATCH($A14, '[2]Technical measure database'!$A$5:$A$1028, 0), 11) -> Energy savings (%) | M14: =INDEX('[2]Technical measure database'!$A$5:$CQ$1028, MATCH($A14, '[2]Technical measure database'!$A$5:$A$1028, 0), 12) -> 0.05 | N14: =INDEX('[2]Technical measure database'!$A$5:$CQ$1028, MATCH($A14, '[2]Technical measure database'!$A$5:$A$1028, 0), 13) -> 0 | O14: 0.05 | Q14: =INDEX('[2]Technical measure database'!$A$5:$CQ$1028, MATCH($A14, '[2]Technical measure database'!$A$5:$A$1028, 0), 15) -> -100 | R14: N/A | S14: N/A | T14: =INDEX('[2]Technical measure database'!$A$5:$CQ$1028, MATCH($A14, '[2]Technical measure database'!$A$5:$A$1028, 0), 18) -> -100 | U14: =INDEX('[2]Technical measure database'!$A$5:$CQ$1028, MATCH($A14, '[2]Technical measure database'!$A$5:$A$1028, 0), 19) -> per home | W14: =INDEX('[2]Technical measure database'!$A$5:$CQ$1028, MATCH($A14, '[2]Technical measure database'!$A$5:$A$1028, 0), 24) -> SWAG Primary Source: Djunaedy, E., Van Den Wymelenberg, K., Acker, B., Thimmana, H. (n.d.). "Oversizing of HVAC System: Signatures and Penalties. Energy and Buildings" Energy and Buildings, In Press Florida Solar Energy Center, "Right-Size Heating and Cooling Equipment", Department of Energy (2002) NREL Measure Database (for cost per unit capacity) Other Supporting Sources: Choi-Granade et. Al.; "Unlocking Energy Efficiency in the U.S. Economy"; McKinsey & Company (2009) | X14: =INDEX('[2]Technical measure database'!$A$5:$CQ$1028, MATCH($A14, '[2]Technical measure database'!$A$5:$A$1028, 0), 25) -> Appendix B: Pg. 6: "estimated an energy savings of 0.2% for every 1% reduction in oversizing" Pg 1: "One Florida study showed a typical 9 percent increase in annual space cooling electricity usage for units that were oversized by 50 percent or more;nearly 40 percent of contractors indicated that they purposefully over-sized equipment", Assume 50% oversizing on average for cooling, 25% for heating
A15: 89 | C15: =INDEX('[2]Technical measure database'!$A$5:$CQ$1028, MATCH($A15, '[2]Technical measure database'!$A$5:$A$1028, 0), 2) -> Move to include proper A/C sizing in residential codes | D15: =INDEX('[2]Technical measure database'!$A$5:$CQ$1028, MATCH($A15, '[2]Technical measure database'!$A$5:$A$1028, 0), 3) -> R: Right sized AC | E15: =INDEX('[2]Technical measure database'!$A$5:$CQ$1028, MATCH($A15, '[2]Technical measure database'!$A$5:$A$1028, 0), 4) -> Use intensity | F15: =INDEX('[2]Technical measure database'!$A$5:$CQ$1028, MATCH($A15, '[2]Technical measure database'!$A$5:$A$1028, 0), 6)&": "&CHOOSE(INDEX('[2]Technical measure database'!$A$5:$CQ$1028, MATCH($A15, '[2]Technical measure database'!$A$5:$A$1028, 0), 6)+1, "Roadmap Goal/Target", "Early R&D (not basic science, but still lab bench)", "Late R&D (cost reduction, performance improvement, may be available to early adopters)", "Early Deployment (savings not yet proven in whole building context)", "Late Deployment (savings proven, but need to transform the market)", "Standards (rule in place, underway, planned, or ready to be planned)") -> 5: Standards (rule in place, underway, planned, or ready to be planned) | G15: =INDEX('[2]Technical measure database'!$A$5:$CQ$1028, MATCH($A15, '[2]Technical measure database'!$A$5:$A$1028, 0), 67) -> 20 | I15: =INDEX('[2]Technical measure database'!$A$5:$CQ$1028,MATCH($A15,'[2]Technical measure database'!$A$5:$A$1028,0),7) -> Residential | J15: =INDEX('[2]Technical measure database'!$A$5:$CQ$1028, MATCH($A15, '[2]Technical measure database'!$A$5:$A$1028, 0), 71) -> All Cooling, other than room A/C | L15: =INDEX('[2]Technical measure database'!$A$5:$CQ$1028, MATCH($A15, '[2]Technical measure database'!$A$5:$A$1028, 0), 11) -> Energy savings (%) | M15: =INDEX('[2]Technical measure database'!$A$5:$CQ$1028, MATCH($A15, '[2]Technical measure database'!$A$5:$A$1028, 0), 12) -> 0.125 | N15: =INDEX('[2]Technical measure database'!$A$5:$CQ$1028, MATCH($A15, '[2]Technical measure database'!$A$5:$A$1028, 0), 13) -> 0 | O15: 0.125 | Q15: =INDEX('[2]Technical measure database'!$A$5:$CQ$1028, MATCH($A15, '[2]Technical measure database'!$A$5:$A$1028, 0), 15) -> -$10/kBtu/hr | R15: =INDEX('[2]Technical measure database'!$A$5:$CQ$1028, MATCH($A15, '[2]Technical measure database'!$A$5:$A$1028, 0), 16) -> 0 | S15: =INDEX('[2]Technical measure database'!$A$5:$CQ$1028, MATCH($A15, '[2]Technical measure database'!$A$5:$A$1028, 0), 17) -> -180 | T15: =INDEX('[2]Technical measure database'!$A$5:$CQ$1028, MATCH($A15, '[2]Technical measure database'!$A$5:$A$1028, 0), 18) -> -180 | U15: =INDEX('[2]Technical measure database'!$A$5:$CQ$1028, MATCH($A15, '[2]Technical measure database'!$A$5:$A$1028, 0), 19) -> per home, 3 tons of cooling | W15: =INDEX('[2]Technical measure database'!$A$5:$CQ$1028, MATCH($A15, '[2]Technical measure database'!$A$5:$A$1028, 0), 24) -> McKinsey report; benefit halved to reflect re world usage Primary Source: Djunaedy, E., Van Den Wymelenberg, K., Acker, B., Thimmana, H. (n.d.). "Oversizing of HVAC System: Signatures and Penalties. Energy and Buildings" Energy and Buildings, In Press Florida Solar Energy Center, "Right-Size Heating and Cooling Equipment", Department of Energy (2002) NREL Measure Database (for cost per unit capacity) Other Supporting Sources: Choi-Granade et. Al.; "Unlocking Energy Efficiency in the U.S. Economy"; McKinsey & Company (2009) | X15: =INDEX('[2]Technical measure database'!$A$5:$CQ$1028, MATCH($A15, '[2]Technical measure database'!$A$5:$A$1028, 0), 25) -> Appendix B: Pg. 6: "estimated an energy savings of 0.2% for every 1% reduction in oversizing" Pg 1: "One Florida study showed a typical 9 percent increase in annual space cooling electricity usage for units that were oversized by 50 percent or more;nearly 40 percent of contractors indicated that they purposefully over-sized equipment", Assume 50% oversizing on average for cooling, 25% for heating
A16: 126 | C16: =INDEX('[2]Technical measure database'!$A$5:$CQ$1028, MATCH($A16, '[2]Technical measure database'!$A$5:$A$1028, 0), 2) -> Reduce over sizing in commercial heaters | D16: =INDEX('[2]Technical measure database'!$A$5:$CQ$1028, MATCH($A16, '[2]Technical measure database'!$A$5:$A$1028, 0), 3) -> C: Right Sized Heater | E16: =INDEX('[2]Technical measure database'!$A$5:$CQ$1028, MATCH($A16, '[2]Technical measure database'!$A$5:$A$1028, 0), 4) -> Use intensity | F16: =INDEX('[2]Technical measure database'!$A$5:$CQ$1028, MATCH($A16, '[2]Technical measure database'!$A$5:$A$1028, 0), 6)&": "&CHOOSE(INDEX('[2]Technical measure database'!$A$5:$CQ$1028, MATCH($A16, '[2]Technical measure database'!$A$5:$A$1028, 0), 6)+1, "Roadmap Goal/Target", "Early R&D (not basic science, but still lab bench)", "Late R&D (cost reduction, performance improvement, may be available to early adopters)", "Early Deployment (savings not yet proven in whole building context)", "Late Deployment (savings proven, but need to transform the market)", "Standards (rule in place, underway, planned, or ready to be planned)") -> 4: Late Deployment (savings proven, but need to transform the market) | G16: =INDEX('[2]Technical measure database'!$A$5:$CQ$1028, MATCH($A16, '[2]Technical measure database'!$A$5:$A$1028, 0), 67) -> 30 | I16: =INDEX('[2]Technical measure database'!$A$5:$CQ$1028,MATCH($A16,'[2]Technical measure database'!$A$5:$A$1028,0),7) -> Commercial | J16: =INDEX('[2]Technical measure database'!$A$5:$CQ$1028, MATCH($A16, '[2]Technical measure database'!$A$5:$A$1028, 0), 71) -> All commercial heating | L16: =INDEX('[2]Technical measure database'!$A$5:$CQ$1028, MATCH($A16, '[2]Technical measure database'!$A$5:$A$1028, 0), 11) -> Energy savings (%) | M16: =INDEX('[2]Technical measure database'!$A$5:$CQ$1028, MATCH($A16, '[2]Technical measure database'!$A$5:$A$1028, 0), 12) -> 0.05 | N16: =INDEX('[2]Technical measure database'!$A$5:$CQ$1028, MATCH($A16, '[2]Technical measure database'!$A$5:$A$1028, 0), 13) -> 0 | O16: 0.05 | Q16: =INDEX('[2]Technical measure database'!$A$5:$CQ$1028, MATCH($A16, '[2]Technical measure database'!$A$5:$A$1028, 0), 15) -> -$10/kBtu/hr | R16: =INDEX('[2]Technical measure database'!$A$5:$CQ$1028, MATCH($A16, '[2]Technical measure database'!$A$5:$A$1028, 0), 16) -> 0 | S16: =INDEX('[2]Technical measure database'!$A$5:$CQ$1028, MATCH($A16, '[2]Technical measure database'!$A$5:$A$1028, 0), 17) -> -0.08 | T16: =INDEX('[2]Technical measure database'!$A$5:$CQ$1028, MATCH($A16, '[2]Technical measure database'!$A$5:$A$1028, 0), 18) -> -0.08 | U16: =INDEX('[2]Technical measure database'!$A$5:$CQ$1028, MATCH($A16, '[2]Technical measure database'!$A$5:$A$1028, 0), 19) -> per square foot | W16: =INDEX('[2]Technical measure database'!$A$5:$CQ$1028, MATCH($A16, '[2]Technical measure database'!$A$5:$A$1028, 0), 24) -> McKinsey report (based on residential) Primary Source: Djunaedy, E., Van Den Wymelenberg, K., Acker, B., Thimmana, H. (n.d.). "Oversizing of HVAC System: Signatures and Penalties. Energy and Buildings" Energy and Buildings, In Press Florida Solar Energy Center, "Right-Size Heating and Cooling Equipment", Department of Energy (2002) NREL Measure Database (for cost per unit capacity) Other Supporting Sources: Choi-Granade et. Al.; "Unlocking Energy Efficiency in the U.S. Economy"; McKinsey & Company (2009) | X16: =INDEX('[2]Technical measure database'!$A$5:$CQ$1028, MATCH($A16, '[2]Technical measure database'!$A$5:$A$1028, 0), 25) -> BTP Tool: Negative initial cost as smaller unit, assumes peak/average heating of 3:1, 1.9 Quads/year, 80 B sq.ft. Appendix B: Pg. 6: "estimated an energy savings of 0.2% for every 1% reduction in oversizing" Pg 1: "One Florida study showed a typical 9 percent increase in annual space cooling electricity usage for units that were oversized by 50 percent or more;nearly 40 percent of contractors indicated that they purposefully over-sized equipment", Assume 50% oversizing on average for cooling, 25% for heating
A17: 275 | C17: =INDEX('[2]Technical measure database'!$A$5:$CQ$1028, MATCH($A17, '[2]Technical measure database'!$A$5:$A$1028, 0), 2) -> Deploy restructured fume hoods with reduced air flow in commercial buildings | D17: =INDEX('[2]Technical measure database'!$A$5:$CQ$1028, MATCH($A17, '[2]Technical measure database'!$A$5:$A$1028, 0), 3) -> C: Fume Hood Standard | E17: =INDEX('[2]Technical measure database'!$A$5:$CQ$1028, MATCH($A17, '[2]Technical measure database'!$A$5:$A$1028, 0), 4) -> System | F17: =INDEX('[2]Technical measure database'!$A$5:$CQ$1028, MATCH($A17, '[2]Technical measure database'!$A$5:$A$1028, 0), 6)&": "&CHOOSE(INDEX('[2]Technical measure database'!$A$5:$CQ$1028, MATCH($A17, '[2]Technical measure database'!$A$5:$A$1028, 0), 6)+1, "Roadmap Goal/Target", "Early R&D (not basic science, but still lab bench)", "Late R&D (cost reduction, performance improvement, may be available to early adopters)", "Early Deployment (savings not yet proven in whole building context)", "Late Deployment (savings proven, but need to transform the market)", "Standards (rule in place, underway, planned, or ready to be planned)") -> 4: Late Deployment (savings proven, but need to transform the market) | G17: =INDEX('[2]Technical measure database'!$A$5:$CQ$1028, MATCH($A17, '[2]Technical measure database'!$A$5:$A$1028, 0), 67) -> 10 | I17: =INDEX('[2]Technical measure database'!$A$5:$CQ$1028,MATCH($A17,'[2]Technical measure database'!$A$5:$A$1028,0),7) -> Commercial | J17: =INDEX('[2]Technical measure database'!$A$5:$CQ$1028, MATCH($A17, '[2]Technical measure database'!$A$5:$A$1028, 0), 71) -> Total energy use by fume hoods | L17: =INDEX('[2]Technical measure database'!$A$5:$CQ$1028, MATCH($A17, '[2]Technical measure database'!$A$5:$A$1028, 0), 11) -> Energy savings (% over today's base) | M17: =INDEX('[2]Technical measure database'!$A$5:$CQ$1028, MATCH($A17, '[2]Technical measure database'!$A$5:$A$1028, 0), 12) -> 0.5 | N17: =INDEX('[2]Technical measure database'!$A$5:$CQ$1028, MATCH($A17, '[2]Technical measure database'!$A$5:$A$1028, 0), 13) -> 0 | O17: 0.5 | Q17: =INDEX('[2]Technical measure database'!$A$5:$CQ$1028, MATCH($A17, '[2]Technical measure database'!$A$5:$A$1028, 0), 15) -> See incremental cost | R17: N/A | S17: N/A | T17: =INDEX('[2]Technical measure database'!$A$5:$CQ$1028, MATCH($A17, '[2]Technical measure database'!$A$5:$A$1028, 0), 18) -> -500 | U17: =INDEX('[2]Technical measure database'!$A$5:$CQ$1028, MATCH($A17, '[2]Technical measure database'!$A$5:$A$1028, 0), 19) -> per unit | W17: =INDEX('[2]Technical measure database'!$A$5:$CQ$1028, MATCH($A17, '[2]Technical measure database'!$A$5:$A$1028, 0), 24) -> TIAX 2010; LBNL 2003 (pg 7-8) Primary Source: Mckenney, K., Guernsey, M., Ponoum, R. & Rosenfeld, J. Commercial Miscellaneous Electric Loads: Energy Consumption Characterization and Savings Potential in 2008 by Building Type. Energy 244 (2010). Other Supporting Sources: Cost data are from google searches of commercially available appliances | X17: =INDEX('[2]Technical measure database'!$A$5:$CQ$1028, MATCH($A17, '[2]Technical measure database'!$A$5:$A$1028, 0), 25) -> Appendix B: Page 5-45: Table 9
A18: 157 | C18: =INDEX('[2]Technical measure database'!$A$5:$CQ$1028, MATCH($A18, '[2]Technical measure database'!$A$5:$A$1028, 0), 2) -> Move to standardize improved duct routing in commercial codes | D18: =INDEX('[2]Technical measure database'!$A$5:$CQ$1028, MATCH($A18, '[2]Technical measure database'!$A$5:$A$1028, 0), 3) -> C: Duct Routing (N) | E18: =INDEX('[2]Technical measure database'!$A$5:$CQ$1028, MATCH($A18, '[2]Technical measure database'!$A$5:$A$1028, 0), 4) -> Distribution | F18: =INDEX('[2]Technical measure database'!$A$5:$CQ$1028, MATCH($A18, '[2]Technical measure database'!$A$5:$A$1028, 0), 6)&": "&CHOOSE(INDEX('[2]Technical measure database'!$A$5:$CQ$1028, MATCH($A18, '[2]Technical measure database'!$A$5:$A$1028, 0), 6)+1, "Roadmap Goal/Target", "Early R&D (not basic science, but still lab bench)", "Late R&D (cost reduction, performance improvement, may be available to early adopters)", "Early Deployment (savings not yet proven in whole building context)", "Late Deployment (savings proven, but need to transform the market)", "Standards (rule in place, underway, planned, or ready to be planned)") -> 4: Late Deployment (savings proven, but need to transform the market) | G18: =INDEX('[2]Technical measure database'!$A$5:$CQ$1028, MATCH($A18, '[2]Technical measure database'!$A$5:$A$1028, 0), 67) -> 60 | I18: =INDEX('[2]Technical measure database'!$A$5:$CQ$1028,MATCH($A18,'[2]Technical measure database'!$A$5:$A$1028,0),7) -> Commercial | J18: =INDEX('[2]Technical measure database'!$A$5:$CQ$1028, MATCH($A18, '[2]Technical measure database'!$A$5:$A$1028, 0), 71) -> All furnaces and A/C heating and cooling (i.e., ducts) in new commercial buildings | L18: =INDEX('[2]Technical measure database'!$A$5:$CQ$1028, MATCH($A18, '[2]Technical measure database'!$A$5:$A$1028, 0), 11) -> Duct efficiency | M18: =INDEX('[2]Technical measure database'!$A$5:$CQ$1028, MATCH($A18, '[2]Technical measure database'!$A$5:$A$1028, 0), 12) -> 0.8 | N18: =INDEX('[2]Technical measure database'!$A$5:$CQ$1028, MATCH($A18, '[2]Technical measure database'!$A$5:$A$1028, 0), 13) -> 0.67 | O18: =1-N18/M18 -> 0.1625 | Q18: =INDEX('[2]Technical measure database'!$A$5:$CQ$1028, MATCH($A18, '[2]Technical measure database'!$A$5:$A$1028, 0), 15) -> 0 | R18: N/A | S18: N/A | T18: =INDEX('[2]Technical measure database'!$A$5:$CQ$1028, MATCH($A18, '[2]Technical measure database'!$A$5:$A$1028, 0), 18) -> 0 | U18: =INDEX('[2]Technical measure database'!$A$5:$CQ$1028, MATCH($A18, '[2]Technical measure database'!$A$5:$A$1028, 0), 19) -> per square foot | W18: =INDEX('[2]Technical measure database'!$A$5:$CQ$1028, MATCH($A18, '[2]Technical measure database'!$A$5:$A$1028, 0), 24) -> BTP Technology Fact Sheet Primary Source: Southface Energy Institute, FEMP Technology Alert: Air Distribution System Design, 2003 | X18: =INDEX('[2]Technical measure database'!$A$5:$CQ$1028, MATCH($A18, '[2]Technical measure database'!$A$5:$A$1028, 0), 25) -> Appendix B: Southface: "The efficiency of air distribution systems has been found to be 60-75% or less; Properly designed and installed duct systems can have efficiencies of 80% or more for little or no additional cost." Savings estimate is 16%=1-0.675/0.8
A19: 162 | C19: =INDEX('[2]Technical measure database'!$A$5:$CQ$1028, MATCH($A19, '[2]Technical measure database'!$A$5:$A$1028, 0), 2) -> Move to standardize variable air volume (VAV) ventilation | D19: =INDEX('[2]Technical measure database'!$A$5:$CQ$1028, MATCH($A19, '[2]Technical measure database'!$A$5:$A$1028, 0), 3) -> C: Move from CAV to VAV | E19: =INDEX('[2]Technical measure database'!$A$5:$CQ$1028, MATCH($A19, '[2]Technical measure database'!$A$5:$A$1028, 0), 4) -> System | F19: =INDEX('[2]Technical measure database'!$A$5:$CQ$1028, MATCH($A19, '[2]Technical measure database'!$A$5:$A$1028, 0), 6)&": "&CHOOSE(INDEX('[2]Technical measure database'!$A$5:$CQ$1028, MATCH($A19, '[2]Technical measure database'!$A$5:$A$1028, 0), 6)+1, "Roadmap Goal/Target", "Early R&D (not basic science, but still lab bench)", "Late R&D (cost reduction, performance improvement, may be available to early adopters)", "Early Deployment (savings not yet proven in whole building context)", "Late Deployment (savings proven, but need to transform the market)", "Standards (rule in place, underway, planned, or ready to be planned)") -> 4: Late Deployment (savings proven, but need to transform the market) | G19: =INDEX('[2]Technical measure database'!$A$5:$CQ$1028, MATCH($A19, '[2]Technical measure database'!$A$5:$A$1028, 0), 67) -> 20 | I19: =INDEX('[2]Technical measure database'!$A$5:$CQ$1028,MATCH($A19,'[2]Technical measure database'!$A$5:$A$1028,0),7) -> Commercial | J19: =INDEX('[2]Technical measure database'!$A$5:$CQ$1028, MATCH($A19, '[2]Technical measure database'!$A$5:$A$1028, 0), 71) -> All constant air volume (CAV) ventilation in all commercial buildings | L19: =INDEX('[2]Technical measure database'!$A$5:$CQ$1028, MATCH($A19, '[2]Technical measure database'!$A$5:$A$1028, 0), 11) -> Energy savings (% over today's base) | M19: =INDEX('[2]Technical measure database'!$A$5:$CQ$1028, MATCH($A19, '[2]Technical measure database'!$A$5:$A$1028, 0), 12) -> 0.25 | N19: =INDEX('[2]Technical measure database'!$A$5:$CQ$1028, MATCH($A19, '[2]Technical measure database'!$A$5:$A$1028, 0), 13) -> 0 | O19: 0.25 | Q19: =INDEX('[2]Technical measure database'!$A$5:$CQ$1028, MATCH($A19, '[2]Technical measure database'!$A$5:$A$1028, 0), 15) -> 400 | R19: N/A | S19: N/A | T19: =INDEX('[2]Technical measure database'!$A$5:$CQ$1028, MATCH($A19, '[2]Technical measure database'!$A$5:$A$1028, 0), 18) -> 0.2666666667 | U19: =INDEX('[2]Technical measure database'!$A$5:$CQ$1028, MATCH($A19, '[2]Technical measure database'!$A$5:$A$1028, 0), 19) -> per unit | W19: =INDEX('[2]Technical measure database'!$A$5:$CQ$1028, MATCH($A19, '[2]Technical measure database'!$A$5:$A$1028, 0), 24) -> http://www.epa.gov/iaq/largebldgs/i-beam/text/hvac.html#F6.1, EIA Primary Source: Directly calcualted from NEMS detailed data tables | X19: =INDEX('[2]Technical measure database'!$A$5:$CQ$1028, MATCH($A19, '[2]Technical measure database'!$A$5:$A$1028, 0), 25) -> Appendix B: Directly calcualted from NEMS detailed data tables
A20: 637 | C20: =INDEX('[2]Technical measure database'!$A$5:$CQ$1028, MATCH($A20, '[2]Technical measure database'!$A$5:$A$1028, 0), 2) -> Residential dehumidifers (packaged) | D20: =INDEX('[2]Technical measure database'!$A$5:$CQ$1028, MATCH($A20, '[2]Technical measure database'!$A$5:$A$1028, 0), 3) -> R: Dehumidifier | E20: =INDEX('[2]Technical measure database'!$A$5:$CQ$1028, MATCH($A20, '[2]Technical measure database'!$A$5:$A$1028, 0), 4) -> System | F20: =INDEX('[2]Technical measure database'!$A$5:$CQ$1028, MATCH($A20, '[2]Technical measure database'!$A$5:$A$1028, 0), 6)&": "&CHOOSE(INDEX('[2]Technical measure database'!$A$5:$CQ$1028, MATCH($A20, '[2]Technical measure database'!$A$5:$A$1028, 0), 6)+1, "Roadmap Goal/Target", "Early R&D (not basic science, but still lab bench)", "Late R&D (cost reduction, performance improvement, may be available to early adopters)", "Early Deployment (savings not yet proven in whole building context)", "Late Deployment (savings proven, but need to transform the market)", "Standards (rule in place, underway, planned, or ready to be planned)") -> 3: Early Deployment (savings not yet proven in whole building context) | G20: =INDEX('[2]Technical measure database'!$A$5:$CQ$1028, MATCH($A20, '[2]Technical measure database'!$A$5:$A$1028, 0), 67) -> 12 | I20: =INDEX('[2]Technical measure database'!$A$5:$CQ$1028,MATCH($A20,'[2]Technical measure database'!$A$5:$A$1028,0),7) -> Residential | J20: =INDEX('[2]Technical measure database'!$A$5:$CQ$1028, MATCH($A20, '[2]Technical measure database'!$A$5:$A$1028, 0), 71) -> Total electricity consumption by residential dehumidifiers | L20: =INDEX('[2]Technical measure database'!$A$5:$CQ$1028, MATCH($A20, '[2]Technical measure database'!$A$5:$A$1028, 0), 11) -> Energy Savings (% over today's base) | M20: =INDEX('[2]Technical measure database'!$A$5:$CQ$1028, MATCH($A20, '[2]Technical measure database'!$A$5:$A$1028, 0), 12) -> 0.15 | N20: =INDEX('[2]Technical measure database'!$A$5:$CQ$1028, MATCH($A20, '[2]Technical measure database'!$A$5:$A$1028, 0), 13) -> 0 | O20: 0.15 | Q20: =INDEX('[2]Technical measure database'!$A$5:$CQ$1028, MATCH($A20, '[2]Technical measure database'!$A$5:$A$1028, 0), 15) -> Can't find any non-energy star models any more! | R20: =INDEX('[2]Technical measure database'!$A$5:$CQ$1028, MATCH($A20, '[2]Technical measure database'!$A$5:$A$1028, 0), 16) -> 229.95 | S20: =INDEX('[2]Technical measure database'!$A$5:$CQ$1028, MATCH($A20, '[2]Technical measure database'!$A$5:$A$1028, 0), 17) -> 229.95 | T20: =INDEX('[2]Technical measure database'!$A$5:$CQ$1028, MATCH($A20, '[2]Technical measure database'!$A$5:$A$1028, 0), 18) -> 0 | U20: =INDEX('[2]Technical measure database'!$A$5:$CQ$1028, MATCH($A20, '[2]Technical measure database'!$A$5:$A$1028, 0), 19) -> per unit; 70 pint/day capacity | W20: =INDEX('[2]Technical measure database'!$A$5:$CQ$1028, MATCH($A20, '[2]Technical measure database'!$A$5:$A$1028, 0), 24) -> ENERGY STAR. (n.d.). Dehumidifiers for Consumers. Retrieved from Products: http://www.energystar.gov/index.cfm?fuseaction=find_a_product.showProductGroup&pgw_code=DE | X20: =INDEX('[2]Technical measure database'!$A$5:$CQ$1028, MATCH($A20, '[2]Technical measure database'!$A$5:$A$1028, 0), 25) -> Appendix B: "Dehumidifiers that have earned the ENERGY STAR are 15% more efficient than non-qualified models." and cost is from the savings calculator
A21: 71 | C21: =INDEX('[2]Technical measure database'!$A$5:$CQ$1028, MATCH($A21, '[2]Technical measure database'!$A$5:$A$1028, 0), 2) -> Research, demonstrate, and deploy advanced liquid desiccant A/C (e.g., DeVAP, DuCool) in homes in humid climates | D21: =INDEX('[2]Technical measure database'!$A$5:$CQ$1028, MATCH($A21, '[2]Technical measure database'!$A$5:$A$1028, 0), 3) -> R: DEVAP, humid climates | E21: =INDEX('[2]Technical measure database'!$A$5:$CQ$1028, MATCH($A21, '[2]Technical measure database'!$A$5:$A$1028, 0), 4) -> System | F21: =INDEX('[2]Technical measure database'!$A$5:$CQ$1028, MATCH($A21, '[2]Technical measure database'!$A$5:$A$1028, 0), 6)&": "&CHOOSE(INDEX('[2]Technical measure database'!$A$5:$CQ$1028, MATCH($A21, '[2]Technical measure database'!$A$5:$A$1028, 0), 6)+1, "Roadmap Goal/Target", "Early R&D (not basic science, but still lab bench)", "Late R&D (cost reduction, performance improvement, may be available to early adopters)", "Early Deployment (savings not yet proven in whole building context)", "Late Deployment (savings proven, but need to transform the market)", "Standards (rule in place, underway, planned, or ready to be planned)") -> 1: Early R&D (not basic science, but still lab bench) | G21: =INDEX('[2]Technical measure database'!$A$5:$CQ$1028, MATCH($A21, '[2]Technical measure database'!$A$5:$A$1028, 0), 67) -> 20 | I21: =INDEX('[2]Technical measure database'!$A$5:$CQ$1028,MATCH($A21,'[2]Technical measure database'!$A$5:$A$1028,0),7) -> Residential | J21: =INDEX('[2]Technical measure database'!$A$5:$CQ$1028, MATCH($A21, '[2]Technical measure database'!$A$5:$A$1028, 0), 71) -> Total residential central cooling in humid climates | L21: =INDEX('[2]Technical measure database'!$A$5:$CQ$1028, MATCH($A21, '[2]Technical measure database'!$A$5:$A$1028, 0), 11) -> Energy savings (% over today's base) | M21: =INDEX('[2]Technical measure database'!$A$5:$CQ$1028, MATCH($A21, '[2]Technical measure database'!$A$5:$A$1028, 0), 12) -> -1.053 | N21: =INDEX('[2]Technical measure database'!$A$5:$CQ$1028, MATCH($A21, '[2]Technical measure database'!$A$5:$A$1028, 0), 13) -> 0 | O21: -1.053 | Q21: =INDEX('[2]Technical measure database'!$A$5:$CQ$1028, MATCH($A21, '[2]Technical measure database'!$A$5:$A$1028, 0), 15) -> Either NREL estimte of $6,950 or NREL materials of $2900+30% + 2080 installation + 30 ft of plumbing at $20/ft; UPDATE: Equipment cost of baseline DX system in non-hot/dry climate is $2600; DEVap equipment cost estimate is $8100 | R21: =INDEX('[2]Technical measure database'!$A$5:$CQ$1028, MATCH($A21, '[2]Technical measure database'!$A$5:$A$1028, 0), 16) -> 2600 | S21: =INDEX('[2]Technical measure database'!$A$5:$CQ$1028, MATCH($A21, '[2]Technical measure database'!$A$5:$A$1028, 0), 17) -> 8100 | T21: =INDEX('[2]Technical measure database'!$A$5:$CQ$1028, MATCH($A21, '[2]Technical measure database'!$A$5:$A$1028, 0), 18) -> 5500 | U21: =INDEX('[2]Technical measure database'!$A$5:$CQ$1028, MATCH($A21, '[2]Technical measure database'!$A$5:$A$1028, 0), 19) -> per home, 3 ton unit | W21: =INDEX('[2]Technical measure database'!$A$5:$CQ$1028, MATCH($A21, '[2]Technical measure database'!$A$5:$A$1028, 0), 24) -> Kozubal, E.; Woods, J.; Judkoff, R.; "Development and Analysis of Desiccant Enhanced Evaporative Air Conditioner Prototype"; NREL, 2012. http://www.nrel.gov/docs/fy12osti/54755.pdf Kozubal, E. et. al.; "Desiccant Enhanced Evaporative Air-Conditioning (DEVap): Evaluation of a New Concept in Ultra Efficient Air Conditioning"; NREL, 2011. http://www.nrel.gov/docs/fy11osti/49722.pdf; NCI Internal DeVAP Report Cost (listed value is not consistent with this source: "Rooftop units using DEVAP design are initially expected to cost ~30% more than competing models." Kozubal. NREL. July 2 2012. http://www.nrel.gov/docs/fy12osti/55740.pdf | X21: =INDEX('[2]Technical measure database'!$A$5:$CQ$1028, MATCH($A21, '[2]Technical measure database'!$A$5:$A$1028, 0), 25) -> BTP Tool: MTAB, NREL website, DuCool?AdvantixSystems website; Assume households need both CAC and NG to be suitable for DEVap Appendix B: "Modeling at NREL has shown that the yearly combined source energy for the thermal and electrical energy required to operate DEVap is expected to be 30%–90% less than state-of-the-art direct expansion cooling (depending on whether it is applied in a humid or a dry climate)", NREL research team performed climate and sector specific calculations
A22: 72 | C22: =INDEX('[2]Technical measure database'!$A$5:$CQ$1028, MATCH($A22, '[2]Technical measure database'!$A$5:$A$1028, 0), 2) -> Research, demonstrate, and deploy advanced liquid desiccant A/C (e.g., DeVAP, DuCool) in commercial buildings in humid climates | D22: =INDEX('[2]Technical measure database'!$A$5:$CQ$1028, MATCH($A22, '[2]Technical measure database'!$A$5:$A$1028, 0), 3) -> C: DEVAP, humid climates | E22: =INDEX('[2]Technical measure database'!$A$5:$CQ$1028, MATCH($A22, '[2]Technical measure database'!$A$5:$A$1028, 0), 4) -> System | F22: =INDEX('[2]Technical measure database'!$A$5:$CQ$1028, MATCH($A22, '[2]Technical measure database'!$A$5:$A$1028, 0), 6)&": "&CHOOSE(INDEX('[2]Technical measure database'!$A$5:$CQ$1028, MATCH($A22, '[2]Technical measure database'!$A$5:$A$1028, 0), 6)+1, "Roadmap Goal/Target", "Early R&D (not basic science, but still lab bench)", "Late R&D (cost reduction, performance improvement, may be available to early adopters)", "Early Deployment (savings not yet proven in whole building context)", "Late Deployment (savings proven, but need to transform the market)", "Standards (rule in place, underway, planned, or ready to be planned)") -> 1: Early R&D (not basic science, but still lab bench) | G22: =INDEX('[2]Technical measure database'!$A$5:$CQ$1028, MATCH($A22, '[2]Technical measure database'!$A$5:$A$1028, 0), 67) -> 20 | I22: =INDEX('[2]Technical measure database'!$A$5:$CQ$1028,MATCH($A22,'[2]Technical measure database'!$A$5:$A$1028,0),7) -> Commercial | J22: =INDEX('[2]Technical measure database'!$A$5:$CQ$1028, MATCH($A22, '[2]Technical measure database'!$A$5:$A$1028, 0), 71) -> Total cooling in humid climates by all commercial RTUs | L22: =INDEX('[2]Technical measure database'!$A$5:$CQ$1028, MATCH($A22, '[2]Technical measure database'!$A$5:$A$1028, 0), 11) -> Energy savings (% over today's base) | M22: =INDEX('[2]Technical measure database'!$A$5:$CQ$1028, MATCH($A22, '[2]Technical measure database'!$A$5:$A$1028, 0), 12) -> -0.4424 | N22: =INDEX('[2]Technical measure database'!$A$5:$CQ$1028, MATCH($A22, '[2]Technical measure database'!$A$5:$A$1028, 0), 13) -> 0 | O22: -0.4424 | Q22: =INDEX('[2]Technical measure database'!$A$5:$CQ$1028, MATCH($A22, '[2]Technical measure database'!$A$5:$A$1028, 0), 15) -> 10 ton unit costed by NREL at $8,100 material + markup and business expense; UPDATE BASED ON NCI REPORT: End User Equipment Cost of Baseline DX rooftop unit is $9300; DEVap manufacturer cost estimate: (100k units/yr) $12,000, (1k units/yr) $19,000 | R22: =INDEX('[2]Technical measure database'!$A$5:$CQ$1028, MATCH($A22, '[2]Technical measure database'!$A$5:$A$1028, 0), 16) -> 9300 | S22: =INDEX('[2]Technical measure database'!$A$5:$CQ$1028, MATCH($A22, '[2]Technical measure database'!$A$5:$A$1028, 0), 17) -> 19000 | T22: =INDEX('[2]Technical measure database'!$A$5:$CQ$1028, MATCH($A22, '[2]Technical measure database'!$A$5:$A$1028, 0), 18) -> 1.616666667 | U22: =INDEX('[2]Technical measure database'!$A$5:$CQ$1028, MATCH($A22, '[2]Technical measure database'!$A$5:$A$1028, 0), 19) -> per square foot; 1 ton per 280 sq.ft. | W22: =INDEX('[2]Technical measure database'!$A$5:$CQ$1028, MATCH($A22, '[2]Technical measure database'!$A$5:$A$1028, 0), 24) -> Kozubal, E.; Woods, J.; Judkoff, R.; "Development and Analysis of Desiccant Enhanced Evaporative Air Conditioner Prototype"; NREL, 2012. http://www.nrel.gov/docs/fy12osti/54755.pdf Kozubal, E. et. al.; "Desiccant Enhanced Evaporative Air-Conditioning (DEVap): Evaluation of a New Concept in Ultra Efficient Air Conditioning"; NREL, 2011. http://www.nrel.gov/docs/fy11osti/49722.pdf; NCI Internal DeVAP Report Cost (listed value is not consistent with this source: "Rooftop units using DEVAP design are initially expected to cost ~30% more than competing models." Kozubal. NREL. July 2 2012. http://www.nrel.gov/docs/fy12osti/55740.pdf | X22: =INDEX('[2]Technical measure database'!$A$5:$CQ$1028, MATCH($A22, '[2]Technical measure database'!$A$5:$A$1028, 0), 25) -> BTP Tool: MTAB, NREL website, DuCool?AdvantixSystems website Appendix B: "Modeling at NREL has shown that the yearly combined source energy for the thermal and electrical energy required to operate DEVap is expected to be 30%–90% less than state-of-the-art direct expansion cooling (depending on whether it is applied in a humid or a dry climate)", NREL research team performed climate and sector specific calculations
A23: 80 | C23: =INDEX('[2]Technical measure database'!$A$5:$CQ$1028, MATCH($A23, '[2]Technical measure database'!$A$5:$A$1028, 0), 2) -> Demonstrate and deploy filters with lower pressure drop in homes with central air systems | D23: =INDEX('[2]Technical measure database'!$A$5:$CQ$1028, MATCH($A23, '[2]Technical measure database'!$A$5:$A$1028, 0), 3) -> R: Low ΔP Air Filter | E23: =INDEX('[2]Technical measure database'!$A$5:$CQ$1028, MATCH($A23, '[2]Technical measure database'!$A$5:$A$1028, 0), 4) -> Distribution | F23: =INDEX('[2]Technical measure database'!$A$5:$CQ$1028, MATCH($A23, '[2]Technical measure database'!$A$5:$A$1028, 0), 6)&": "&CHOOSE(INDEX('[2]Technical measure database'!$A$5:$CQ$1028, MATCH($A23, '[2]Technical measure database'!$A$5:$A$1028, 0), 6)+1, "Roadmap Goal/Target", "Early R&D (not basic science, but still lab bench)", "Late R&D (cost reduction, performance improvement, may be available to early adopters)", "Early Deployment (savings not yet proven in whole building context)", "Late Deployment (savings proven, but need to transform the market)", "Standards (rule in place, underway, planned, or ready to be planned)") -> 3: Early Deployment (savings not yet proven in whole building context) | G23: =INDEX('[2]Technical measure database'!$A$5:$CQ$1028, MATCH($A23, '[2]Technical measure database'!$A$5:$A$1028, 0), 67) -> 6 | I23: =INDEX('[2]Technical measure database'!$A$5:$CQ$1028,MATCH($A23,'[2]Technical measure database'!$A$5:$A$1028,0),7) -> Residential | J23: =INDEX('[2]Technical measure database'!$A$5:$CQ$1028, MATCH($A23, '[2]Technical measure database'!$A$5:$A$1028, 0), 71) -> All residential furnace fans | L23: =INDEX('[2]Technical measure database'!$A$5:$CQ$1028, MATCH($A23, '[2]Technical measure database'!$A$5:$A$1028, 0), 11) -> Blower energy savings (%) | M23: =INDEX('[2]Technical measure database'!$A$5:$CQ$1028, MATCH($A23, '[2]Technical measure database'!$A$5:$A$1028, 0), 12) -> 0.25 | N23: =INDEX('[2]Technical measure database'!$A$5:$CQ$1028, MATCH($A23, '[2]Technical measure database'!$A$5:$A$1028, 0), 13) -> 0 | O23: 0.25 | Q23: =INDEX('[2]Technical measure database'!$A$5:$CQ$1028, MATCH($A23, '[2]Technical measure database'!$A$5:$A$1028, 0), 15) -> $10/filter | R23: N/A | S23: N/A | T23: =INDEX('[2]Technical measure database'!$A$5:$CQ$1028, MATCH($A23, '[2]Technical measure database'!$A$5:$A$1028, 0), 18) -> 60 | U23: =INDEX('[2]Technical measure database'!$A$5:$CQ$1028, MATCH($A23, '[2]Technical measure database'!$A$5:$A$1028, 0), 19) -> per square foot | W23: =INDEX('[2]Technical measure database'!$A$5:$CQ$1028, MATCH($A23, '[2]Technical measure database'!$A$5:$A$1028, 0), 24) -> Camfil, AFE journal, HPAC Engineering journal, NREL feedback Primary Source: "Air-Filter Life-Cycle Cost", Seyffer, C.; HPAC Engineering 9/2010 Other Supporting Sources: Proper Air Filter Selection Goes a Long Way", Matela, D.AFE Journal 10/2010 Expert interviews suggest 25% is more typical savings | X23: =INDEX('[2]Technical measure database'!$A$5:$CQ$1028, MATCH($A23, '[2]Technical measure database'!$A$5:$A$1028, 0), 25) -> BTP Tool: Estimated at $400 savings lifetime, +$60 cost; Assumed uniform savings difference from 10-40% from min/max of source: 25% used Appendix B: "As much as 40 percent of HVAC-system electricity demand could be reduced by applying air-filter life-cycle-cost analysis." Cost taken from manufacturer webiste
A24: 81 | C24: =INDEX('[2]Technical measure database'!$A$5:$CQ$1028, MATCH($A24, '[2]Technical measure database'!$A$5:$A$1028, 0), 2) -> Demonstrate and deploy filters with lower pressure drop in variable air volume (VAV) systems in commercial buildings | D24: =INDEX('[2]Technical measure database'!$A$5:$CQ$1028, MATCH($A24, '[2]Technical measure database'!$A$5:$A$1028, 0), 3) -> C: Low ΔP Air Filter | E24: =INDEX('[2]Technical measure database'!$A$5:$CQ$1028, MATCH($A24, '[2]Technical measure database'!$A$5:$A$1028, 0), 4) -> Distribution | F24: =INDEX('[2]Technical measure database'!$A$5:$CQ$1028, MATCH($A24, '[2]Technical measure database'!$A$5:$A$1028, 0), 6)&": "&CHOOSE(INDEX('[2]Technical measure database'!$A$5:$CQ$1028, MATCH($A24, '[2]Technical measure database'!$A$5:$A$1028, 0), 6)+1, "Roadmap Goal/Target", "Early R&D (not basic science, but still lab bench)", "Late R&D (cost reduction, performance improvement, may be available to early adopters)", "Early Deployment (savings not yet proven in whole building context)", "Late Deployment (savings proven, but need to transform the market)", "Standards (rule in place, underway, planned, or ready to be planned)") -> 3: Early Deployment (savings not yet proven in whole building context) | G24: =INDEX('[2]Technical measure database'!$A$5:$CQ$1028, MATCH($A24, '[2]Technical measure database'!$A$5:$A$1028, 0), 67) -> 6 | I24: =INDEX('[2]Technical measure database'!$A$5:$CQ$1028,MATCH($A24,'[2]Technical measure database'!$A$5:$A$1028,0),7) -> Commercial | J24: =INDEX('[2]Technical measure database'!$A$5:$CQ$1028, MATCH($A24, '[2]Technical measure database'!$A$5:$A$1028, 0), 71) -> Total commercial variable volume ventilation and air handlers in all commercial buildings | L24: =INDEX('[2]Technical measure database'!$A$5:$CQ$1028, MATCH($A24, '[2]Technical measure database'!$A$5:$A$1028, 0), 11) -> Blower energy savings (%) | M24: =INDEX('[2]Technical measure database'!$A$5:$CQ$1028, MATCH($A24, '[2]Technical measure database'!$A$5:$A$1028, 0), 12) -> 0.02667544357 | N24: =INDEX('[2]Technical measure database'!$A$5:$CQ$1028, MATCH($A24, '[2]Technical measure database'!$A$5:$A$1028, 0), 13) -> 0 | O24: 0.02667544357 | Q24: =INDEX('[2]Technical measure database'!$A$5:$CQ$1028, MATCH($A24, '[2]Technical measure database'!$A$5:$A$1028, 0), 15) -> payback of 0.25 years based on propriatry information | R24: N/A | S24: N/A | T24: =INDEX('[2]Technical measure database'!$A$5:$CQ$1028, MATCH($A24, '[2]Technical measure database'!$A$5:$A$1028, 0), 18) -> 0.11 | U24: =INDEX('[2]Technical measure database'!$A$5:$CQ$1028, MATCH($A24, '[2]Technical measure database'!$A$5:$A$1028, 0), 19) -> per square foot; represents 6 filter changes over lifetime; 1 per 1,500 sq.ft. of service | W24: =INDEX('[2]Technical measure database'!$A$5:$CQ$1028, MATCH($A24, '[2]Technical measure database'!$A$5:$A$1028, 0), 24) -> Camfil, AFE journal, HPAC Engineering journal Primary Source: "Air-Filter Life-Cycle Cost", Seyffer, C.; HPAC Engineering 9/2010 Other Supporting Sources: Proper Air Filter Selection Goes a Long Way", Matela, D.AFE Journal 10/2010 Expert interviews suggest 25% is more typical savings | X24: =INDEX('[2]Technical measure database'!$A$5:$CQ$1028, MATCH($A24, '[2]Technical measure database'!$A$5:$A$1028, 0), 25) -> BTP Tool: Estimated at $400 savings lifetime, +$60 cost; Assumed uniform savings difference from 10-40% from min/max of source: 25% used Appendix B: "As much as 40 percent of HVAC-system electricity demand could be reduced by applying air-filter life-cycle-cost analysis." Cost taken from manufacturer webiste
A25: 85 | C25: =INDEX('[2]Technical measure database'!$A$5:$CQ$1028, MATCH($A25, '[2]Technical measure database'!$A$5:$A$1028, 0), 2) -> Move to include duct insulation in building codes: residential | D25: =INDEX('[2]Technical measure database'!$A$5:$CQ$1028, MATCH($A25, '[2]Technical measure database'!$A$5:$A$1028, 0), 3) -> R: Duct Insulation (N) | E25: =INDEX('[2]Technical measure database'!$A$5:$CQ$1028, MATCH($A25, '[2]Technical measure database'!$A$5:$A$1028, 0), 4) -> Distribution | F25: =INDEX('[2]Technical measure database'!$A$5:$CQ$1028, MATCH($A25, '[2]Technical measure database'!$A$5:$A$1028, 0), 6)&": "&CHOOSE(INDEX('[2]Technical measure database'!$A$5:$CQ$1028, MATCH($A25, '[2]Technical measure database'!$A$5:$A$1028, 0), 6)+1, "Roadmap Goal/Target", "Early R&D (not basic science, but still lab bench)", "Late R&D (cost reduction, performance improvement, may be available to early adopters)", "Early Deployment (savings not yet proven in whole building context)", "Late Deployment (savings proven, but need to transform the market)", "Standards (rule in place, underway, planned, or ready to be planned)") -> 5: Standards (rule in place, underway, planned, or ready to be planned) | G25: =INDEX('[2]Technical measure database'!$A$5:$CQ$1028, MATCH($A25, '[2]Technical measure database'!$A$5:$A$1028, 0), 67) -> 40 | I25: =INDEX('[2]Technical measure database'!$A$5:$CQ$1028,MATCH($A25,'[2]Technical measure database'!$A$5:$A$1028,0),7) -> Residential | J25: =INDEX('[2]Technical measure database'!$A$5:$CQ$1028, MATCH($A25, '[2]Technical measure database'!$A$5:$A$1028, 0), 71) -> New homes lacking duct insulation | L25: =INDEX('[2]Technical measure database'!$A$5:$CQ$1028, MATCH($A25, '[2]Technical measure database'!$A$5:$A$1028, 0), 11) -> R-value | M25: =INDEX('[2]Technical measure database'!$A$5:$CQ$1028, MATCH($A25, '[2]Technical measure database'!$A$5:$A$1028, 0), 12) -> 4 | N25: =INDEX('[2]Technical measure database'!$A$5:$CQ$1028, MATCH($A25, '[2]Technical measure database'!$A$5:$A$1028, 0), 13) -> 8 | O25: =1-(94%*97%) -> 0.0882 | Q25: =INDEX('[2]Technical measure database'!$A$5:$CQ$1028, MATCH($A25, '[2]Technical measure database'!$A$5:$A$1028, 0), 15) -> $1.3/ft2 and $1.1/ft2 for supply (R-8) and return (R-6) ducts respectively | R25: =INDEX('[2]Technical measure database'!$A$5:$CQ$1028, MATCH($A25, '[2]Technical measure database'!$A$5:$A$1028, 0), 16) -> 0 | S25: =INDEX('[2]Technical measure database'!$A$5:$CQ$1028, MATCH($A25, '[2]Technical measure database'!$A$5:$A$1028, 0), 17) -> 518 | T25: =INDEX('[2]Technical measure database'!$A$5:$CQ$1028, MATCH($A25, '[2]Technical measure database'!$A$5:$A$1028, 0), 18) -> 518 | U25: =INDEX('[2]Technical measure database'!$A$5:$CQ$1028, MATCH($A25, '[2]Technical measure database'!$A$5:$A$1028, 0), 19) -> per home; 195 ft^2 of supply duct and ^240 ft^2 return duct for 1500 ft^2 home | W25: =INDEX('[2]Technical measure database'!$A$5:$CQ$1028, MATCH($A25, '[2]Technical measure database'!$A$5:$A$1028, 0), 24) -> NREL Retrofit efficiency measures database; HES pro; ducts.lbl.gov Primary Source: Cost: NREL retrofit measure database Savings: First principles of moving ducts from R-4 to R-8 as per recent code changes Other Supporting Sources: LBNL. 2011. Thermal Energy Distribution Website. ducts.lbl.gov. | X25: =INDEX('[2]Technical measure database'!$A$5:$CQ$1028, MATCH($A25, '[2]Technical measure database'!$A$5:$A$1028, 0), 25) -> BTP Tool: Using average code level for ducts in unconditioned/external space
A26: 88 | C26: =INDEX('[2]Technical measure database'!$A$5:$CQ$1028, MATCH($A26, '[2]Technical measure database'!$A$5:$A$1028, 0), 2) -> Launch campaign to encourage proper A/C refrigerant charging in homes | D26: =INDEX('[2]Technical measure database'!$A$5:$CQ$1028, MATCH($A26, '[2]Technical measure database'!$A$5:$A$1028, 0), 3) -> R: Charge AC Refrigerant | E26: =INDEX('[2]Technical measure database'!$A$5:$CQ$1028, MATCH($A26, '[2]Technical measure database'!$A$5:$A$1028, 0), 4) -> Maintenance | F26: =INDEX('[2]Technical measure database'!$A$5:$CQ$1028, MATCH($A26, '[2]Technical measure database'!$A$5:$A$1028, 0), 6)&": "&CHOOSE(INDEX('[2]Technical measure database'!$A$5:$CQ$1028, MATCH($A26, '[2]Technical measure database'!$A$5:$A$1028, 0), 6)+1, "Roadmap Goal/Target", "Early R&D (not basic science, but still lab bench)", "Late R&D (cost reduction, performance improvement, may be available to early adopters)", "Early Deployment (savings not yet proven in whole building context)", "Late Deployment (savings proven, but need to transform the market)", "Standards (rule in place, underway, planned, or ready to be planned)") -> 4: Late Deployment (savings proven, but need to transform the market) | G26: =INDEX('[2]Technical measure database'!$A$5:$CQ$1028, MATCH($A26, '[2]Technical measure database'!$A$5:$A$1028, 0), 67) -> 20 | I26: =INDEX('[2]Technical measure database'!$A$5:$CQ$1028,MATCH($A26,'[2]Technical measure database'!$A$5:$A$1028,0),7) -> Residential | J26: =INDEX('[2]Technical measure database'!$A$5:$CQ$1028, MATCH($A26, '[2]Technical measure database'!$A$5:$A$1028, 0), 71) -> Coils (A/C and HP) - heating and cooling | L26: =INDEX('[2]Technical measure database'!$A$5:$CQ$1028, MATCH($A26, '[2]Technical measure database'!$A$5:$A$1028, 0), 11) -> Energy savings (%) | M26: =INDEX('[2]Technical measure database'!$A$5:$CQ$1028, MATCH($A26, '[2]Technical measure database'!$A$5:$A$1028, 0), 12) -> 0.05 | N26: =INDEX('[2]Technical measure database'!$A$5:$CQ$1028, MATCH($A26, '[2]Technical measure database'!$A$5:$A$1028, 0), 13) -> 0 | O26: =M26-N26 -> 0.05 | Q26: =INDEX('[2]Technical measure database'!$A$5:$CQ$1028, MATCH($A26, '[2]Technical measure database'!$A$5:$A$1028, 0), 15) -> 128 | R26: =INDEX('[2]Technical measure database'!$A$5:$CQ$1028, MATCH($A26, '[2]Technical measure database'!$A$5:$A$1028, 0), 16) -> 0 | S26: =INDEX('[2]Technical measure database'!$A$5:$CQ$1028, MATCH($A26, '[2]Technical measure database'!$A$5:$A$1028, 0), 17) -> 128 | T26: =INDEX('[2]Technical measure database'!$A$5:$CQ$1028, MATCH($A26, '[2]Technical measure database'!$A$5:$A$1028, 0), 18) -> 128 | U26: =INDEX('[2]Technical measure database'!$A$5:$CQ$1028, MATCH($A26, '[2]Technical measure database'!$A$5:$A$1028, 0), 19) -> per unit | W26: =INDEX('[2]Technical measure database'!$A$5:$CQ$1028, MATCH($A26, '[2]Technical measure database'!$A$5:$A$1028, 0), 24) -> Primary Source: Goswami et. al.; "Effect of refrigerant charge on the performance of air conditioning systems"; Int. J. Energy Res. 2001; 25:741}750 Other Supporting Sources: Choi-Granade et. Al.; "Unlocking Energy Efficiency in the U.S. Economy"; McKinsey & Company (2009) | X26: =INDEX('[2]Technical measure database'!$A$5:$CQ$1028, MATCH($A26, '[2]Technical measure database'!$A$5:$A$1028, 0), 25) -> BTP Tool: Savings are significantly higher (i.e., 100% improvement performance) for charges below 80%; used 5% assuming average charge around 85-90% Appendix B: "Experimental results show that if a system is undercharged to 90% a 2 percent increase is seen in the (COP). The maintenance costs included 2 hr of labour at $60/h and one pound of refrigerant charge at $8/lb", assumed typical charge level of 85-90% and $150 labor and material cost obtained from expert interviews.
A27: 92 | C27: =INDEX('[2]Technical measure database'!$A$5:$CQ$1028, MATCH($A27, '[2]Technical measure database'!$A$5:$A$1028, 0), 2) -> Move to include duct sealing in commercial codes | D27: =INDEX('[2]Technical measure database'!$A$5:$CQ$1028, MATCH($A27, '[2]Technical measure database'!$A$5:$A$1028, 0), 3) -> C: Duct Sealing (N) | E27: =INDEX('[2]Technical measure database'!$A$5:$CQ$1028, MATCH($A27, '[2]Technical measure database'!$A$5:$A$1028, 0), 4) -> Distribution | F27: =INDEX('[2]Technical measure database'!$A$5:$CQ$1028, MATCH($A27, '[2]Technical measure database'!$A$5:$A$1028, 0), 6)&": "&CHOOSE(INDEX('[2]Technical measure database'!$A$5:$CQ$1028, MATCH($A27, '[2]Technical measure database'!$A$5:$A$1028, 0), 6)+1, "Roadmap Goal/Target", "Early R&D (not basic science, but still lab bench)", "Late R&D (cost reduction, performance improvement, may be available to early adopters)", "Early Deployment (savings not yet proven in whole building context)", "Late Deployment (savings proven, but need to transform the market)", "Standards (rule in place, underway, planned, or ready to be planned)") -> 5: Standards (rule in place, underway, planned, or ready to be planned) | G27: =INDEX('[2]Technical measure database'!$A$5:$CQ$1028, MATCH($A27, '[2]Technical measure database'!$A$5:$A$1028, 0), 67) -> 40 | I27: =INDEX('[2]Technical measure database'!$A$5:$CQ$1028,MATCH($A27,'[2]Technical measure database'!$A$5:$A$1028,0),7) -> Commercial | J27: =INDEX('[2]Technical measure database'!$A$5:$CQ$1028, MATCH($A27, '[2]Technical measure database'!$A$5:$A$1028, 0), 71) -> All furnaces and A/C heating and cooling (i.e., ducts) in new commercial buildings | L27: =INDEX('[2]Technical measure database'!$A$5:$CQ$1028, MATCH($A27, '[2]Technical measure database'!$A$5:$A$1028, 0), 11) -> Energy savings (%) | M27: =INDEX('[2]Technical measure database'!$A$5:$CQ$1028, MATCH($A27, '[2]Technical measure database'!$A$5:$A$1028, 0), 12) -> 0.1 | N27: =INDEX('[2]Technical measure database'!$A$5:$CQ$1028, MATCH($A27, '[2]Technical measure database'!$A$5:$A$1028, 0), 13) -> 0 | O27: 0.1 | Q27: =INDEX('[2]Technical measure database'!$A$5:$CQ$1028, MATCH($A27, '[2]Technical measure database'!$A$5:$A$1028, 0), 15) -> $0.33/sq.ft of floor space | R27: N/A | S27: N/A | T27: =INDEX('[2]Technical measure database'!$A$5:$CQ$1028, MATCH($A27, '[2]Technical measure database'!$A$5:$A$1028, 0), 18) -> 0.33 | U27: =INDEX('[2]Technical measure database'!$A$5:$CQ$1028, MATCH($A27, '[2]Technical measure database'!$A$5:$A$1028, 0), 19) -> per square foot | W27: =INDEX('[2]Technical measure database'!$A$5:$CQ$1028, MATCH($A27, '[2]Technical measure database'!$A$5:$A$1028, 0), 24) -> Aeroseal website: http://www.aeroseal.com/commercial_duct_sealing.html; Modera 2005: Fixing Duct Leaks, ASHRAE Journal; Primary Source: Modera, M Fixing Duct Leaks in Commercial Buildings ASHRAE Journal June 2005 Aeroseal website. http://www.aeroseal.com/problem-we-solve/FAQ-commercial.html Other Supporting Sources: 13. Goetzler, W., Zogg, R., Burgos, J., Hiraiwa, H. & Young, J. Energy Savings Potential and RD & D Opportunities for Commercial Building HVAC Systems. 289 (2011). | X27: =INDEX('[2]Technical measure database'!$A$5:$CQ$1028, MATCH($A27, '[2]Technical measure database'!$A$5:$A$1028, 0), 25) -> BTP Tool: Using average savings and cost & perormance to get to 97% duct efficiency from Hamilton and ACEEE sources Appendix B: Modera: 80% heating season duct efficiency (See Figure 2 and measured duct efficiency data cited throughout the article. 50% improvement is assumed over the 80% duct efficiency baseline. Price based on average of three Aeroseal case studies and estimated payback of 2.5 years ($0.33/ft2=$247*2.5 years/1879 ft2)
A28: 93 | C28: =INDEX('[2]Technical measure database'!$A$5:$CQ$1028, MATCH($A28, '[2]Technical measure database'!$A$5:$A$1028, 0), 2) -> Launch campaign to encourage steam cleaning commercial A/C coils annually | D28: =INDEX('[2]Technical measure database'!$A$5:$CQ$1028, MATCH($A28, '[2]Technical measure database'!$A$5:$A$1028, 0), 3) -> C: Steam Clean AC Coils | E28: =INDEX('[2]Technical measure database'!$A$5:$CQ$1028, MATCH($A28, '[2]Technical measure database'!$A$5:$A$1028, 0), 4) -> Evaporator | F28: =INDEX('[2]Technical measure database'!$A$5:$CQ$1028, MATCH($A28, '[2]Technical measure database'!$A$5:$A$1028, 0), 6)&": "&CHOOSE(INDEX('[2]Technical measure database'!$A$5:$CQ$1028, MATCH($A28, '[2]Technical measure database'!$A$5:$A$1028, 0), 6)+1, "Roadmap Goal/Target", "Early R&D (not basic science, but still lab bench)", "Late R&D (cost reduction, performance improvement, may be available to early adopters)", "Early Deployment (savings not yet proven in whole building context)", "Late Deployment (savings proven, but need to transform the market)", "Standards (rule in place, underway, planned, or ready to be planned)") -> 4: Late Deployment (savings proven, but need to transform the market) | G28: =INDEX('[2]Technical measure database'!$A$5:$CQ$1028, MATCH($A28, '[2]Technical measure database'!$A$5:$A$1028, 0), 67) -> 5 | I28: =INDEX('[2]Technical measure database'!$A$5:$CQ$1028,MATCH($A28,'[2]Technical measure database'!$A$5:$A$1028,0),7) -> Commercial | J28: =INDEX('[2]Technical measure database'!$A$5:$CQ$1028, MATCH($A28, '[2]Technical measure database'!$A$5:$A$1028, 0), 71) -> All cooling and ASHP heating | L28: =INDEX('[2]Technical measure database'!$A$5:$CQ$1028, MATCH($A28, '[2]Technical measure database'!$A$5:$A$1028, 0), 11) -> Energy savings (%) | M28: =INDEX('[2]Technical measure database'!$A$5:$CQ$1028, MATCH($A28, '[2]Technical measure database'!$A$5:$A$1028, 0), 12) -> 0.1 | N28: =INDEX('[2]Technical measure database'!$A$5:$CQ$1028, MATCH($A28, '[2]Technical measure database'!$A$5:$A$1028, 0), 13) -> 0 | O28: 0.1 | Q28: =INDEX('[2]Technical measure database'!$A$5:$CQ$1028, MATCH($A28, '[2]Technical measure database'!$A$5:$A$1028, 0), 15) -> 3000 | R28: N/A | S28: N/A | T28: =INDEX('[2]Technical measure database'!$A$5:$CQ$1028, MATCH($A28, '[2]Technical measure database'!$A$5:$A$1028, 0), 18) -> 0.2 | U28: =INDEX('[2]Technical measure database'!$A$5:$CQ$1028, MATCH($A28, '[2]Technical measure database'!$A$5:$A$1028, 0), 19) -> per square foot | W28: =INDEX('[2]Technical measure database'!$A$5:$CQ$1028, MATCH($A28, '[2]Technical measure database'!$A$5:$A$1028, 0), 24) -> SavetheWatts.com, National Steam Clean, Rejuvinair, Air Conditioning, Heating and Refrigeration News (achrnews.com) Primary Source: Checket-Hanks, B. "Contractor Offers Hope For PTAC IAQ". The Air Conditioning, Heating and Refrigeration NEWS, March 10, 2004 Rejuvinair website | X28: =INDEX('[2]Technical measure database'!$A$5:$CQ$1028, MATCH($A28, '[2]Technical measure database'!$A$5:$A$1028, 0), 25) -> BTP Tool: Assumed 15,000 sq.ft. building average Appendix B: Savings (10%) and cost estiamtes based on Manufacturer's website
A29: 96 | C29: =INDEX('[2]Technical measure database'!$A$5:$CQ$1028, MATCH($A29, '[2]Technical measure database'!$A$5:$A$1028, 0), 2) -> Launch campaign to encourage adoption of 13 EER Room A/Cs at end of life | D29: =INDEX('[2]Technical measure database'!$A$5:$CQ$1028, MATCH($A29, '[2]Technical measure database'!$A$5:$A$1028, 0), 3) -> R: EER 13 Room AC | E29: =INDEX('[2]Technical measure database'!$A$5:$CQ$1028, MATCH($A29, '[2]Technical measure database'!$A$5:$A$1028, 0), 4) -> System | F29: =INDEX('[2]Technical measure database'!$A$5:$CQ$1028, MATCH($A29, '[2]Technical measure database'!$A$5:$A$1028, 0), 6)&": "&CHOOSE(INDEX('[2]Technical measure database'!$A$5:$CQ$1028, MATCH($A29, '[2]Technical measure database'!$A$5:$A$1028, 0), 6)+1, "Roadmap Goal/Target", "Early R&D (not basic science, but still lab bench)", "Late R&D (cost reduction, performance improvement, may be available to early adopters)", "Early Deployment (savings not yet proven in whole building context)", "Late Deployment (savings proven, but need to transform the market)", "Standards (rule in place, underway, planned, or ready to be planned)") -> 3: Early Deployment (savings not yet proven in whole building context) | G29: =INDEX('[2]Technical measure database'!$A$5:$CQ$1028, MATCH($A29, '[2]Technical measure database'!$A$5:$A$1028, 0), 67) -> 20 | I29: =INDEX('[2]Technical measure database'!$A$5:$CQ$1028,MATCH($A29,'[2]Technical measure database'!$A$5:$A$1028,0),7) -> Residential | J29: =INDEX('[2]Technical measure database'!$A$5:$CQ$1028, MATCH($A29, '[2]Technical measure database'!$A$5:$A$1028, 0), 71) -> All residential room air conditioners | L29: =INDEX('[2]Technical measure database'!$A$5:$CQ$1028, MATCH($A29, '[2]Technical measure database'!$A$5:$A$1028, 0), 11) -> EER (BTU/W-h) | M29: =INDEX('[2]Technical measure database'!$A$5:$CQ$1028, MATCH($A29, '[2]Technical measure database'!$A$5:$A$1028, 0), 12) -> 13 | N29: =INDEX('[2]Technical measure database'!$A$5:$CQ$1028, MATCH($A29, '[2]Technical measure database'!$A$5:$A$1028, 0), 13) -> 8.5 | O29: =1-N29/M29 -> 0.3461538462 | Q29: =INDEX('[2]Technical measure database'!$A$5:$CQ$1028, MATCH($A29, '[2]Technical measure database'!$A$5:$A$1028, 0), 15) -> $75/ (kBTU/h) vs. $35 for 8.5 EER | R29: =INDEX('[2]Technical measure database'!$A$5:$CQ$1028, MATCH($A29, '[2]Technical measure database'!$A$5:$A$1028, 0), 16) -> 574.9 | S29: =INDEX('[2]Technical measure database'!$A$5:$CQ$1028, MATCH($A29, '[2]Technical measure database'!$A$5:$A$1028, 0), 17) -> 900 | T29: =INDEX('[2]Technical measure database'!$A$5:$CQ$1028, MATCH($A29, '[2]Technical measure database'!$A$5:$A$1028, 0), 18) -> 325.1 | U29: =INDEX('[2]Technical measure database'!$A$5:$CQ$1028, MATCH($A29, '[2]Technical measure database'!$A$5:$A$1028, 0), 19) -> per unit; 12 kBTU/hr for 1,000 sq.ft. | W29: =INDEX('[2]Technical measure database'!$A$5:$CQ$1028, MATCH($A29, '[2]Technical measure database'!$A$5:$A$1028, 0), 24) -> Bouza Primary Source: Savings: First principles Cost: DOE published target for funded research | X29: =INDEX('[2]Technical measure database'!$A$5:$CQ$1028, MATCH($A29, '[2]Technical measure database'!$A$5:$A$1028, 0), 25) -> BTP Tool: Assumed 3 units/home
A30: 98 | C30: =INDEX('[2]Technical measure database'!$A$5:$CQ$1028, MATCH($A30, '[2]Technical measure database'!$A$5:$A$1028, 0), 2) -> Launch campaign to encourage adoption of SEER 21 central A/C in homes at end of life | D30: =INDEX('[2]Technical measure database'!$A$5:$CQ$1028, MATCH($A30, '[2]Technical measure database'!$A$5:$A$1028, 0), 3) -> R: SEER 21 CAC | E30: =INDEX('[2]Technical measure database'!$A$5:$CQ$1028, MATCH($A30, '[2]Technical measure database'!$A$5:$A$1028, 0), 4) -> System | F30: =INDEX('[2]Technical measure database'!$A$5:$CQ$1028, MATCH($A30, '[2]Technical measure database'!$A$5:$A$1028, 0), 6)&": "&CHOOSE(INDEX('[2]Technical measure database'!$A$5:$CQ$1028, MATCH($A30, '[2]Technical measure database'!$A$5:$A$1028, 0), 6)+1, "Roadmap Goal/Target", "Early R&D (not basic science, but still lab bench)", "Late R&D (cost reduction, performance improvement, may be available to early adopters)", "Early Deployment (savings not yet proven in whole building context)", "Late Deployment (savings proven, but need to transform the market)", "Standards (rule in place, underway, planned, or ready to be planned)") -> 3: Early Deployment (savings not yet proven in whole building context) | G30: =INDEX('[2]Technical measure database'!$A$5:$CQ$1028, MATCH($A30, '[2]Technical measure database'!$A$5:$A$1028, 0), 67) -> 20 | I30: =INDEX('[2]Technical measure database'!$A$5:$CQ$1028,MATCH($A30,'[2]Technical measure database'!$A$5:$A$1028,0),7) -> Residential | J30: =INDEX('[2]Technical measure database'!$A$5:$CQ$1028, MATCH($A30, '[2]Technical measure database'!$A$5:$A$1028, 0), 71) -> All residential central air-conditioners in all homes | L30: =INDEX('[2]Technical measure database'!$A$5:$CQ$1028, MATCH($A30, '[2]Technical measure database'!$A$5:$A$1028, 0), 11) -> SEER (BTU/W-h) | M30: =INDEX('[2]Technical measure database'!$A$5:$CQ$1028, MATCH($A30, '[2]Technical measure database'!$A$5:$A$1028, 0), 12) -> 21 | N30: =INDEX('[2]Technical measure database'!$A$5:$CQ$1028, MATCH($A30, '[2]Technical measure database'!$A$5:$A$1028, 0), 13) -> 12.225033 | O30: =1-N30/M30 -> 0.4178555714 | Q30: =INDEX('[2]Technical measure database'!$A$5:$CQ$1028, MATCH($A30, '[2]Technical measure database'!$A$5:$A$1028, 0), 15) -> $180 /(kBtu/h) vs. $130 for SEER 14 | R30: =INDEX('[2]Technical measure database'!$A$5:$CQ$1028, MATCH($A30, '[2]Technical measure database'!$A$5:$A$1028, 0), 16) -> 4680 | S30: =INDEX('[2]Technical measure database'!$A$5:$CQ$1028, MATCH($A30, '[2]Technical measure database'!$A$5:$A$1028, 0), 17) -> 6480 | T30: =INDEX('[2]Technical measure database'!$A$5:$CQ$1028, MATCH($A30, '[2]Technical measure database'!$A$5:$A$1028, 0), 18) -> 1800 | U30: =INDEX('[2]Technical measure database'!$A$5:$CQ$1028, MATCH($A30, '[2]Technical measure database'!$A$5:$A$1028, 0), 19) -> per home; 3 ton cooling | W30: =INDEX('[2]Technical measure database'!$A$5:$CQ$1028, MATCH($A30, '[2]Technical measure database'!$A$5:$A$1028, 0), 24) -> NREL Retrofit efficiency measures database Primary Source: Savings: first principles Cost: NREL retrofit measure database | X30: =INDEX('[2]Technical measure database'!$A$5:$CQ$1028, MATCH($A30, '[2]Technical measure database'!$A$5:$A$1028, 0), 25) -> No notes
A31: 102 | C31: =INDEX('[2]Technical measure database'!$A$5:$CQ$1028, MATCH($A31, '[2]Technical measure database'!$A$5:$A$1028, 0), 2) -> Move to standardize variable speed motors in residential blowers | D31: =INDEX('[2]Technical measure database'!$A$5:$CQ$1028, MATCH($A31, '[2]Technical measure database'!$A$5:$A$1028, 0), 3) -> R: Variable Speed Blower | E31: =INDEX('[2]Technical measure database'!$A$5:$CQ$1028, MATCH($A31, '[2]Technical measure database'!$A$5:$A$1028, 0), 4) -> Distribution | F31: =INDEX('[2]Technical measure database'!$A$5:$CQ$1028, MATCH($A31, '[2]Technical measure database'!$A$5:$A$1028, 0), 6)&": "&CHOOSE(INDEX('[2]Technical measure database'!$A$5:$CQ$1028, MATCH($A31, '[2]Technical measure database'!$A$5:$A$1028, 0), 6)+1, "Roadmap Goal/Target", "Early R&D (not basic science, but still lab bench)", "Late R&D (cost reduction, performance improvement, may be available to early adopters)", "Early Deployment (savings not yet proven in whole building context)", "Late Deployment (savings proven, but need to transform the market)", "Standards (rule in place, underway, planned, or ready to be planned)") -> 4: Late Deployment (savings proven, but need to transform the market) | G31: =INDEX('[2]Technical measure database'!$A$5:$CQ$1028, MATCH($A31, '[2]Technical measure database'!$A$5:$A$1028, 0), 67) -> 20 | I31: =INDEX('[2]Technical measure database'!$A$5:$CQ$1028,MATCH($A31,'[2]Technical measure database'!$A$5:$A$1028,0),7) -> Residential | J31: =INDEX('[2]Technical measure database'!$A$5:$CQ$1028, MATCH($A31, '[2]Technical measure database'!$A$5:$A$1028, 0), 71) -> All residential furnace fans | L31: =INDEX('[2]Technical measure database'!$A$5:$CQ$1028, MATCH($A31, '[2]Technical measure database'!$A$5:$A$1028, 0), 11) -> Blower energy savings (%) | M31: =INDEX('[2]Technical measure database'!$A$5:$CQ$1028, MATCH($A31, '[2]Technical measure database'!$A$5:$A$1028, 0), 12) -> 0.51 | N31: =INDEX('[2]Technical measure database'!$A$5:$CQ$1028, MATCH($A31, '[2]Technical measure database'!$A$5:$A$1028, 0), 13) -> 0 | O31: =M31-N31 -> 0.51 | Q31: =INDEX('[2]Technical measure database'!$A$5:$CQ$1028, MATCH($A31, '[2]Technical measure database'!$A$5:$A$1028, 0), 15) -> 296 | R31: N/A | S31: N/A | T31: =INDEX('[2]Technical measure database'!$A$5:$CQ$1028, MATCH($A31, '[2]Technical measure database'!$A$5:$A$1028, 0), 18) -> 296 | U31: =INDEX('[2]Technical measure database'!$A$5:$CQ$1028, MATCH($A31, '[2]Technical measure database'!$A$5:$A$1028, 0), 19) -> per unit | W31: =INDEX('[2]Technical measure database'!$A$5:$CQ$1028, MATCH($A31, '[2]Technical measure database'!$A$5:$A$1028, 0), 24) -> Lekov et. Al. ; Electricity and Natural Gas Efficiency Improvements for Residential Gas Furnaces in the U.S.; Residential HVAC Electronically Commutated Motor Retrofit Report Primary Source: Murray, M. & Fitzpatrick, S. Residential HVAC Electronically Commutated Motor Retrofit Report Table of Contents. Advanced Energy (2012) Other Supporting Sources: Franco, V., Lutz, J., Lekov, A. & Gu, L. Furnace Blower Electricity: National and Regional Savings Potential. Florida Solar Energy Center(2008) | X31: =INDEX('[2]Technical measure database'!$A$5:$CQ$1028, MATCH($A31, '[2]Technical measure database'!$A$5:$A$1028, 0), 25) -> BTP Tool: Averaged two source to get 45% savings Appendix B: "ECM motors represent a 51 percent full-load efficiency improvement over permanent split-capacitor (PSC) motors" "The three ECMs used in this study cost, on average, $296. The average motor installation cost was approximately $547.50." Only retrofit is cost effective, so using 51% savings, $296 cost
A32: 118 | C32: =INDEX('[2]Technical measure database'!$A$5:$CQ$1028, MATCH($A32, '[2]Technical measure database'!$A$5:$A$1028, 0), 2) -> Move to standardize improved motors in ceiling fans | D32: =INDEX('[2]Technical measure database'!$A$5:$CQ$1028, MATCH($A32, '[2]Technical measure database'!$A$5:$A$1028, 0), 3) -> R: Efficient Ceiling Fan Motors | E32: =INDEX('[2]Technical measure database'!$A$5:$CQ$1028, MATCH($A32, '[2]Technical measure database'!$A$5:$A$1028, 0), 4) -> System | F32: =INDEX('[2]Technical measure database'!$A$5:$CQ$1028, MATCH($A32, '[2]Technical measure database'!$A$5:$A$1028, 0), 6)&": "&CHOOSE(INDEX('[2]Technical measure database'!$A$5:$CQ$1028, MATCH($A32, '[2]Technical measure database'!$A$5:$A$1028, 0), 6)+1, "Roadmap Goal/Target", "Early R&D (not basic science, but still lab bench)", "Late R&D (cost reduction, performance improvement, may be available to early adopters)", "Early Deployment (savings not yet proven in whole building context)", "Late Deployment (savings proven, but need to transform the market)", "Standards (rule in place, underway, planned, or ready to be planned)") -> 4: Late Deployment (savings proven, but need to transform the market) | G32: =INDEX('[2]Technical measure database'!$A$5:$CQ$1028, MATCH($A32, '[2]Technical measure database'!$A$5:$A$1028, 0), 67) -> 13 | I32: =INDEX('[2]Technical measure database'!$A$5:$CQ$1028,MATCH($A32,'[2]Technical measure database'!$A$5:$A$1028,0),7) -> Residential | J32: =INDEX('[2]Technical measure database'!$A$5:$CQ$1028, MATCH($A32, '[2]Technical measure database'!$A$5:$A$1028, 0), 71) -> All residential ceiling fans | L32: =INDEX('[2]Technical measure database'!$A$5:$CQ$1028, MATCH($A32, '[2]Technical measure database'!$A$5:$A$1028, 0), 11) -> CFM/W | M32: =INDEX('[2]Technical measure database'!$A$5:$CQ$1028, MATCH($A32, '[2]Technical measure database'!$A$5:$A$1028, 0), 12) -> 272 | N32: =INDEX('[2]Technical measure database'!$A$5:$CQ$1028, MATCH($A32, '[2]Technical measure database'!$A$5:$A$1028, 0), 13) -> 100 | O32: =1-N32/M32 -> 0.6323529412 | Q32: =INDEX('[2]Technical measure database'!$A$5:$CQ$1028, MATCH($A32, '[2]Technical measure database'!$A$5:$A$1028, 0), 15) -> 86 | R32: =INDEX('[2]Technical measure database'!$A$5:$CQ$1028, MATCH($A32, '[2]Technical measure database'!$A$5:$A$1028, 0), 16) -> 0 | S32: =INDEX('[2]Technical measure database'!$A$5:$CQ$1028, MATCH($A32, '[2]Technical measure database'!$A$5:$A$1028, 0), 17) -> 86 | T32: =INDEX('[2]Technical measure database'!$A$5:$CQ$1028, MATCH($A32, '[2]Technical measure database'!$A$5:$A$1028, 0), 18) -> 86 | U32: =INDEX('[2]Technical measure database'!$A$5:$CQ$1028, MATCH($A32, '[2]Technical measure database'!$A$5:$A$1028, 0), 19) -> per unit | W32: =INDEX('[2]Technical measure database'!$A$5:$CQ$1028, MATCH($A32, '[2]Technical measure database'!$A$5:$A$1028, 0), 24) -> Energy Star database for performance (http://downloads.energystar.gov/bi/qplist/ceiling_fan_only_prod_list.pdf?419d-5d10), Energy Star savings calculator for cost (http://www.energystar.gov/ia/business/bulk_purchasing/bpsavings_calc/Ceiling_Fan_Savings_Calculator_Consumer.xls?e8fd-5d0d) Primary Source: Environmental Protection Agency, "ENERGY STAR Ceiling Fan Product List", 2012 | X32: =INDEX('[2]Technical measure database'!$A$5:$CQ$1028, MATCH($A32, '[2]Technical measure database'!$A$5:$A$1028, 0), 25) -> BTP Tool: Reduced from 680, which was an extreme outlier in the Energy Star database. 272 cfm/W is at the upper end of products with multiple manufacturers. 150 cfm/W is Energy Star minimum. Appendix B: Represents second fastest of six speeds from one of the most efficient manufactrurers using a DC motor at 280 CFM/W Installed base estimated at typical 100 CFM/W 63% reducition possible at $86 premium
A33: 119 | C33: =INDEX('[2]Technical measure database'!$A$5:$CQ$1028, MATCH($A33, '[2]Technical measure database'!$A$5:$A$1028, 0), 2) -> Launch campaign to encourage adoption of duct insulation in existing homes | D33: =INDEX('[2]Technical measure database'!$A$5:$CQ$1028, MATCH($A33, '[2]Technical measure database'!$A$5:$A$1028, 0), 3) -> R: Insulating Ducts (E) | E33: =INDEX('[2]Technical measure database'!$A$5:$CQ$1028, MATCH($A33, '[2]Technical measure database'!$A$5:$A$1028, 0), 4) -> Distribution | F33: =INDEX('[2]Technical measure database'!$A$5:$CQ$1028, MATCH($A33, '[2]Technical measure database'!$A$5:$A$1028, 0), 6)&": "&CHOOSE(INDEX('[2]Technical measure database'!$A$5:$CQ$1028, MATCH($A33, '[2]Technical measure database'!$A$5:$A$1028, 0), 6)+1, "Roadmap Goal/Target", "Early R&D (not basic science, but still lab bench)", "Late R&D (cost reduction, performance improvement, may be available to early adopters)", "Early Deployment (savings not yet proven in whole building context)", "Late Deployment (savings proven, but need to transform the market)", "Standards (rule in place, underway, planned, or ready to be planned)") -> 4: Late Deployment (savings proven, but need to transform the market) | G33: =INDEX('[2]Technical measure database'!$A$5:$CQ$1028, MATCH($A33, '[2]Technical measure database'!$A$5:$A$1028, 0), 67) -> 40 | I33: =INDEX('[2]Technical measure database'!$A$5:$CQ$1028,MATCH($A33,'[2]Technical measure database'!$A$5:$A$1028,0),7) -> Residential | J33: =INDEX('[2]Technical measure database'!$A$5:$CQ$1028, MATCH($A33, '[2]Technical measure database'!$A$5:$A$1028, 0), 71) -> Existing homes lacking duct insulation | L33: =INDEX('[2]Technical measure database'!$A$5:$CQ$1028, MATCH($A33, '[2]Technical measure database'!$A$5:$A$1028, 0), 11) -> Energy savings (%) | M33: =INDEX('[2]Technical measure database'!$A$5:$CQ$1028, MATCH($A33, '[2]Technical measure database'!$A$5:$A$1028, 0), 12) -> 0.2 | N33: =INDEX('[2]Technical measure database'!$A$5:$CQ$1028, MATCH($A33, '[2]Technical measure database'!$A$5:$A$1028, 0), 13) -> 0 | O33: 0.2 | Q33: =INDEX('[2]Technical measure database'!$A$5:$CQ$1028, MATCH($A33, '[2]Technical measure database'!$A$5:$A$1028, 0), 15) -> HES Baseline Value is $910/home | R33: =INDEX('[2]Technical measure database'!$A$5:$CQ$1028, MATCH($A33, '[2]Technical measure database'!$A$5:$A$1028, 0), 16) -> 0 | S33: =INDEX('[2]Technical measure database'!$A$5:$CQ$1028, MATCH($A33, '[2]Technical measure database'!$A$5:$A$1028, 0), 17) -> 910 | T33: =INDEX('[2]Technical measure database'!$A$5:$CQ$1028, MATCH($A33, '[2]Technical measure database'!$A$5:$A$1028, 0), 18) -> 910 | U33: =INDEX('[2]Technical measure database'!$A$5:$CQ$1028, MATCH($A33, '[2]Technical measure database'!$A$5:$A$1028, 0), 19) -> per home; 195 ft^2 of supply duct and ^240 ft^2 return duct for 1500 ft^2 home | W33: =INDEX('[2]Technical measure database'!$A$5:$CQ$1028, MATCH($A33, '[2]Technical measure database'!$A$5:$A$1028, 0), 24) -> Primary Source: Hendron, R., and Engebrecht, C. 2010. Building America House Simulation Protocols. DOE/GO-102010-3141. http://apps1.eere.energy.gov/buildings/publications/pdfs/building_america/house_simulation_revised.pdf NREL Residential Efficiency Measures Database. http://www.nrel.gov/ap/retrofits/measures.cfm?gId=2&ctId=16 Mills, E.. et al. 2007. "Home Energy Saver: Documentation of Calculation Methodology, Input Data, and Infrastructure." Lawrence Berkeley National Laboratory Report No. 51938. http://evanmills.lbl.gov/pubs/pdf/home-energy-saver.pdf | X33: =INDEX('[2]Technical measure database'!$A$5:$CQ$1028, MATCH($A33, '[2]Technical measure database'!$A$5:$A$1028, 0), 25) -> BTP Tool: Assumes no duct insulation Appendix B: Hendron: Supply duct surface area (ft2)= 0.27 × FFA, Return duct surface area (ft2)= 0.05 × Nreturns × FFA NREL: $1.3/ft2 and $1.1/ft2 for supply (R-8) and return (R-6) ducts respectively Mills: efficiencyducts = DF * HSE + (1− DF) *CSE Estimated cost based on insulating 195 ft2 of supply ducts in unconditioned space and (Hendron value for 1500 ft2 house) and $1.3/ft2 (NREL Retrofit Meausure Database) is $254. Insulating 240 ft2 of return ducts in unconditioned space using $1.1/ft2 is another $264, for a total of $518. Energy savings is derived from HES Pro assumptions for duct distribution efficiency using LBNL's ASHRAE 152 model. TDM Mtg 2: THis measure applies only to existing homes because IECC 2009 adopted by majority of states requires min duct insulation of R-6 for inner ducts, and R-8 for ducts located outside the home.
A34: 127 | C34: =INDEX('[2]Technical measure database'!$A$5:$CQ$1028, MATCH($A34, '[2]Technical measure database'!$A$5:$A$1028, 0), 2) -> Launch campaign to encourage adoption of duct sealing in existing homes | D34: =INDEX('[2]Technical measure database'!$A$5:$CQ$1028, MATCH($A34, '[2]Technical measure database'!$A$5:$A$1028, 0), 3) -> R: Duct Sealing (E) | E34: =INDEX('[2]Technical measure database'!$A$5:$CQ$1028, MATCH($A34, '[2]Technical measure database'!$A$5:$A$1028, 0), 4) -> Distribution | F34: =INDEX('[2]Technical measure database'!$A$5:$CQ$1028, MATCH($A34, '[2]Technical measure database'!$A$5:$A$1028, 0), 6)&": "&CHOOSE(INDEX('[2]Technical measure database'!$A$5:$CQ$1028, MATCH($A34, '[2]Technical measure database'!$A$5:$A$1028, 0), 6)+1, "Roadmap Goal/Target", "Early R&D (not basic science, but still lab bench)", "Late R&D (cost reduction, performance improvement, may be available to early adopters)", "Early Deployment (savings not yet proven in whole building context)", "Late Deployment (savings proven, but need to transform the market)", "Standards (rule in place, underway, planned, or ready to be planned)") -> 3: Early Deployment (savings not yet proven in whole building context) | G34: =INDEX('[2]Technical measure database'!$A$5:$CQ$1028, MATCH($A34, '[2]Technical measure database'!$A$5:$A$1028, 0), 67) -> 40 | I34: =INDEX('[2]Technical measure database'!$A$5:$CQ$1028,MATCH($A34,'[2]Technical measure database'!$A$5:$A$1028,0),7) -> Residential | J34: =INDEX('[2]Technical measure database'!$A$5:$CQ$1028, MATCH($A34, '[2]Technical measure database'!$A$5:$A$1028, 0), 71) -> Existing homes with unsealed ducts | L34: =INDEX('[2]Technical measure database'!$A$5:$CQ$1028, MATCH($A34, '[2]Technical measure database'!$A$5:$A$1028, 0), 11) -> Energy savings (%) | M34: =INDEX('[2]Technical measure database'!$A$5:$CQ$1028, MATCH($A34, '[2]Technical measure database'!$A$5:$A$1028, 0), 12) -> 0.1 | N34: =INDEX('[2]Technical measure database'!$A$5:$CQ$1028, MATCH($A34, '[2]Technical measure database'!$A$5:$A$1028, 0), 13) -> 0 | O34: 0.1 | Q34: =INDEX('[2]Technical measure database'!$A$5:$CQ$1028, MATCH($A34, '[2]Technical measure database'!$A$5:$A$1028, 0), 15) -> $495/job | R34: N/A | S34: N/A | T34: =INDEX('[2]Technical measure database'!$A$5:$CQ$1028, MATCH($A34, '[2]Technical measure database'!$A$5:$A$1028, 0), 18) -> 495 | U34: =INDEX('[2]Technical measure database'!$A$5:$CQ$1028, MATCH($A34, '[2]Technical measure database'!$A$5:$A$1028, 0), 19) -> per home | W34: =INDEX('[2]Technical measure database'!$A$5:$CQ$1028, MATCH($A34, '[2]Technical measure database'!$A$5:$A$1028, 0), 24) -> NREL Retrofit efficiency measures database, McKinsey Primary Source: Aeroseal website. http://www.aeroseal.com/problem-we-solve/FAQ-commercial.html | X34: =INDEX('[2]Technical measure database'!$A$5:$CQ$1028, MATCH($A34, '[2]Technical measure database'!$A$5:$A$1028, 0), 25) -> Appendix B: Aeroseal: $.33/ft2 based on measure 92. Average house assumption is 1500 ft2. Assumes twice the energy savings as new homes (Measure 91).
A35: 128 | C35: =INDEX('[2]Technical measure database'!$A$5:$CQ$1028, MATCH($A35, '[2]Technical measure database'!$A$5:$A$1028, 0), 2) -> Launch campaign to encourage adoption of duct sealing in existing commercial buildings | D35: =INDEX('[2]Technical measure database'!$A$5:$CQ$1028, MATCH($A35, '[2]Technical measure database'!$A$5:$A$1028, 0), 3) -> C: Duct Sealing (E) | E35: =INDEX('[2]Technical measure database'!$A$5:$CQ$1028, MATCH($A35, '[2]Technical measure database'!$A$5:$A$1028, 0), 4) -> Distribution | F35: =INDEX('[2]Technical measure database'!$A$5:$CQ$1028, MATCH($A35, '[2]Technical measure database'!$A$5:$A$1028, 0), 6)&": "&CHOOSE(INDEX('[2]Technical measure database'!$A$5:$CQ$1028, MATCH($A35, '[2]Technical measure database'!$A$5:$A$1028, 0), 6)+1, "Roadmap Goal/Target", "Early R&D (not basic science, but still lab bench)", "Late R&D (cost reduction, performance improvement, may be available to early adopters)", "Early Deployment (savings not yet proven in whole building context)", "Late Deployment (savings proven, but need to transform the market)", "Standards (rule in place, underway, planned, or ready to be planned)") -> 3: Early Deployment (savings not yet proven in whole building context) | G35: =INDEX('[2]Technical measure database'!$A$5:$CQ$1028, MATCH($A35, '[2]Technical measure database'!$A$5:$A$1028, 0), 67) -> 40 | I35: =INDEX('[2]Technical measure database'!$A$5:$CQ$1028,MATCH($A35,'[2]Technical measure database'!$A$5:$A$1028,0),7) -> Commercial | J35: =INDEX('[2]Technical measure database'!$A$5:$CQ$1028, MATCH($A35, '[2]Technical measure database'!$A$5:$A$1028, 0), 71) -> All commercial heating and cooling in existing buildings with unsealed ducts | L35: =INDEX('[2]Technical measure database'!$A$5:$CQ$1028, MATCH($A35, '[2]Technical measure database'!$A$5:$A$1028, 0), 11) -> Energy savings (%) | M35: =INDEX('[2]Technical measure database'!$A$5:$CQ$1028, MATCH($A35, '[2]Technical measure database'!$A$5:$A$1028, 0), 12) -> 0.2 | N35: =INDEX('[2]Technical measure database'!$A$5:$CQ$1028, MATCH($A35, '[2]Technical measure database'!$A$5:$A$1028, 0), 13) -> 0 | O35: 0.2 | Q35: =INDEX('[2]Technical measure database'!$A$5:$CQ$1028, MATCH($A35, '[2]Technical measure database'!$A$5:$A$1028, 0), 15) -> $0.33/sqft installation and materials; 0.075/sqft diagnostics | R35: N/A | S35: N/A | T35: =INDEX('[2]Technical measure database'!$A$5:$CQ$1028, MATCH($A35, '[2]Technical measure database'!$A$5:$A$1028, 0), 18) -> 0.405 | U35: =INDEX('[2]Technical measure database'!$A$5:$CQ$1028, MATCH($A35, '[2]Technical measure database'!$A$5:$A$1028, 0), 19) -> per square foot | W35: =INDEX('[2]Technical measure database'!$A$5:$CQ$1028, MATCH($A35, '[2]Technical measure database'!$A$5:$A$1028, 0), 24) -> Aeroseal website: http://www.aeroseal.com/commercial_duct_sealing.html Primary Source: Modera, M Fixing Duct Leaks in Commercial Buildings ASHRAE Journal June 2005 TIAX. Energy Impact of Commercial Building Controls and Performance Diagnostics?: Market Characterization , Energy Impact of Building Faults and Energy Savings Potential. Construction 413 (2005). | X35: =INDEX('[2]Technical measure database'!$A$5:$CQ$1028, MATCH($A35, '[2]Technical measure database'!$A$5:$A$1028, 0), 25) -> BTP Tool: Using average savings and cost & perormance to get to 97% duct efficiency from Hamilton and ACEEE sources. 7.5 cents/ft2 added for diagnostic testing (TIAX 2005) Appendix B: Modera: 80% heating season duct efficiency (See Figure 2 and measured duct efficiency data cited throughout the article. 7.5 cents/ft2 added for diagnostic testing (TIAX 2005). Nominal sealing cost is 33 cents/ft2 for consistency with Measure 92. Energy savings assumed to be double the savings in new homes from Measure 92.
A36: 131 | C36: =INDEX('[2]Technical measure database'!$A$5:$CQ$1028, MATCH($A36, '[2]Technical measure database'!$A$5:$A$1028, 0), 2) -> Move to standardize efficient magnetic bearing centrifugal chiller | D36: =INDEX('[2]Technical measure database'!$A$5:$CQ$1028, MATCH($A36, '[2]Technical measure database'!$A$5:$A$1028, 0), 3) -> C: Efficient Chiller | E36: =INDEX('[2]Technical measure database'!$A$5:$CQ$1028, MATCH($A36, '[2]Technical measure database'!$A$5:$A$1028, 0), 4) -> System | F36: =INDEX('[2]Technical measure database'!$A$5:$CQ$1028, MATCH($A36, '[2]Technical measure database'!$A$5:$A$1028, 0), 6)&": "&CHOOSE(INDEX('[2]Technical measure database'!$A$5:$CQ$1028, MATCH($A36, '[2]Technical measure database'!$A$5:$A$1028, 0), 6)+1, "Roadmap Goal/Target", "Early R&D (not basic science, but still lab bench)", "Late R&D (cost reduction, performance improvement, may be available to early adopters)", "Early Deployment (savings not yet proven in whole building context)", "Late Deployment (savings proven, but need to transform the market)", "Standards (rule in place, underway, planned, or ready to be planned)") -> 4: Late Deployment (savings proven, but need to transform the market) | G36: =INDEX('[2]Technical measure database'!$A$5:$CQ$1028, MATCH($A36, '[2]Technical measure database'!$A$5:$A$1028, 0), 67) -> 20 | I36: =INDEX('[2]Technical measure database'!$A$5:$CQ$1028,MATCH($A36,'[2]Technical measure database'!$A$5:$A$1028,0),7) -> Commercial | J36: =INDEX('[2]Technical measure database'!$A$5:$CQ$1028, MATCH($A36, '[2]Technical measure database'!$A$5:$A$1028, 0), 71) -> All commercial centrifugal chillers | L36: =INDEX('[2]Technical measure database'!$A$5:$CQ$1028, MATCH($A36, '[2]Technical measure database'!$A$5:$A$1028, 0), 11) -> kW/ton | M36: =INDEX('[2]Technical measure database'!$A$5:$CQ$1028, MATCH($A36, '[2]Technical measure database'!$A$5:$A$1028, 0), 12) -> 1.04 | N36: =INDEX('[2]Technical measure database'!$A$5:$CQ$1028, MATCH($A36, '[2]Technical measure database'!$A$5:$A$1028, 0), 13) -> 0.54 | O36: =1-N36/M36 -> 0.4807692308 | Q36: =INDEX('[2]Technical measure database'!$A$5:$CQ$1028, MATCH($A36, '[2]Technical measure database'!$A$5:$A$1028, 0), 15) -> $100/ton premium | R36: N/A | S36: N/A | T36: =INDEX('[2]Technical measure database'!$A$5:$CQ$1028, MATCH($A36, '[2]Technical measure database'!$A$5:$A$1028, 0), 18) -> 0.3571428571 | U36: =INDEX('[2]Technical measure database'!$A$5:$CQ$1028, MATCH($A36, '[2]Technical measure database'!$A$5:$A$1028, 0), 19) -> per square foot; 1 ton per 280 sq.ft. | W36: =INDEX('[2]Technical measure database'!$A$5:$CQ$1028, MATCH($A36, '[2]Technical measure database'!$A$5:$A$1028, 0), 24) -> Itron_Kema, WSU Primary Source: Kistler, P. & Lintner, W. Evaluation of a Variable-speed Centrifugal Compressor with Magnetic Bearings. U.S. Navy (2010). Desroches, L.-B. et al. Max Tech and Beyond. Lawrence Berkely National Laboratory (2011). | X36: =INDEX('[2]Technical measure database'!$A$5:$CQ$1028, MATCH($A36, '[2]Technical measure database'!$A$5:$A$1028, 0), 25) -> Appendix B: Descroches indicated 26% savings available today and references Kistler showing the 40-60% is possible with R&D Cost and performance from Table 1 and Figure 6
A37: 132 | C37: =INDEX('[2]Technical measure database'!$A$5:$CQ$1028, MATCH($A37, '[2]Technical measure database'!$A$5:$A$1028, 0), 2) -> Demonstrate and deploy low temperature heat pumps, climate zones 1 & 2 (no fuel switching) | D37: =INDEX('[2]Technical measure database'!$A$5:$CQ$1028, MATCH($A37, '[2]Technical measure database'!$A$5:$A$1028, 0), 3) -> R: Cold Climate HP, Coldest CZ | E37: =INDEX('[2]Technical measure database'!$A$5:$CQ$1028, MATCH($A37, '[2]Technical measure database'!$A$5:$A$1028, 0), 4) -> System | F37: =INDEX('[2]Technical measure database'!$A$5:$CQ$1028, MATCH($A37, '[2]Technical measure database'!$A$5:$A$1028, 0), 6)&": "&CHOOSE(INDEX('[2]Technical measure database'!$A$5:$CQ$1028, MATCH($A37, '[2]Technical measure database'!$A$5:$A$1028, 0), 6)+1, "Roadmap Goal/Target", "Early R&D (not basic science, but still lab bench)", "Late R&D (cost reduction, performance improvement, may be available to early adopters)", "Early Deployment (savings not yet proven in whole building context)", "Late Deployment (savings proven, but need to transform the market)", "Standards (rule in place, underway, planned, or ready to be planned)") -> 2: Late R&D (cost reduction, performance improvement, may be available to early adopters) | G37: =INDEX('[2]Technical measure database'!$A$5:$CQ$1028, MATCH($A37, '[2]Technical measure database'!$A$5:$A$1028, 0), 67) -> 20 | I37: =INDEX('[2]Technical measure database'!$A$5:$CQ$1028,MATCH($A37,'[2]Technical measure database'!$A$5:$A$1028,0),7) -> Residential | J37: =INDEX('[2]Technical measure database'!$A$5:$CQ$1028, MATCH($A37, '[2]Technical measure database'!$A$5:$A$1028, 0), 71) -> Electric heating, proportion of cooling in coldest 2 climates | L37: =INDEX('[2]Technical measure database'!$A$5:$CQ$1028, MATCH($A37, '[2]Technical measure database'!$A$5:$A$1028, 0), 11) -> Energy Savings (%) | M37: =INDEX('[2]Technical measure database'!$A$5:$CQ$1028, MATCH($A37, '[2]Technical measure database'!$A$5:$A$1028, 0), 12) -> 0.2737312638 | N37: =INDEX('[2]Technical measure database'!$A$5:$CQ$1028, MATCH($A37, '[2]Technical measure database'!$A$5:$A$1028, 0), 13) -> 0 | O37: =M37-N37 -> 0.2737312638 | Q37: =INDEX('[2]Technical measure database'!$A$5:$CQ$1028, MATCH($A37, '[2]Technical measure database'!$A$5:$A$1028, 0), 15) -> $3000 incremental cost | R37: =INDEX('[2]Technical measure database'!$A$5:$CQ$1028, MATCH($A37, '[2]Technical measure database'!$A$5:$A$1028, 0), 16) -> 4680 | S37: =INDEX('[2]Technical measure database'!$A$5:$CQ$1028, MATCH($A37, '[2]Technical measure database'!$A$5:$A$1028, 0), 17) -> 7680 | T37: =INDEX('[2]Technical measure database'!$A$5:$CQ$1028, MATCH($A37, '[2]Technical measure database'!$A$5:$A$1028, 0), 18) -> 3000 | U37: =INDEX('[2]Technical measure database'!$A$5:$CQ$1028, MATCH($A37, '[2]Technical measure database'!$A$5:$A$1028, 0), 19) -> per home; 3 tons | W37: =INDEX('[2]Technical measure database'!$A$5:$CQ$1028, MATCH($A37, '[2]Technical measure database'!$A$5:$A$1028, 0), 24) -> Hallowell International; Bouza; ACEEE (Sachs et al, 2009, "Emerging Energy-Saving HVAC Technologies and Practices for the Buildings Sector") Primary Source: Sachs et al, 2009, "Emerging Energy-Saving HVAC Technologies and Practices for the Buildings Sector" Hallowell International; Personal communication: Bouza, DOE | X37: =INDEX('[2]Technical measure database'!$A$5:$CQ$1028, MATCH($A37, '[2]Technical measure database'!$A$5:$A$1028, 0), 25) -> BTP Tool: 72/191/16 TBTU's for ASHP/Res/Cooling : COP 2.9 calculated on additional data tab rows 319-325 Appendix B: Sachs represents current units offering 26% savings; Initial tests of DOE funded technology show 69% savings Cost estimated from FOA funding target
A38: 135 | C38: =INDEX('[2]Technical measure database'!$A$5:$CQ$1028, MATCH($A38, '[2]Technical measure database'!$A$5:$A$1028, 0), 2) -> Research, demonstrate, and deploy air-to-air heat exchangers in homes | D38: =INDEX('[2]Technical measure database'!$A$5:$CQ$1028, MATCH($A38, '[2]Technical measure database'!$A$5:$A$1028, 0), 3) -> R: Air-to-Air Exchangers | E38: =INDEX('[2]Technical measure database'!$A$5:$CQ$1028, MATCH($A38, '[2]Technical measure database'!$A$5:$A$1028, 0), 4) -> Use Intensity | F38: =INDEX('[2]Technical measure database'!$A$5:$CQ$1028, MATCH($A38, '[2]Technical measure database'!$A$5:$A$1028, 0), 6)&": "&CHOOSE(INDEX('[2]Technical measure database'!$A$5:$CQ$1028, MATCH($A38, '[2]Technical measure database'!$A$5:$A$1028, 0), 6)+1, "Roadmap Goal/Target", "Early R&D (not basic science, but still lab bench)", "Late R&D (cost reduction, performance improvement, may be available to early adopters)", "Early Deployment (savings not yet proven in whole building context)", "Late Deployment (savings proven, but need to transform the market)", "Standards (rule in place, underway, planned, or ready to be planned)") -> 3: Early Deployment (savings not yet proven in whole building context) | G38: =INDEX('[2]Technical measure database'!$A$5:$CQ$1028, MATCH($A38, '[2]Technical measure database'!$A$5:$A$1028, 0), 67) -> 10 | I38: =INDEX('[2]Technical measure database'!$A$5:$CQ$1028,MATCH($A38,'[2]Technical measure database'!$A$5:$A$1028,0),7) -> Residential | J38: =INDEX('[2]Technical measure database'!$A$5:$CQ$1028, MATCH($A38, '[2]Technical measure database'!$A$5:$A$1028, 0), 71) -> Total residential heating energy consumption | L38: =INDEX('[2]Technical measure database'!$A$5:$CQ$1028, MATCH($A38, '[2]Technical measure database'!$A$5:$A$1028, 0), 11) -> Energy savings (%) | M38: =INDEX('[2]Technical measure database'!$A$5:$CQ$1028, MATCH($A38, '[2]Technical measure database'!$A$5:$A$1028, 0), 12) -> 0.068125 | N38: =INDEX('[2]Technical measure database'!$A$5:$CQ$1028, MATCH($A38, '[2]Technical measure database'!$A$5:$A$1028, 0), 13) -> 0 | O38: 0.068125 | Q38: =INDEX('[2]Technical measure database'!$A$5:$CQ$1028, MATCH($A38, '[2]Technical measure database'!$A$5:$A$1028, 0), 15) -> 1838 | R38: =INDEX('[2]Technical measure database'!$A$5:$CQ$1028, MATCH($A38, '[2]Technical measure database'!$A$5:$A$1028, 0), 16) -> 463 | S38: =INDEX('[2]Technical measure database'!$A$5:$CQ$1028, MATCH($A38, '[2]Technical measure database'!$A$5:$A$1028, 0), 17) -> 1375 | T38: =INDEX('[2]Technical measure database'!$A$5:$CQ$1028, MATCH($A38, '[2]Technical measure database'!$A$5:$A$1028, 0), 18) -> 912 | U38: =INDEX('[2]Technical measure database'!$A$5:$CQ$1028, MATCH($A38, '[2]Technical measure database'!$A$5:$A$1028, 0), 19) -> per home; 100 cfm air excahnge | W38: =INDEX('[2]Technical measure database'!$A$5:$CQ$1028, MATCH($A38, '[2]Technical measure database'!$A$5:$A$1028, 0), 24) -> Beopt default costs Primary Source: Hellevang, K. & Pedersen, C. Air-to-Air Heat Exchangers. North Dakota State University (2009) | X38: =INDEX('[2]Technical measure database'!$A$5:$CQ$1028, MATCH($A38, '[2]Technical measure database'!$A$5:$A$1028, 0), 25) -> BTP Tool: Exhaust ventilation and energy recovery ventilator Appendix B: Estimated from first principles using 3,000 HDD as U.S. average, 45 CFM as air handling treated to calculate maximum heating savings
A39: 141 | C39: =INDEX('[2]Technical measure database'!$A$5:$CQ$1028, MATCH($A39, '[2]Technical measure database'!$A$5:$A$1028, 0), 2) -> Demonstrate and deploy demand control ventilation in commercial buildings | D39: =INDEX('[2]Technical measure database'!$A$5:$CQ$1028, MATCH($A39, '[2]Technical measure database'!$A$5:$A$1028, 0), 3) -> C: Demand Ventilation | E39: =INDEX('[2]Technical measure database'!$A$5:$CQ$1028, MATCH($A39, '[2]Technical measure database'!$A$5:$A$1028, 0), 4) -> Use intensity | F39: =INDEX('[2]Technical measure database'!$A$5:$CQ$1028, MATCH($A39, '[2]Technical measure database'!$A$5:$A$1028, 0), 6)&": "&CHOOSE(INDEX('[2]Technical measure database'!$A$5:$CQ$1028, MATCH($A39, '[2]Technical measure database'!$A$5:$A$1028, 0), 6)+1, "Roadmap Goal/Target", "Early R&D (not basic science, but still lab bench)", "Late R&D (cost reduction, performance improvement, may be available to early adopters)", "Early Deployment (savings not yet proven in whole building context)", "Late Deployment (savings proven, but need to transform the market)", "Standards (rule in place, underway, planned, or ready to be planned)") -> 4: Late Deployment (savings proven, but need to transform the market) | G39: =INDEX('[2]Technical measure database'!$A$5:$CQ$1028, MATCH($A39, '[2]Technical measure database'!$A$5:$A$1028, 0), 67) -> 10 | I39: =INDEX('[2]Technical measure database'!$A$5:$CQ$1028,MATCH($A39,'[2]Technical measure database'!$A$5:$A$1028,0),7) -> Commercial | J39: =INDEX('[2]Technical measure database'!$A$5:$CQ$1028, MATCH($A39, '[2]Technical measure database'!$A$5:$A$1028, 0), 71) -> All commercial HVAC energy use | L39: =INDEX('[2]Technical measure database'!$A$5:$CQ$1028, MATCH($A39, '[2]Technical measure database'!$A$5:$A$1028, 0), 11) -> Energy savings (%) | M39: =INDEX('[2]Technical measure database'!$A$5:$CQ$1028, MATCH($A39, '[2]Technical measure database'!$A$5:$A$1028, 0), 12) -> 0.2 | N39: =INDEX('[2]Technical measure database'!$A$5:$CQ$1028, MATCH($A39, '[2]Technical measure database'!$A$5:$A$1028, 0), 13) -> 0 | O39: 0.2 | Q39: =INDEX('[2]Technical measure database'!$A$5:$CQ$1028, MATCH($A39, '[2]Technical measure database'!$A$5:$A$1028, 0), 15) -> $800/zone | R39: =INDEX('[2]Technical measure database'!$A$5:$CQ$1028, MATCH($A39, '[2]Technical measure database'!$A$5:$A$1028, 0), 16) -> 0 | S39: =INDEX('[2]Technical measure database'!$A$5:$CQ$1028, MATCH($A39, '[2]Technical measure database'!$A$5:$A$1028, 0), 17) -> 0.54 | T39: =INDEX('[2]Technical measure database'!$A$5:$CQ$1028, MATCH($A39, '[2]Technical measure database'!$A$5:$A$1028, 0), 18) -> 0.54 | U39: =INDEX('[2]Technical measure database'!$A$5:$CQ$1028, MATCH($A39, '[2]Technical measure database'!$A$5:$A$1028, 0), 19) -> per square foot; $800/zone | W39: =INDEX('[2]Technical measure database'!$A$5:$CQ$1028, MATCH($A39, '[2]Technical measure database'!$A$5:$A$1028, 0), 24) -> FEMP Technology alert DOE/E-0293 Primary Source: Goetzler, W., Zogg, R., Burgos, J., Hiraiwa, H. & Young, J. Energy Savings Potential and RD & D Opportunities for Commercial Building HVAC Systems. Navigant Consulting (2011) | X39: =INDEX('[2]Technical measure database'!$A$5:$CQ$1028, MATCH($A39, '[2]Technical measure database'!$A$5:$A$1028, 0), 25) -> BTP Tool: System improvement assuming 1.4 yr payback Appendix B: Page 16: "These savings are equivalent to a 10% reduction in total energy costs" Page 11: "For a new system to be installed will generally cost $600-$700 per zone; retrofit at $700-$900/zone" Used 10% total energy savings -> 20% HVAC savings; using average retrofit cost as that is the majority of the opportunity
A40: 144 | C40: =INDEX('[2]Technical measure database'!$A$5:$CQ$1028, MATCH($A40, '[2]Technical measure database'!$A$5:$A$1028, 0), 2) -> Demonstrate and deploy dual source heat pumps in homes in non-coldest climates, no fuel switching | D40: =INDEX('[2]Technical measure database'!$A$5:$CQ$1028, MATCH($A40, '[2]Technical measure database'!$A$5:$A$1028, 0), 3) -> R: Dual Source HP | E40: =INDEX('[2]Technical measure database'!$A$5:$CQ$1028, MATCH($A40, '[2]Technical measure database'!$A$5:$A$1028, 0), 4) -> System | F40: =INDEX('[2]Technical measure database'!$A$5:$CQ$1028, MATCH($A40, '[2]Technical measure database'!$A$5:$A$1028, 0), 6)&": "&CHOOSE(INDEX('[2]Technical measure database'!$A$5:$CQ$1028, MATCH($A40, '[2]Technical measure database'!$A$5:$A$1028, 0), 6)+1, "Roadmap Goal/Target", "Early R&D (not basic science, but still lab bench)", "Late R&D (cost reduction, performance improvement, may be available to early adopters)", "Early Deployment (savings not yet proven in whole building context)", "Late Deployment (savings proven, but need to transform the market)", "Standards (rule in place, underway, planned, or ready to be planned)") -> 4: Late Deployment (savings proven, but need to transform the market) | G40: =INDEX('[2]Technical measure database'!$A$5:$CQ$1028, MATCH($A40, '[2]Technical measure database'!$A$5:$A$1028, 0), 67) -> 30 | I40: =INDEX('[2]Technical measure database'!$A$5:$CQ$1028,MATCH($A40,'[2]Technical measure database'!$A$5:$A$1028,0),7) -> Residential | J40: =INDEX('[2]Technical measure database'!$A$5:$CQ$1028, MATCH($A40, '[2]Technical measure database'!$A$5:$A$1028, 0), 71) -> Electric heating, proportion of cooling not in coldest 2 climates | L40: =INDEX('[2]Technical measure database'!$A$5:$CQ$1028, MATCH($A40, '[2]Technical measure database'!$A$5:$A$1028, 0), 11) -> Energy savings (%) | M40: =INDEX('[2]Technical measure database'!$A$5:$CQ$1028, MATCH($A40, '[2]Technical measure database'!$A$5:$A$1028, 0), 12) -> 0.3430357143 | N40: =INDEX('[2]Technical measure database'!$A$5:$CQ$1028, MATCH($A40, '[2]Technical measure database'!$A$5:$A$1028, 0), 13) -> 0 | O40: 0.3430357143 | Q40: =INDEX('[2]Technical measure database'!$A$5:$CQ$1028, MATCH($A40, '[2]Technical measure database'!$A$5:$A$1028, 0), 15) -> $3000/ton ground | R40: =INDEX('[2]Technical measure database'!$A$5:$CQ$1028, MATCH($A40, '[2]Technical measure database'!$A$5:$A$1028, 0), 16) -> 4680 | S40: =INDEX('[2]Technical measure database'!$A$5:$CQ$1028, MATCH($A40, '[2]Technical measure database'!$A$5:$A$1028, 0), 17) -> 7560 | T40: =INDEX('[2]Technical measure database'!$A$5:$CQ$1028, MATCH($A40, '[2]Technical measure database'!$A$5:$A$1028, 0), 18) -> 2880 | U40: =INDEX('[2]Technical measure database'!$A$5:$CQ$1028, MATCH($A40, '[2]Technical measure database'!$A$5:$A$1028, 0), 19) -> per home; 3 ton total, 2 ton ground | W40: =INDEX('[2]Technical measure database'!$A$5:$CQ$1028, MATCH($A40, '[2]Technical measure database'!$A$5:$A$1028, 0), 24) -> FEMP Technology alert DOE/E-0220; savings and costs relative to ASHP. Ground loop from Navigant 2009 (Ground‐Source Heat Pumps: Overview of Market Status, Barriers to Adoption, and Options for Overcoming Barriers) $3000/ton for residential retrofit. Baseline cost from NREL Retrofit Measures Database. Primary Source: Hadley, D., Collins, T., Parkerk, S., Cornett, G. & Cavedo, F. Energy Savings from Dual-Source Heat Pump Technology Federal Energy Management Program E-0220 (2000) | X40: =INDEX('[2]Technical measure database'!$A$5:$CQ$1028, MATCH($A40, '[2]Technical measure database'!$A$5:$A$1028, 0), 25) -> BTP Tool: Savings over ASHP: 38% heating, 15% cooling. Cost of system based on 2/3 GSHP and 1/3 ASHP. Appendix B: "At the main U.S. Post Office facility in Valrico, three air- source heat pumps were retrofitted with the dual-source technology, reducing daily energy use by nearly 38%" Multiple case studies used for average of 34% savings from ASHP
A41: 146 | C41: =INDEX('[2]Technical measure database'!$A$5:$CQ$1028, MATCH($A41, '[2]Technical measure database'!$A$5:$A$1028, 0), 2) -> Demonstrate and deploy dual source heat pumps in commercial buildings in non-coldest climates, no fuel switching | D41: =INDEX('[2]Technical measure database'!$A$5:$CQ$1028, MATCH($A41, '[2]Technical measure database'!$A$5:$A$1028, 0), 3) -> C: Dual Source HP | E41: =INDEX('[2]Technical measure database'!$A$5:$CQ$1028, MATCH($A41, '[2]Technical measure database'!$A$5:$A$1028, 0), 4) -> System | F41: =INDEX('[2]Technical measure database'!$A$5:$CQ$1028, MATCH($A41, '[2]Technical measure database'!$A$5:$A$1028, 0), 6)&": "&CHOOSE(INDEX('[2]Technical measure database'!$A$5:$CQ$1028, MATCH($A41, '[2]Technical measure database'!$A$5:$A$1028, 0), 6)+1, "Roadmap Goal/Target", "Early R&D (not basic science, but still lab bench)", "Late R&D (cost reduction, performance improvement, may be available to early adopters)", "Early Deployment (savings not yet proven in whole building context)", "Late Deployment (savings proven, but need to transform the market)", "Standards (rule in place, underway, planned, or ready to be planned)") -> 4: Late Deployment (savings proven, but need to transform the market) | G41: =INDEX('[2]Technical measure database'!$A$5:$CQ$1028, MATCH($A41, '[2]Technical measure database'!$A$5:$A$1028, 0), 67) -> 30 | I41: =INDEX('[2]Technical measure database'!$A$5:$CQ$1028,MATCH($A41,'[2]Technical measure database'!$A$5:$A$1028,0),7) -> Commercial | J41: =INDEX('[2]Technical measure database'!$A$5:$CQ$1028, MATCH($A41, '[2]Technical measure database'!$A$5:$A$1028, 0), 71) -> Electric space heating, proportion of cooling, excluding coldest climate | L41: =INDEX('[2]Technical measure database'!$A$5:$CQ$1028, MATCH($A41, '[2]Technical measure database'!$A$5:$A$1028, 0), 11) -> Energy savings (%) | M41: =INDEX('[2]Technical measure database'!$A$5:$CQ$1028, MATCH($A41, '[2]Technical measure database'!$A$5:$A$1028, 0), 12) -> 0.3430357143 | N41: =INDEX('[2]Technical measure database'!$A$5:$CQ$1028, MATCH($A41, '[2]Technical measure database'!$A$5:$A$1028, 0), 13) -> 0 | O41: 0.3430357143 | Q41: =INDEX('[2]Technical measure database'!$A$5:$CQ$1028, MATCH($A41, '[2]Technical measure database'!$A$5:$A$1028, 0), 15) -> $7000/ton ground | R41: =INDEX('[2]Technical measure database'!$A$5:$CQ$1028, MATCH($A41, '[2]Technical measure database'!$A$5:$A$1028, 0), 16) -> 8.65 | S41: =INDEX('[2]Technical measure database'!$A$5:$CQ$1028, MATCH($A41, '[2]Technical measure database'!$A$5:$A$1028, 0), 17) -> 11.15416667 | T41: =INDEX('[2]Technical measure database'!$A$5:$CQ$1028, MATCH($A41, '[2]Technical measure database'!$A$5:$A$1028, 0), 18) -> 2.504166667 | U41: =INDEX('[2]Technical measure database'!$A$5:$CQ$1028, MATCH($A41, '[2]Technical measure database'!$A$5:$A$1028, 0), 19) -> per square foot; 40 ton total, 10 ton ground assumed for 15,000 sq.ft. buildings | W41: =INDEX('[2]Technical measure database'!$A$5:$CQ$1028, MATCH($A41, '[2]Technical measure database'!$A$5:$A$1028, 0), 24) -> FEMP Technology alert DOE/E-0220; savings relative to ASHP. Baseline cost from RS Means Assemblies Cost Data, 33rd Edition ($8.65 for 40 ton packaged rooftop heat pump, including ductwork and controls). ORNL Residential Retrofti Tech potential ($7000/ton for commercial retrofit) Primary Source: Hadley, D., Collins, T., Parkerk, S., Cornett, G. & Cavedo, F. Energy Savings from Dual-Source Heat Pump Technology Federal Energy Management Program E-0220 (2000) | X41: =INDEX('[2]Technical measure database'!$A$5:$CQ$1028, MATCH($A41, '[2]Technical measure database'!$A$5:$A$1028, 0), 25) -> BTP Tool: Savings over ASHP: 38% heating, 15% cooling Appendix B: "At the main U.S. Post Office facility in Valrico, three air- source heat pumps were retrofitted with the dual-source technology, reducing daily energy use by nearly 38%" Multiple case studies used for average of 34% savings from ASHP
A42: 150 | C42: =INDEX('[2]Technical measure database'!$A$5:$CQ$1028, MATCH($A42, '[2]Technical measure database'!$A$5:$A$1028, 0), 2) -> Research, demonstrate, and deploy natural gas powered GAX heat pumps in homes | D42: =INDEX('[2]Technical measure database'!$A$5:$CQ$1028, MATCH($A42, '[2]Technical measure database'!$A$5:$A$1028, 0), 3) -> R: GAX Heat Pump | E42: =INDEX('[2]Technical measure database'!$A$5:$CQ$1028, MATCH($A42, '[2]Technical measure database'!$A$5:$A$1028, 0), 4) -> System | F42: =INDEX('[2]Technical measure database'!$A$5:$CQ$1028, MATCH($A42, '[2]Technical measure database'!$A$5:$A$1028, 0), 6)&": "&CHOOSE(INDEX('[2]Technical measure database'!$A$5:$CQ$1028, MATCH($A42, '[2]Technical measure database'!$A$5:$A$1028, 0), 6)+1, "Roadmap Goal/Target", "Early R&D (not basic science, but still lab bench)", "Late R&D (cost reduction, performance improvement, may be available to early adopters)", "Early Deployment (savings not yet proven in whole building context)", "Late Deployment (savings proven, but need to transform the market)", "Standards (rule in place, underway, planned, or ready to be planned)") -> 1: Early R&D (not basic science, but still lab bench) | G42: =INDEX('[2]Technical measure database'!$A$5:$CQ$1028, MATCH($A42, '[2]Technical measure database'!$A$5:$A$1028, 0), 67) -> 20 | I42: =INDEX('[2]Technical measure database'!$A$5:$CQ$1028,MATCH($A42,'[2]Technical measure database'!$A$5:$A$1028,0),7) -> Residential | J42: =INDEX('[2]Technical measure database'!$A$5:$CQ$1028, MATCH($A42, '[2]Technical measure database'!$A$5:$A$1028, 0), 71) -> All non-electric heating, proportion of cooling | L42: =INDEX('[2]Technical measure database'!$A$5:$CQ$1028, MATCH($A42, '[2]Technical measure database'!$A$5:$A$1028, 0), 11) -> COP | M42: =INDEX('[2]Technical measure database'!$A$5:$CQ$1028, MATCH($A42, '[2]Technical measure database'!$A$5:$A$1028, 0), 12) -> 1.26 | N42: =INDEX('[2]Technical measure database'!$A$5:$CQ$1028, MATCH($A42, '[2]Technical measure database'!$A$5:$A$1028, 0), 13) -> 0.835307 | O42: =1-(N42/M42) -> 0.3370579365 | Q42: =INDEX('[2]Technical measure database'!$A$5:$CQ$1028, MATCH($A42, '[2]Technical measure database'!$A$5:$A$1028, 0), 15) -> "Same as GSHP" | R42: =INDEX('[2]Technical measure database'!$A$5:$CQ$1028, MATCH($A42, '[2]Technical measure database'!$A$5:$A$1028, 0), 16) -> 0 | S42: =INDEX('[2]Technical measure database'!$A$5:$CQ$1028, MATCH($A42, '[2]Technical measure database'!$A$5:$A$1028, 0), 17) -> 14400 | T42: =INDEX('[2]Technical measure database'!$A$5:$CQ$1028, MATCH($A42, '[2]Technical measure database'!$A$5:$A$1028, 0), 18) -> 14400 | U42: =INDEX('[2]Technical measure database'!$A$5:$CQ$1028, MATCH($A42, '[2]Technical measure database'!$A$5:$A$1028, 0), 19) -> per home; 3 tons | W42: =INDEX('[2]Technical measure database'!$A$5:$CQ$1028, MATCH($A42, '[2]Technical measure database'!$A$5:$A$1028, 0), 24) -> http://www.ornl.gov/sci/btc/apps/gax.htm, Jawahar et. Al. Primary Source: Jawahar, C.P. & Saravanan, R. Generator absorber heat exchange based absorption cycle—A review. Renewable and Sustainable Energy Reviews 14, 2372-2382 (2010) Other Supporting Sources: Goffman, E. The Other Heat Pump. The Environmental Magazine 11-12 (2010) | X42: =INDEX('[2]Technical measure database'!$A$5:$CQ$1028, MATCH($A42, '[2]Technical measure database'!$A$5:$A$1028, 0), 25) -> BTP Tool: COP of 1.5 heating, 0.7 cooling Appendix B: Review indicates COP of 2.0/1.0 demonstrated; commercialization more likely at 1.5/0.7 "The initial cost is comparable with geothermal" COP of 1.5 heating, 0.7 cooling
A43: 151 | C43: =INDEX('[2]Technical measure database'!$A$5:$CQ$1028, MATCH($A43, '[2]Technical measure database'!$A$5:$A$1028, 0), 2) -> Research, demonstrate, and deploy natural gas powered GAX heat pumps in commercial buildings | D43: =INDEX('[2]Technical measure database'!$A$5:$CQ$1028, MATCH($A43, '[2]Technical measure database'!$A$5:$A$1028, 0), 3) -> C: GAX Heat Pump | E43: =INDEX('[2]Technical measure database'!$A$5:$CQ$1028, MATCH($A43, '[2]Technical measure database'!$A$5:$A$1028, 0), 4) -> System | F43: =INDEX('[2]Technical measure database'!$A$5:$CQ$1028, MATCH($A43, '[2]Technical measure database'!$A$5:$A$1028, 0), 6)&": "&CHOOSE(INDEX('[2]Technical measure database'!$A$5:$CQ$1028, MATCH($A43, '[2]Technical measure database'!$A$5:$A$1028, 0), 6)+1, "Roadmap Goal/Target", "Early R&D (not basic science, but still lab bench)", "Late R&D (cost reduction, performance improvement, may be available to early adopters)", "Early Deployment (savings not yet proven in whole building context)", "Late Deployment (savings proven, but need to transform the market)", "Standards (rule in place, underway, planned, or ready to be planned)") -> 2: Late R&D (cost reduction, performance improvement, may be available to early adopters) | G43: =INDEX('[2]Technical measure database'!$A$5:$CQ$1028, MATCH($A43, '[2]Technical measure database'!$A$5:$A$1028, 0), 67) -> 20 | I43: =INDEX('[2]Technical measure database'!$A$5:$CQ$1028,MATCH($A43,'[2]Technical measure database'!$A$5:$A$1028,0),7) -> Commercial | J43: =INDEX('[2]Technical measure database'!$A$5:$CQ$1028, MATCH($A43, '[2]Technical measure database'!$A$5:$A$1028, 0), 71) -> Electric space heating, proportion of cooling, excluding coldest climate | L43: =INDEX('[2]Technical measure database'!$A$5:$CQ$1028, MATCH($A43, '[2]Technical measure database'!$A$5:$A$1028, 0), 11) -> COP | M43: =INDEX('[2]Technical measure database'!$A$5:$CQ$1028, MATCH($A43, '[2]Technical measure database'!$A$5:$A$1028, 0), 12) -> 1.26 | N43: =INDEX('[2]Technical measure database'!$A$5:$CQ$1028, MATCH($A43, '[2]Technical measure database'!$A$5:$A$1028, 0), 13) -> 0.771061 | O43: =1-(N43/M43) -> 0.3880468254 | Q43: =INDEX('[2]Technical measure database'!$A$5:$CQ$1028, MATCH($A43, '[2]Technical measure database'!$A$5:$A$1028, 0), 15) -> "Same as GSHP" | R43: =INDEX('[2]Technical measure database'!$A$5:$CQ$1028, MATCH($A43, '[2]Technical measure database'!$A$5:$A$1028, 0), 16) -> 8.65 | S43: =INDEX('[2]Technical measure database'!$A$5:$CQ$1028, MATCH($A43, '[2]Technical measure database'!$A$5:$A$1028, 0), 17) -> 18.66666667 | T43: =INDEX('[2]Technical measure database'!$A$5:$CQ$1028, MATCH($A43, '[2]Technical measure database'!$A$5:$A$1028, 0), 18) -> 10.01666667 | U43: =INDEX('[2]Technical measure database'!$A$5:$CQ$1028, MATCH($A43, '[2]Technical measure database'!$A$5:$A$1028, 0), 19) -> per square foot; 40 tons for 15,000 sq.ft. | W43: =INDEX('[2]Technical measure database'!$A$5:$CQ$1028, MATCH($A43, '[2]Technical measure database'!$A$5:$A$1028, 0), 24) -> http://www.ornl.gov/sci/btc/apps/gax.htm, Jawahar et. Al. Primary Source: Jawahar, C.P. & Saravanan, R. Generator absorber heat exchange based absorption cycle—A review. Renewable and Sustainable Energy Reviews 14, 2372-2382 (2010) Other Supporting Sources: Goffman, E. The Other Heat Pump. The Environmental Magazine 11-12 (2010) | X43: =INDEX('[2]Technical measure database'!$A$5:$CQ$1028, MATCH($A43, '[2]Technical measure database'!$A$5:$A$1028, 0), 25) -> BTP Tool: COP of 1.5 heating, 0.7 cooling Appendix B: Review indicates COP of 2.0/1.0 demonstrated; commercialization more likely at 1.5/0.7 "The initial cost is comparable with geothermal" COP of 1.5 heating, 0.7 cooling
A44: 161 | C44: =INDEX('[2]Technical measure database'!$A$5:$CQ$1028, MATCH($A44, '[2]Technical measure database'!$A$5:$A$1028, 0), 2) -> Demonstrate and deploy minisplit heat pumps in homes | D44: =INDEX('[2]Technical measure database'!$A$5:$CQ$1028, MATCH($A44, '[2]Technical measure database'!$A$5:$A$1028, 0), 3) -> R: Minisplits | E44: =INDEX('[2]Technical measure database'!$A$5:$CQ$1028, MATCH($A44, '[2]Technical measure database'!$A$5:$A$1028, 0), 4) -> System | F44: =INDEX('[2]Technical measure database'!$A$5:$CQ$1028, MATCH($A44, '[2]Technical measure database'!$A$5:$A$1028, 0), 6)&": "&CHOOSE(INDEX('[2]Technical measure database'!$A$5:$CQ$1028, MATCH($A44, '[2]Technical measure database'!$A$5:$A$1028, 0), 6)+1, "Roadmap Goal/Target", "Early R&D (not basic science, but still lab bench)", "Late R&D (cost reduction, performance improvement, may be available to early adopters)", "Early Deployment (savings not yet proven in whole building context)", "Late Deployment (savings proven, but need to transform the market)", "Standards (rule in place, underway, planned, or ready to be planned)") -> 4: Late Deployment (savings proven, but need to transform the market) | G44: =INDEX('[2]Technical measure database'!$A$5:$CQ$1028, MATCH($A44, '[2]Technical measure database'!$A$5:$A$1028, 0), 67) -> 20 | I44: =INDEX('[2]Technical measure database'!$A$5:$CQ$1028,MATCH($A44,'[2]Technical measure database'!$A$5:$A$1028,0),7) -> Residential | J44: =INDEX('[2]Technical measure database'!$A$5:$CQ$1028, MATCH($A44, '[2]Technical measure database'!$A$5:$A$1028, 0), 71) -> Minisplit: Electric heating & cooling in all new homes + 40% of existing homes | L44: =INDEX('[2]Technical measure database'!$A$5:$CQ$1028, MATCH($A44, '[2]Technical measure database'!$A$5:$A$1028, 0), 11) -> Energy savings (%) | M44: =INDEX('[2]Technical measure database'!$A$5:$CQ$1028, MATCH($A44, '[2]Technical measure database'!$A$5:$A$1028, 0), 12) -> 0.4 | N44: =INDEX('[2]Technical measure database'!$A$5:$CQ$1028, MATCH($A44, '[2]Technical measure database'!$A$5:$A$1028, 0), 13) -> 0 | O44: =M44-N44 -> 0.4 | Q44: =INDEX('[2]Technical measure database'!$A$5:$CQ$1028, MATCH($A44, '[2]Technical measure database'!$A$5:$A$1028, 0), 15) -> ACEEE claims 30% price premium | R44: =INDEX('[2]Technical measure database'!$A$5:$CQ$1028, MATCH($A44, '[2]Technical measure database'!$A$5:$A$1028, 0), 16) -> 4680 | S44: =INDEX('[2]Technical measure database'!$A$5:$CQ$1028, MATCH($A44, '[2]Technical measure database'!$A$5:$A$1028, 0), 17) -> 6084 | T44: =INDEX('[2]Technical measure database'!$A$5:$CQ$1028, MATCH($A44, '[2]Technical measure database'!$A$5:$A$1028, 0), 18) -> 1404 | U44: =INDEX('[2]Technical measure database'!$A$5:$CQ$1028, MATCH($A44, '[2]Technical measure database'!$A$5:$A$1028, 0), 19) -> per home; 3 tons capacity (3 indoor units for mini-split) | W44: =INDEX('[2]Technical measure database'!$A$5:$CQ$1028, MATCH($A44, '[2]Technical measure database'!$A$5:$A$1028, 0), 24) -> ACEEE; BOA report; NREL measure database for standard A/C cost Primary Source: Geraghty, K., Baylon, D. & Davis, B. Residential Ductless Mini-Split Heat Pump Retrofit Monitoring. Bonneville Power Administration (2009). Desroches, L.-B. et al. Max Tech and Beyond, Appendix F. Lawrence Berkeley National Laboratory (2011). | X44: =INDEX('[2]Technical measure database'!$A$5:$CQ$1028, MATCH($A44, '[2]Technical measure database'!$A$5:$A$1028, 0), 25) -> Appendix B: Geraghty: Table 4 suggests 44% savings for heating; Table 6- total savings of 28% Price from google seach suggests ~30% price premium
A45: 553 | C45: =INDEX('[2]Technical measure database'!$A$5:$CQ$1028, MATCH($A45, '[2]Technical measure database'!$A$5:$A$1028, 0), 2) -> Deploy ground source heat pumps to all single family homes, no fuel switching | D45: =INDEX('[2]Technical measure database'!$A$5:$CQ$1028, MATCH($A45, '[2]Technical measure database'!$A$5:$A$1028, 0), 3) -> R: Single Family GSHP | E45: =INDEX('[2]Technical measure database'!$A$5:$CQ$1028, MATCH($A45, '[2]Technical measure database'!$A$5:$A$1028, 0), 4) -> System | F45: =INDEX('[2]Technical measure database'!$A$5:$CQ$1028, MATCH($A45, '[2]Technical measure database'!$A$5:$A$1028, 0), 6)&": "&CHOOSE(INDEX('[2]Technical measure database'!$A$5:$CQ$1028, MATCH($A45, '[2]Technical measure database'!$A$5:$A$1028, 0), 6)+1, "Roadmap Goal/Target", "Early R&D (not basic science, but still lab bench)", "Late R&D (cost reduction, performance improvement, may be available to early adopters)", "Early Deployment (savings not yet proven in whole building context)", "Late Deployment (savings proven, but need to transform the market)", "Standards (rule in place, underway, planned, or ready to be planned)") -> 4: Late Deployment (savings proven, but need to transform the market) | G45: =INDEX('[2]Technical measure database'!$A$5:$CQ$1028, MATCH($A45, '[2]Technical measure database'!$A$5:$A$1028, 0), 67) -> 40 | I45: =INDEX('[2]Technical measure database'!$A$5:$CQ$1028,MATCH($A45,'[2]Technical measure database'!$A$5:$A$1028,0),7) -> Residential | J45: =INDEX('[2]Technical measure database'!$A$5:$CQ$1028, MATCH($A45, '[2]Technical measure database'!$A$5:$A$1028, 0), 71) -> Total electric heating and hot water consumption, as a proportion of cooling | L45: =INDEX('[2]Technical measure database'!$A$5:$CQ$1028, MATCH($A45, '[2]Technical measure database'!$A$5:$A$1028, 0), 11) -> Energy Savings (%) | M45: =INDEX('[2]Technical measure database'!$A$5:$CQ$1028, MATCH($A45, '[2]Technical measure database'!$A$5:$A$1028, 0), 12) -> 0.648 | N45: =INDEX('[2]Technical measure database'!$A$5:$CQ$1028, MATCH($A45, '[2]Technical measure database'!$A$5:$A$1028, 0), 13) -> 0 | O45: 0.648 | Q45: =INDEX('[2]Technical measure database'!$A$5:$CQ$1028, MATCH($A45, '[2]Technical measure database'!$A$5:$A$1028, 0), 15) -> $4,800/ton (average of $5,000 and $4,600 from two sources) | R45: =INDEX('[2]Technical measure database'!$A$5:$CQ$1028, MATCH($A45, '[2]Technical measure database'!$A$5:$A$1028, 0), 16) -> 5919 | S45: =INDEX('[2]Technical measure database'!$A$5:$CQ$1028, MATCH($A45, '[2]Technical measure database'!$A$5:$A$1028, 0), 17) -> 20319 | T45: =INDEX('[2]Technical measure database'!$A$5:$CQ$1028, MATCH($A45, '[2]Technical measure database'!$A$5:$A$1028, 0), 18) -> 14400 | U45: =INDEX('[2]Technical measure database'!$A$5:$CQ$1028, MATCH($A45, '[2]Technical measure database'!$A$5:$A$1028, 0), 19) -> per home; 3 ton | W45: =INDEX('[2]Technical measure database'!$A$5:$CQ$1028, MATCH($A45, '[2]Technical measure database'!$A$5:$A$1028, 0), 24) -> ORNL Residential Retrofti Tech potential Primary Source: Liu, X. Assessment of National Benefits from Retrofitting Existing Single-Family Homes with Ground Source Heat Pump Systems. Oak Ridge National Laboratory (2010) Hughes, P.J. Geothermal ( Ground-Source ) Heat Pumps: Market Status , Barriers to Adoption , and Actions to Overcome Barriers. Oak Ridge National Laboratory (2008) Other Supporting Sources: Office of the Deputy Under Secretary of Defense Report to Congress: Ground-Source Heat Pumps at Department of Defense Facilities. (2007) Hughes, P.J. & Shonder, J.A. The Evaluation of a 4000-Home Geothermal Heat Pump Retrofit at Fort Polk , Louisiana: Final Report. Oak Ridge National Laboratory (1998) | X45: =INDEX('[2]Technical measure database'!$A$5:$CQ$1028, MATCH($A45, '[2]Technical measure database'!$A$5:$A$1028, 0), 25) -> BTP Tool: Derated 10% to account for earth heating, etc. Appendix B: savings of [4.2 quads primary energy], a 45% reduction associated with SH–SC–WH in existing U.S. single-family homes Worked with author to disaggregagte into fuel-switching and non-fuel-switching opportunities DoD, perhaps the largest single customer for GHP retrofit projects, reports that in 2006 dollars housing and commercial retrofits cost $4600 and $7000 per ton respectively
A46: 563 | C46: =INDEX('[2]Technical measure database'!$A$5:$CQ$1028, MATCH($A46, '[2]Technical measure database'!$A$5:$A$1028, 0), 2) -> Demonstrate and deploy pre-dehumidification multiple-small plate dehumidifiers in commercial buildings in hot, humid climates | D46: =INDEX('[2]Technical measure database'!$A$5:$CQ$1028, MATCH($A46, '[2]Technical measure database'!$A$5:$A$1028, 0), 3) -> C: MSP Dehumidifier | E46: =INDEX('[2]Technical measure database'!$A$5:$CQ$1028, MATCH($A46, '[2]Technical measure database'!$A$5:$A$1028, 0), 4) -> Use Intensity | F46: =INDEX('[2]Technical measure database'!$A$5:$CQ$1028, MATCH($A46, '[2]Technical measure database'!$A$5:$A$1028, 0), 6)&": "&CHOOSE(INDEX('[2]Technical measure database'!$A$5:$CQ$1028, MATCH($A46, '[2]Technical measure database'!$A$5:$A$1028, 0), 6)+1, "Roadmap Goal/Target", "Early R&D (not basic science, but still lab bench)", "Late R&D (cost reduction, performance improvement, may be available to early adopters)", "Early Deployment (savings not yet proven in whole building context)", "Late Deployment (savings proven, but need to transform the market)", "Standards (rule in place, underway, planned, or ready to be planned)") -> 1: Early R&D (not basic science, but still lab bench) | G46: =INDEX('[2]Technical measure database'!$A$5:$CQ$1028, MATCH($A46, '[2]Technical measure database'!$A$5:$A$1028, 0), 67) -> 20 | I46: =INDEX('[2]Technical measure database'!$A$5:$CQ$1028,MATCH($A46,'[2]Technical measure database'!$A$5:$A$1028,0),7) -> Commercial | J46: =INDEX('[2]Technical measure database'!$A$5:$CQ$1028, MATCH($A46, '[2]Technical measure database'!$A$5:$A$1028, 0), 71) -> Total cooling in hot, humid climates in all commercial buildings | L46: =INDEX('[2]Technical measure database'!$A$5:$CQ$1028, MATCH($A46, '[2]Technical measure database'!$A$5:$A$1028, 0), 11) -> Energy Savings (% over today's base) | M46: =INDEX('[2]Technical measure database'!$A$5:$CQ$1028, MATCH($A46, '[2]Technical measure database'!$A$5:$A$1028, 0), 12) -> 0.32 | N46: =INDEX('[2]Technical measure database'!$A$5:$CQ$1028, MATCH($A46, '[2]Technical measure database'!$A$5:$A$1028, 0), 13) -> 0 | O46: 0.32 | Q46: =INDEX('[2]Technical measure database'!$A$5:$CQ$1028, MATCH($A46, '[2]Technical measure database'!$A$5:$A$1028, 0), 15) -> See incremental cost | R46: =INDEX('[2]Technical measure database'!$A$5:$CQ$1028, MATCH($A46, '[2]Technical measure database'!$A$5:$A$1028, 0), 16) -> 0 | S46: =INDEX('[2]Technical measure database'!$A$5:$CQ$1028, MATCH($A46, '[2]Technical measure database'!$A$5:$A$1028, 0), 17) -> 0.4955975567 | T46: =INDEX('[2]Technical measure database'!$A$5:$CQ$1028, MATCH($A46, '[2]Technical measure database'!$A$5:$A$1028, 0), 18) -> 0.4955975567 | U46: =INDEX('[2]Technical measure database'!$A$5:$CQ$1028, MATCH($A46, '[2]Technical measure database'!$A$5:$A$1028, 0), 19) -> per square foot | W46: =INDEX('[2]Technical measure database'!$A$5:$CQ$1028, MATCH($A46, '[2]Technical measure database'!$A$5:$A$1028, 0), 24) -> MTAB, nauticadehumid.com Primary Source: MSP Technology, "Dehumidification Equipment for Recirculated Air and Dedicated Outside Air Systems (DOAS)" Desroches, L.-B. et al. Max Tech and Beyond (2011) | X46: =INDEX('[2]Technical measure database'!$A$5:$CQ$1028, MATCH($A46, '[2]Technical measure database'!$A$5:$A$1028, 0), 25) -> Appendix B: Savings taken from page 7 of MSP manual; supported by nautica claims (used manufacturer estimate)
A47: 564 | C47: =INDEX('[2]Technical measure database'!$A$5:$CQ$1028, MATCH($A47, '[2]Technical measure database'!$A$5:$A$1028, 0), 2) -> Demonstrate and deploy magnetic bearing variable speed centrifugal chillers | D47: =INDEX('[2]Technical measure database'!$A$5:$CQ$1028, MATCH($A47, '[2]Technical measure database'!$A$5:$A$1028, 0), 3) -> C: Centrifugal Chiller | E47: =INDEX('[2]Technical measure database'!$A$5:$CQ$1028, MATCH($A47, '[2]Technical measure database'!$A$5:$A$1028, 0), 4) -> System | F47: =INDEX('[2]Technical measure database'!$A$5:$CQ$1028, MATCH($A47, '[2]Technical measure database'!$A$5:$A$1028, 0), 6)&": "&CHOOSE(INDEX('[2]Technical measure database'!$A$5:$CQ$1028, MATCH($A47, '[2]Technical measure database'!$A$5:$A$1028, 0), 6)+1, "Roadmap Goal/Target", "Early R&D (not basic science, but still lab bench)", "Late R&D (cost reduction, performance improvement, may be available to early adopters)", "Early Deployment (savings not yet proven in whole building context)", "Late Deployment (savings proven, but need to transform the market)", "Standards (rule in place, underway, planned, or ready to be planned)") -> 3: Early Deployment (savings not yet proven in whole building context) | G47: =INDEX('[2]Technical measure database'!$A$5:$CQ$1028, MATCH($A47, '[2]Technical measure database'!$A$5:$A$1028, 0), 67) -> 20 | I47: =INDEX('[2]Technical measure database'!$A$5:$CQ$1028,MATCH($A47,'[2]Technical measure database'!$A$5:$A$1028,0),7) -> Commercial | J47: =INDEX('[2]Technical measure database'!$A$5:$CQ$1028, MATCH($A47, '[2]Technical measure database'!$A$5:$A$1028, 0), 71) -> All commercial centrifugal chillers | L47: =INDEX('[2]Technical measure database'!$A$5:$CQ$1028, MATCH($A47, '[2]Technical measure database'!$A$5:$A$1028, 0), 11) -> kW/ton cooling | M47: =INDEX('[2]Technical measure database'!$A$5:$CQ$1028, MATCH($A47, '[2]Technical measure database'!$A$5:$A$1028, 0), 12) -> 0.5 | N47: =INDEX('[2]Technical measure database'!$A$5:$CQ$1028, MATCH($A47, '[2]Technical measure database'!$A$5:$A$1028, 0), 13) -> 0.9 | O47: =(N47-M47)/N47 -> 0.4444444444 | Q47: =INDEX('[2]Technical measure database'!$A$5:$CQ$1028, MATCH($A47, '[2]Technical measure database'!$A$5:$A$1028, 0), 15) -> $100,738 for NUWC:18,000 sq.ft | R47: =INDEX('[2]Technical measure database'!$A$5:$CQ$1028, MATCH($A47, '[2]Technical measure database'!$A$5:$A$1028, 0), 16) -> 4.363333333 | S47: =INDEX('[2]Technical measure database'!$A$5:$CQ$1028, MATCH($A47, '[2]Technical measure database'!$A$5:$A$1028, 0), 17) -> 5.599166667 | T47: =INDEX('[2]Technical measure database'!$A$5:$CQ$1028, MATCH($A47, '[2]Technical measure database'!$A$5:$A$1028, 0), 18) -> 1.235833333 | U47: =INDEX('[2]Technical measure database'!$A$5:$CQ$1028, MATCH($A47, '[2]Technical measure database'!$A$5:$A$1028, 0), 19) -> per square foot; 1 ton per 280 sq.ft. | W47: =INDEX('[2]Technical measure database'!$A$5:$CQ$1028, MATCH($A47, '[2]Technical measure database'!$A$5:$A$1028, 0), 24) -> MTAB, turbocor_chiller.pdf Primary Source: U.S. Navy Technology Validation, FEMP: "Evaluation of a Variable-speed Centrifugal Compressor with Magnetic Bearings". Pg 3. Fig 4 & 5. http://www1.eere.energy.gov/femp/pdfs/etcs_vscompressor.pdf Desroches, L.-B. et al. Max Tech and Beyond (2011) | X47: =INDEX('[2]Technical measure database'!$A$5:$CQ$1028, MATCH($A47, '[2]Technical measure database'!$A$5:$A$1028, 0), 25) -> Appendix B: Average of high capacity Navy (41-67%) and Desroches (26%) numbers Page 3 of FEMP & Navy Technology Validation study shows at ~ average ton of cooling of (60+20)/2=40 tons, baseline is 0.9 kW/ton, and var speed chiller of ~0.5 kW/ton. Fig 4&5.
A48: 628 | C48: =INDEX('[2]Technical measure database'!$A$5:$CQ$1028, MATCH($A48, '[2]Technical measure database'!$A$5:$A$1028, 0), 2) -> Develop, demonstrate, and deploy integrated heat pumps (No fuel switching) | D48: =INDEX('[2]Technical measure database'!$A$5:$CQ$1028, MATCH($A48, '[2]Technical measure database'!$A$5:$A$1028, 0), 3) -> R: IHP | E48: =INDEX('[2]Technical measure database'!$A$5:$CQ$1028, MATCH($A48, '[2]Technical measure database'!$A$5:$A$1028, 0), 4) -> System | F48: =INDEX('[2]Technical measure database'!$A$5:$CQ$1028, MATCH($A48, '[2]Technical measure database'!$A$5:$A$1028, 0), 6)&": "&CHOOSE(INDEX('[2]Technical measure database'!$A$5:$CQ$1028, MATCH($A48, '[2]Technical measure database'!$A$5:$A$1028, 0), 6)+1, "Roadmap Goal/Target", "Early R&D (not basic science, but still lab bench)", "Late R&D (cost reduction, performance improvement, may be available to early adopters)", "Early Deployment (savings not yet proven in whole building context)", "Late Deployment (savings proven, but need to transform the market)", "Standards (rule in place, underway, planned, or ready to be planned)") -> 2: Late R&D (cost reduction, performance improvement, may be available to early adopters) | G48: =INDEX('[2]Technical measure database'!$A$5:$CQ$1028, MATCH($A48, '[2]Technical measure database'!$A$5:$A$1028, 0), 67) -> 20 | I48: =INDEX('[2]Technical measure database'!$A$5:$CQ$1028,MATCH($A48,'[2]Technical measure database'!$A$5:$A$1028,0),7) -> Residential | J48: =INDEX('[2]Technical measure database'!$A$5:$CQ$1028, MATCH($A48, '[2]Technical measure database'!$A$5:$A$1028, 0), 71) -> Total electric heating and hot water consumption, as a proportion of cooling | L48: =INDEX('[2]Technical measure database'!$A$5:$CQ$1028, MATCH($A48, '[2]Technical measure database'!$A$5:$A$1028, 0), 11) -> Energy savings (% over today's base) | M48: =INDEX('[2]Technical measure database'!$A$5:$CQ$1028, MATCH($A48, '[2]Technical measure database'!$A$5:$A$1028, 0), 12) -> 0.5 | N48: =INDEX('[2]Technical measure database'!$A$5:$CQ$1028, MATCH($A48, '[2]Technical measure database'!$A$5:$A$1028, 0), 13) -> 0 | O48: 0.5 | Q48: =INDEX('[2]Technical measure database'!$A$5:$CQ$1028, MATCH($A48, '[2]Technical measure database'!$A$5:$A$1028, 0), 15) -> 6500 | R48: =INDEX('[2]Technical measure database'!$A$5:$CQ$1028, MATCH($A48, '[2]Technical measure database'!$A$5:$A$1028, 0), 16) -> 5270 | S48: =INDEX('[2]Technical measure database'!$A$5:$CQ$1028, MATCH($A48, '[2]Technical measure database'!$A$5:$A$1028, 0), 17) -> 8184 | T48: =INDEX('[2]Technical measure database'!$A$5:$CQ$1028, MATCH($A48, '[2]Technical measure database'!$A$5:$A$1028, 0), 18) -> 2914 | U48: =INDEX('[2]Technical measure database'!$A$5:$CQ$1028, MATCH($A48, '[2]Technical measure database'!$A$5:$A$1028, 0), 19) -> per home; 3 ton | W48: =INDEX('[2]Technical measure database'!$A$5:$CQ$1028, MATCH($A48, '[2]Technical measure database'!$A$5:$A$1028, 0), 24) -> 2008 ORNL paper "DEVELOPMENT OF A SMALL INTEGRATED HEAT PUMP (IHP) FOR NET ZERO ENERGY HOMES" Primary Source: Baxter, V.; Murphy, R; Rice, K; Craddick, B; "Development of a Small Integrated Heat Pump (IHP) for Net Zero Energy Homes" 9th International IEA Heat Pump Conference (2008) | X48: =INDEX('[2]Technical measure database'!$A$5:$CQ$1028, MATCH($A48, '[2]Technical measure database'!$A$5:$A$1028, 0), 25) -> Appendix B: "For the airsource IHP version, the simulation results showed ~46-67% energy savings depending upon location. For the ground-source IHP version, the simulation showed over 50% savings in all locations" Used 50% as conservative estimate within 46-67% range
A49: 638 | C49: =INDEX('[2]Technical measure database'!$A$5:$CQ$1028, MATCH($A49, '[2]Technical measure database'!$A$5:$A$1028, 0), 2) -> Develop, demonstrate, and deploy integrated heat pumps: no fuel switching (commercial) | D49: =INDEX('[2]Technical measure database'!$A$5:$CQ$1028, MATCH($A49, '[2]Technical measure database'!$A$5:$A$1028, 0), 3) -> C: IHP | E49: =INDEX('[2]Technical measure database'!$A$5:$CQ$1028, MATCH($A49, '[2]Technical measure database'!$A$5:$A$1028, 0), 4) -> System | F49: =INDEX('[2]Technical measure database'!$A$5:$CQ$1028, MATCH($A49, '[2]Technical measure database'!$A$5:$A$1028, 0), 6)&": "&CHOOSE(INDEX('[2]Technical measure database'!$A$5:$CQ$1028, MATCH($A49, '[2]Technical measure database'!$A$5:$A$1028, 0), 6)+1, "Roadmap Goal/Target", "Early R&D (not basic science, but still lab bench)", "Late R&D (cost reduction, performance improvement, may be available to early adopters)", "Early Deployment (savings not yet proven in whole building context)", "Late Deployment (savings proven, but need to transform the market)", "Standards (rule in place, underway, planned, or ready to be planned)") -> 2: Late R&D (cost reduction, performance improvement, may be available to early adopters) | G49: =INDEX('[2]Technical measure database'!$A$5:$CQ$1028, MATCH($A49, '[2]Technical measure database'!$A$5:$A$1028, 0), 67) -> 20 | I49: =INDEX('[2]Technical measure database'!$A$5:$CQ$1028,MATCH($A49,'[2]Technical measure database'!$A$5:$A$1028,0),7) -> Commercial | J49: =INDEX('[2]Technical measure database'!$A$5:$CQ$1028, MATCH($A49, '[2]Technical measure database'!$A$5:$A$1028, 0), 71) -> Electric space heating, proportion of cooling and hot water | L49: =INDEX('[2]Technical measure database'!$A$5:$CQ$1028, MATCH($A49, '[2]Technical measure database'!$A$5:$A$1028, 0), 11) -> Energy Savings (%) | M49: =INDEX('[2]Technical measure database'!$A$5:$CQ$1028, MATCH($A49, '[2]Technical measure database'!$A$5:$A$1028, 0), 12) -> 0.5 | N49: =INDEX('[2]Technical measure database'!$A$5:$CQ$1028, MATCH($A49, '[2]Technical measure database'!$A$5:$A$1028, 0), 13) -> 0 | O49: 0.5 | Q49: =INDEX('[2]Technical measure database'!$A$5:$CQ$1028, MATCH($A49, '[2]Technical measure database'!$A$5:$A$1028, 0), 15) -> $5000 incremental cost per 15,000SF | R49: N/A | S49: N/A | T49: =INDEX('[2]Technical measure database'!$A$5:$CQ$1028, MATCH($A49, '[2]Technical measure database'!$A$5:$A$1028, 0), 18) -> 0.3333333333 | U49: =INDEX('[2]Technical measure database'!$A$5:$CQ$1028, MATCH($A49, '[2]Technical measure database'!$A$5:$A$1028, 0), 19) -> per square foot | W49: =INDEX('[2]Technical measure database'!$A$5:$CQ$1028, MATCH($A49, '[2]Technical measure database'!$A$5:$A$1028, 0), 24) -> Navigant Consulting. (2009). Energy Savings Potential and RD&D Opportunities for Commercial Building Appliances. Washington, D.C.: Building Technology Program, Department of Energy., http://apps1.eere.energy.gov/buildings/publications/pdfs/corporate/commercial_appliances_report_12-09.pdf | X49: =INDEX('[2]Technical measure database'!$A$5:$CQ$1028, MATCH($A49, '[2]Technical measure database'!$A$5:$A$1028, 0), 25) -> BTP Tool: Assumed same savings as residential (%); Assumed $5000 incremental cost per 15,000 SF, i.e., the incremental cost is only 0.33/SF. The IHP technology is basically similar to the rooftop unit with the addition of a variable speed compressor and water to refrigerant heat exchanger. Appendix B: Table 6-11: Summary of Primary Energy Savings Potential of all Water Heating Technology Options
A50: 673 | C50: =INDEX('[2]Technical measure database'!$A$5:$CQ$1028, MATCH($A50, '[2]Technical measure database'!$A$5:$A$1028, 0), 2) -> Magnetic Cooling Cycle for all Commercial Buildings | D50: =INDEX('[2]Technical measure database'!$A$5:$CQ$1028, MATCH($A50, '[2]Technical measure database'!$A$5:$A$1028, 0), 3) -> C: Magnetic AC | E50: =INDEX('[2]Technical measure database'!$A$5:$CQ$1028, MATCH($A50, '[2]Technical measure database'!$A$5:$A$1028, 0), 4) -> System | F50: =INDEX('[2]Technical measure database'!$A$5:$CQ$1028, MATCH($A50, '[2]Technical measure database'!$A$5:$A$1028, 0), 6)&": "&CHOOSE(INDEX('[2]Technical measure database'!$A$5:$CQ$1028, MATCH($A50, '[2]Technical measure database'!$A$5:$A$1028, 0), 6)+1, "Roadmap Goal/Target", "Early R&D (not basic science, but still lab bench)", "Late R&D (cost reduction, performance improvement, may be available to early adopters)", "Early Deployment (savings not yet proven in whole building context)", "Late Deployment (savings proven, but need to transform the market)", "Standards (rule in place, underway, planned, or ready to be planned)") -> 1: Early R&D (not basic science, but still lab bench) | G50: =INDEX('[2]Technical measure database'!$A$5:$CQ$1028, MATCH($A50, '[2]Technical measure database'!$A$5:$A$1028, 0), 67) -> 20 | I50: =INDEX('[2]Technical measure database'!$A$5:$CQ$1028,MATCH($A50,'[2]Technical measure database'!$A$5:$A$1028,0),7) -> Commercial | J50: =INDEX('[2]Technical measure database'!$A$5:$CQ$1028, MATCH($A50, '[2]Technical measure database'!$A$5:$A$1028, 0), 71) -> All commercial cooling | L50: =INDEX('[2]Technical measure database'!$A$5:$CQ$1028, MATCH($A50, '[2]Technical measure database'!$A$5:$A$1028, 0), 11) -> Energy savings (%) | M50: =INDEX('[2]Technical measure database'!$A$5:$CQ$1028, MATCH($A50, '[2]Technical measure database'!$A$5:$A$1028, 0), 12) -> 0.25 | N50: =INDEX('[2]Technical measure database'!$A$5:$CQ$1028, MATCH($A50, '[2]Technical measure database'!$A$5:$A$1028, 0), 13) -> 0 | O50: 0.25 | Q50: =INDEX('[2]Technical measure database'!$A$5:$CQ$1028, MATCH($A50, '[2]Technical measure database'!$A$5:$A$1028, 0), 15) -> 0 | R50: N/A | S50: N/A | T50: =INDEX('[2]Technical measure database'!$A$5:$CQ$1028, MATCH($A50, '[2]Technical measure database'!$A$5:$A$1028, 0), 18) -> 2.730590062 | U50: =INDEX('[2]Technical measure database'!$A$5:$CQ$1028, MATCH($A50, '[2]Technical measure database'!$A$5:$A$1028, 0), 19) -> per square foot; 1 ton per 280 square foot | W50: =INDEX('[2]Technical measure database'!$A$5:$CQ$1028, MATCH($A50, '[2]Technical measure database'!$A$5:$A$1028, 0), 24) -> Navigant. Energy Savings Potential and RD&D Opportunities for Commercial Building HVAC Systems, Navigant, September 30, 2011. http://apps1.eere.energy.gov/buildings/publications/pdfs/corporate/savings_potential_comm_hvac.pdf | X50: =INDEX('[2]Technical measure database'!$A$5:$CQ$1028, MATCH($A50, '[2]Technical measure database'!$A$5:$A$1028, 0), 25) -> Appendix B: "Assume 17% savings". No meaningful cost data is available because the technology is in the research stage.
A51: 678 | C51: =INDEX('[2]Technical measure database'!$A$5:$CQ$1028, MATCH($A51, '[2]Technical measure database'!$A$5:$A$1028, 0), 2) -> Research, demonstrate, and deploy advanced liquid desiccant A/C (e.g., DeVAP, DuCool) in commercial buildings in dry climates | D51: =INDEX('[2]Technical measure database'!$A$5:$CQ$1028, MATCH($A51, '[2]Technical measure database'!$A$5:$A$1028, 0), 3) -> C: DEVAP, Dry CZ | E51: =INDEX('[2]Technical measure database'!$A$5:$CQ$1028, MATCH($A51, '[2]Technical measure database'!$A$5:$A$1028, 0), 4) -> System | F51: =INDEX('[2]Technical measure database'!$A$5:$CQ$1028, MATCH($A51, '[2]Technical measure database'!$A$5:$A$1028, 0), 6)&": "&CHOOSE(INDEX('[2]Technical measure database'!$A$5:$CQ$1028, MATCH($A51, '[2]Technical measure database'!$A$5:$A$1028, 0), 6)+1, "Roadmap Goal/Target", "Early R&D (not basic science, but still lab bench)", "Late R&D (cost reduction, performance improvement, may be available to early adopters)", "Early Deployment (savings not yet proven in whole building context)", "Late Deployment (savings proven, but need to transform the market)", "Standards (rule in place, underway, planned, or ready to be planned)") -> 1: Early R&D (not basic science, but still lab bench) | G51: =INDEX('[2]Technical measure database'!$A$5:$CQ$1028, MATCH($A51, '[2]Technical measure database'!$A$5:$A$1028, 0), 67) -> 20 | I51: =INDEX('[2]Technical measure database'!$A$5:$CQ$1028,MATCH($A51,'[2]Technical measure database'!$A$5:$A$1028,0),7) -> Commercial | J51: =INDEX('[2]Technical measure database'!$A$5:$CQ$1028, MATCH($A51, '[2]Technical measure database'!$A$5:$A$1028, 0), 71) -> Total cooling in dry climates by all commercial RTUs | L51: =INDEX('[2]Technical measure database'!$A$5:$CQ$1028, MATCH($A51, '[2]Technical measure database'!$A$5:$A$1028, 0), 11) -> Energy savings (% over today's base) | M51: =INDEX('[2]Technical measure database'!$A$5:$CQ$1028, MATCH($A51, '[2]Technical measure database'!$A$5:$A$1028, 0), 12) -> 0.762 | N51: =INDEX('[2]Technical measure database'!$A$5:$CQ$1028, MATCH($A51, '[2]Technical measure database'!$A$5:$A$1028, 0), 13) -> 0 | O51: 0.762 | Q51: =INDEX('[2]Technical measure database'!$A$5:$CQ$1028, MATCH($A51, '[2]Technical measure database'!$A$5:$A$1028, 0), 15) -> 10 ton unit costed by NREL at $8,100 material + markup and business expense; Water consumption adds roughtly $0.47/SF; UPDATED DATA BASED ON NCI REPORT: End user equipment ocst of baseline DX rooftop unit is $9300; DEVap manufacturer cost estimate is $19,000 for 1k units/year | R51: =INDEX('[2]Technical measure database'!$A$5:$CQ$1028, MATCH($A51, '[2]Technical measure database'!$A$5:$A$1028, 0), 16) -> 9300 | S51: =INDEX('[2]Technical measure database'!$A$5:$CQ$1028, MATCH($A51, '[2]Technical measure database'!$A$5:$A$1028, 0), 17) -> 19000 | T51: =INDEX('[2]Technical measure database'!$A$5:$CQ$1028, MATCH($A51, '[2]Technical measure database'!$A$5:$A$1028, 0), 18) -> 2.086666667 | U51: =INDEX('[2]Technical measure database'!$A$5:$CQ$1028, MATCH($A51, '[2]Technical measure database'!$A$5:$A$1028, 0), 19) -> per square foot; 10 tons per 6,000 sq.ft. | W51: =INDEX('[2]Technical measure database'!$A$5:$CQ$1028, MATCH($A51, '[2]Technical measure database'!$A$5:$A$1028, 0), 24) -> http://www.nrel.gov/features/20100611_ac.html Primary Source: Eric Kozubal, Jason Woods, Jay Burch, Aaron Boranian, and Tim Merrigan. Desiccant Enhanced Evaporative Air-Conditioning (DEVap): Evaluation of a New Concept in Ultra Efficient Air Conditioning http://www.nrel.gov/docs/fy11osti/49722.pdf; NCI Internal DeVAP Report Cost (listed value is not consistent with this source: "Rooftop units using DEVAP design are initially expected to cost ~30% more than competing models." Kozubal. NREL. July 2 2012. http://www.nrel.gov/docs/fy12osti/55740.pdf | X51: =INDEX('[2]Technical measure database'!$A$5:$CQ$1028, MATCH($A51, '[2]Technical measure database'!$A$5:$A$1028, 0), 25) -> BTP Tool: MTAB, NREL website, DuCool?AdvantixSystems website Appendix B: Kozubal: $15,200 for standard DX, $20,461 for DeVap (10-ton system). Assumes 10 tons per 6,000 sq.ft. for dry climates ($0.88/ft2). ($0.20/ft2 added for plumbing to unit) Total source energy 106,268 kWh for baseline and 10,506 for DeVAP. Source energy converted to site energy to estimate energy savings.
A52: 679 | C52: =INDEX('[2]Technical measure database'!$A$5:$CQ$1028, MATCH($A52, '[2]Technical measure database'!$A$5:$A$1028, 0), 2) -> Research, demonstrate, and deploy advanced liquid desiccant A/C (e.g., DeVAP, DuCool) in homes in dry climates | D52: =INDEX('[2]Technical measure database'!$A$5:$CQ$1028, MATCH($A52, '[2]Technical measure database'!$A$5:$A$1028, 0), 3) -> R: DEVAP, Dry CZ | E52: =INDEX('[2]Technical measure database'!$A$5:$CQ$1028, MATCH($A52, '[2]Technical measure database'!$A$5:$A$1028, 0), 4) -> System | F52: =INDEX('[2]Technical measure database'!$A$5:$CQ$1028, MATCH($A52, '[2]Technical measure database'!$A$5:$A$1028, 0), 6)&": "&CHOOSE(INDEX('[2]Technical measure database'!$A$5:$CQ$1028, MATCH($A52, '[2]Technical measure database'!$A$5:$A$1028, 0), 6)+1, "Roadmap Goal/Target", "Early R&D (not basic science, but still lab bench)", "Late R&D (cost reduction, performance improvement, may be available to early adopters)", "Early Deployment (savings not yet proven in whole building context)", "Late Deployment (savings proven, but need to transform the market)", "Standards (rule in place, underway, planned, or ready to be planned)") -> 1: Early R&D (not basic science, but still lab bench) | G52: =INDEX('[2]Technical measure database'!$A$5:$CQ$1028, MATCH($A52, '[2]Technical measure database'!$A$5:$A$1028, 0), 67) -> 20 | I52: =INDEX('[2]Technical measure database'!$A$5:$CQ$1028,MATCH($A52,'[2]Technical measure database'!$A$5:$A$1028,0),7) -> Residential | J52: =INDEX('[2]Technical measure database'!$A$5:$CQ$1028, MATCH($A52, '[2]Technical measure database'!$A$5:$A$1028, 0), 71) -> Total residential central cooling in dry climates | L52: =INDEX('[2]Technical measure database'!$A$5:$CQ$1028, MATCH($A52, '[2]Technical measure database'!$A$5:$A$1028, 0), 11) -> Energy savings (% over today's base) | M52: =INDEX('[2]Technical measure database'!$A$5:$CQ$1028, MATCH($A52, '[2]Technical measure database'!$A$5:$A$1028, 0), 12) -> 0.395 | N52: =INDEX('[2]Technical measure database'!$A$5:$CQ$1028, MATCH($A52, '[2]Technical measure database'!$A$5:$A$1028, 0), 13) -> 0 | O52: 0.395 | Q52: =INDEX('[2]Technical measure database'!$A$5:$CQ$1028, MATCH($A52, '[2]Technical measure database'!$A$5:$A$1028, 0), 15) -> (Assume $2600 equipment in base, $2080 installation); LDAC cost from NREL with 30% markup plus 1 day of plumbing time/cost; 2.7 gallons of site water consumption per ton, equates roughly to 18000 gallons/year, over 20 years with 6.5% discount rate results in roughly $1135 price premium; UPDATED DATA BASED ON NCI REPORT: Equipment cost of baseline DX system in hot-dry climate is $3200; DEVap equipment cost estimate is $8100; Water usage still applies | R52: =INDEX('[2]Technical measure database'!$A$5:$CQ$1028, MATCH($A52, '[2]Technical measure database'!$A$5:$A$1028, 0), 16) -> 3200 | S52: =INDEX('[2]Technical measure database'!$A$5:$CQ$1028, MATCH($A52, '[2]Technical measure database'!$A$5:$A$1028, 0), 17) -> 9235 | T52: =INDEX('[2]Technical measure database'!$A$5:$CQ$1028, MATCH($A52, '[2]Technical measure database'!$A$5:$A$1028, 0), 18) -> 6035 | U52: =INDEX('[2]Technical measure database'!$A$5:$CQ$1028, MATCH($A52, '[2]Technical measure database'!$A$5:$A$1028, 0), 19) -> per home; 3 ton | W52: =INDEX('[2]Technical measure database'!$A$5:$CQ$1028, MATCH($A52, '[2]Technical measure database'!$A$5:$A$1028, 0), 24) -> http://www.nrel.gov/features/20100611_ac.html Primary Source: Eric Kozubal, Jason Woods, Jay Burch, Aaron Boranian, and Tim Merrigan. Desiccant Enhanced Evaporative Air-Conditioning (DEVap): Evaluation of a New Concept in Ultra Efficient Air Conditioning http://www.nrel.gov/docs/fy11osti/49722.pdf NREL Residential Efficiency Measures Database. http://www.nrel.gov/ap/retrofits/measures.cfm?gId=2&ctId=16; NCI Internal DeVAP Report Cost (listed value is not consistent with this source: "Rooftop units using DEVAP design are initially expected to cost ~30% more than competing models." Kozubal. NREL. July 2 2012. http://www.nrel.gov/docs/fy12osti/55740.pdf | X52: =INDEX('[2]Technical measure database'!$A$5:$CQ$1028, MATCH($A52, '[2]Technical measure database'!$A$5:$A$1028, 0), 25) -> BTP Tool: MTAB, NREL website, DuCool?AdvantixSystems website Appendix B: Kozubal: $7484 for 3-ton DeVap (uninstalled). Plous $2080 for installation. Same energy savings as Measure 678.
A53: 681 | C53: =INDEX('[2]Technical measure database'!$A$5:$CQ$1028, MATCH($A53, '[2]Technical measure database'!$A$5:$A$1028, 0), 2) -> Demonstrate and deploy ERV (Energy Recovery Ventilation) in new commercial buildings | D53: =INDEX('[2]Technical measure database'!$A$5:$CQ$1028, MATCH($A53, '[2]Technical measure database'!$A$5:$A$1028, 0), 3) -> C: Energy Recovery Vent (N) | E53: =INDEX('[2]Technical measure database'!$A$5:$CQ$1028, MATCH($A53, '[2]Technical measure database'!$A$5:$A$1028, 0), 4) -> Use Intensity | F53: =INDEX('[2]Technical measure database'!$A$5:$CQ$1028, MATCH($A53, '[2]Technical measure database'!$A$5:$A$1028, 0), 6)&": "&CHOOSE(INDEX('[2]Technical measure database'!$A$5:$CQ$1028, MATCH($A53, '[2]Technical measure database'!$A$5:$A$1028, 0), 6)+1, "Roadmap Goal/Target", "Early R&D (not basic science, but still lab bench)", "Late R&D (cost reduction, performance improvement, may be available to early adopters)", "Early Deployment (savings not yet proven in whole building context)", "Late Deployment (savings proven, but need to transform the market)", "Standards (rule in place, underway, planned, or ready to be planned)") -> 4: Late Deployment (savings proven, but need to transform the market) | G53: =INDEX('[2]Technical measure database'!$A$5:$CQ$1028, MATCH($A53, '[2]Technical measure database'!$A$5:$A$1028, 0), 67) -> 20 | I53: =INDEX('[2]Technical measure database'!$A$5:$CQ$1028,MATCH($A53,'[2]Technical measure database'!$A$5:$A$1028,0),7) -> Commercial | J53: =INDEX('[2]Technical measure database'!$A$5:$CQ$1028, MATCH($A53, '[2]Technical measure database'!$A$5:$A$1028, 0), 71) -> Total HVAC load in new commercial buildings | L53: =INDEX('[2]Technical measure database'!$A$5:$CQ$1028, MATCH($A53, '[2]Technical measure database'!$A$5:$A$1028, 0), 11) -> Energy savings (%) | M53: =INDEX('[2]Technical measure database'!$A$5:$CQ$1028, MATCH($A53, '[2]Technical measure database'!$A$5:$A$1028, 0), 12) -> 0.259 | N53: =INDEX('[2]Technical measure database'!$A$5:$CQ$1028, MATCH($A53, '[2]Technical measure database'!$A$5:$A$1028, 0), 13) -> 0 | O53: 0.259 | Q53: =INDEX('[2]Technical measure database'!$A$5:$CQ$1028, MATCH($A53, '[2]Technical measure database'!$A$5:$A$1028, 0), 15) -> ~$2000 for a high-end multi-point residential system | R53: =INDEX('[2]Technical measure database'!$A$5:$CQ$1028, MATCH($A53, '[2]Technical measure database'!$A$5:$A$1028, 0), 16) -> 0 | S53: =INDEX('[2]Technical measure database'!$A$5:$CQ$1028, MATCH($A53, '[2]Technical measure database'!$A$5:$A$1028, 0), 17) -> 0.9216589862 | T53: =INDEX('[2]Technical measure database'!$A$5:$CQ$1028, MATCH($A53, '[2]Technical measure database'!$A$5:$A$1028, 0), 18) -> 0.9216589862 | U53: =INDEX('[2]Technical measure database'!$A$5:$CQ$1028, MATCH($A53, '[2]Technical measure database'!$A$5:$A$1028, 0), 19) -> per square foot | W53: =INDEX('[2]Technical measure database'!$A$5:$CQ$1028, MATCH($A53, '[2]Technical measure database'!$A$5:$A$1028, 0), 24) -> Cost estimates for residential ERVs are close to $2000 installed (http://www.motherearthnews.com/Green-Homes/Energy-Recovery-Ventilator.aspx?page=4, http://www.extension.umn.edu/distribution/housingandclothing/dk7284.html), assuming a high-end multi-point system. Average house is 2170 ft2. Primary Source: Chiras, D. 2009. Energy-recovery Ventilators: Ventilate Your Home with Minimal Energy Loss. Mother Earth News. http://www.motherearthnews.com/Green-Homes/Energy-Recovery-Ventilator.aspx?page=4#ixzz1yRuXsH6b U.S. Department of Energy. 2005. Residential Energy Consumption Survey. http://205.254.135.7/consumption/residential/data/2005/hc/hcfloorspace_char/pdf/tablehc1.1.2.pdf Other Supporting Sources: NREL. 2011. Advanced Energy Retrofit Guide for K-12 Schools (Draft). EERE Report DOE/GO-102011-3467. Project Lead: Robert Hendron | X53: =INDEX('[2]Technical measure database'!$A$5:$CQ$1028, MATCH($A53, '[2]Technical measure database'!$A$5:$A$1028, 0), 25) -> BTP Tool: Assumes cost is half of retrofit cost. K-12 AERG suggests 20% whole building savings on average, or ~ 40% HVAC savings; Assumes 70% reduction of infiltration load Appendix B: Chiras: "Energy-recovery ventilators are a well-developed technology. Their prices range from about $500 to $1,700, not including installation." " Most energy-recovery ventilation systems on the market today recover about 70 to 80 percent of the energy in the outgoing air, transferring it to the incoming air." DOE RECS: Average ft2 = 2170 Cost estimates for residential ERVs are close to $2000 installed based on Chiara article, assuming a high-end multi-point system. Average house is 2170 ft2. Assumes 70% reduction of infiltration load, which is 37% of the heating load.
A54: 685 | C54: =INDEX('[2]Technical measure database'!$A$5:$CQ$1028, MATCH($A54, '[2]Technical measure database'!$A$5:$A$1028, 0), 2) -> Deploy ground source heat pumps (GSHP) to all commercial buildings, no fuel switching | D54: =INDEX('[2]Technical measure database'!$A$5:$CQ$1028, MATCH($A54, '[2]Technical measure database'!$A$5:$A$1028, 0), 3) -> C: GSHP | E54: =INDEX('[2]Technical measure database'!$A$5:$CQ$1028, MATCH($A54, '[2]Technical measure database'!$A$5:$A$1028, 0), 4) -> System | F54: =INDEX('[2]Technical measure database'!$A$5:$CQ$1028, MATCH($A54, '[2]Technical measure database'!$A$5:$A$1028, 0), 6)&": "&CHOOSE(INDEX('[2]Technical measure database'!$A$5:$CQ$1028, MATCH($A54, '[2]Technical measure database'!$A$5:$A$1028, 0), 6)+1, "Roadmap Goal/Target", "Early R&D (not basic science, but still lab bench)", "Late R&D (cost reduction, performance improvement, may be available to early adopters)", "Early Deployment (savings not yet proven in whole building context)", "Late Deployment (savings proven, but need to transform the market)", "Standards (rule in place, underway, planned, or ready to be planned)") -> 3: Early Deployment (savings not yet proven in whole building context) | G54: =INDEX('[2]Technical measure database'!$A$5:$CQ$1028, MATCH($A54, '[2]Technical measure database'!$A$5:$A$1028, 0), 67) -> 20 | I54: =INDEX('[2]Technical measure database'!$A$5:$CQ$1028,MATCH($A54,'[2]Technical measure database'!$A$5:$A$1028,0),7) -> Commercial | J54: =INDEX('[2]Technical measure database'!$A$5:$CQ$1028, MATCH($A54, '[2]Technical measure database'!$A$5:$A$1028, 0), 71) -> Electric space heating, proportion of cooling and hot water | L54: =INDEX('[2]Technical measure database'!$A$5:$CQ$1028, MATCH($A54, '[2]Technical measure database'!$A$5:$A$1028, 0), 11) -> Energy Savings (%) | M54: =INDEX('[2]Technical measure database'!$A$5:$CQ$1028, MATCH($A54, '[2]Technical measure database'!$A$5:$A$1028, 0), 12) -> 0.648 | N54: =INDEX('[2]Technical measure database'!$A$5:$CQ$1028, MATCH($A54, '[2]Technical measure database'!$A$5:$A$1028, 0), 13) -> 0 | O54: 0.648 | Q54: =INDEX('[2]Technical measure database'!$A$5:$CQ$1028, MATCH($A54, '[2]Technical measure database'!$A$5:$A$1028, 0), 15) -> Per ton: Tao: 4605, 5379, 4172, 2573, ORNL: 7000; apply equal weight to the two sources | R54: =INDEX('[2]Technical measure database'!$A$5:$CQ$1028, MATCH($A54, '[2]Technical measure database'!$A$5:$A$1028, 0), 16) -> 129750 | S54: =INDEX('[2]Technical measure database'!$A$5:$CQ$1028, MATCH($A54, '[2]Technical measure database'!$A$5:$A$1028, 0), 17) -> 223645 | T54: =INDEX('[2]Technical measure database'!$A$5:$CQ$1028, MATCH($A54, '[2]Technical measure database'!$A$5:$A$1028, 0), 18) -> 8.383482143 | U54: =INDEX('[2]Technical measure database'!$A$5:$CQ$1028, MATCH($A54, '[2]Technical measure database'!$A$5:$A$1028, 0), 19) -> per square foot; 1 ton per 280 sq. ft. | W54: =INDEX('[2]Technical measure database'!$A$5:$CQ$1028, MATCH($A54, '[2]Technical measure database'!$A$5:$A$1028, 0), 24) -> ORNL Residential Retrofit Tech potential ($7000/ton for commercial retrofit), assumes percent savings similar to residential. Baseline cost from RS Means Assemblies Cost Data, 33rd Edition ($9.4/ft2 for twenty single-zone RTUs, 2 tons each, including ductwork and controls); Analysis of Energy, Environmental and Life Cycle Cost Reduction Potential of Ground Source Heat Pump (GSHP) in Hot and Humid Climate Primary Source: Liu, X. Assessment of National Benefits from Retrofitting Existing Single-Family Homes with Ground Source Heat Pump Systems. Oak Ridge National Laboratory (2010) Hughes, P.J. Geothermal ( Ground-Source ) Heat Pumps: Market Status , Barriers to Adoption , and Actions to Overcome Barriers. Oak Ridge National Laboratory (2008) Other Supporting Sources: Office of the Deputy Under Secretary of Defense Report to Congress: Ground-Source Heat Pumps at Department of Defense Facilities. (2007) Hughes, P.J. & Shonder, J.A. The Evaluation of a 4000-Home Geothermal Heat Pump Retrofit at Fort Polk , Louisiana: Final Report. Oak Ridge National Laboratory (1998) | X54: =INDEX('[2]Technical measure database'!$A$5:$CQ$1028, MATCH($A54, '[2]Technical measure database'!$A$5:$A$1028, 0), 25) -> BTP Tool: Derated 10% to account for earth heating, etc. Appendix B: savings of [4.2 quads primary energy], a 45% reduction associated with SH–SC–WH in existing U.S. single-family homes Worked with author to disaggregagte into fuel-switching and non-fuel-switching opportunities DoD, perhaps the largest single customer for GHP retrofit projects, reports that in 2006 dollars housing and commercial retrofits cost $4600 and $7000 per ton respectively
A55: 690 | C55: =INDEX('[2]Technical measure database'!$A$5:$CQ$1028, MATCH($A55, '[2]Technical measure database'!$A$5:$A$1028, 0), 2) -> Magnetic Cooling | D55: =INDEX('[2]Technical measure database'!$A$5:$CQ$1028, MATCH($A55, '[2]Technical measure database'!$A$5:$A$1028, 0), 3) -> C: RTU: magnetic cooling | E55: =INDEX('[2]Technical measure database'!$A$5:$CQ$1028, MATCH($A55, '[2]Technical measure database'!$A$5:$A$1028, 0), 4) -> System | F55: =INDEX('[2]Technical measure database'!$A$5:$CQ$1028, MATCH($A55, '[2]Technical measure database'!$A$5:$A$1028, 0), 6)&": "&CHOOSE(INDEX('[2]Technical measure database'!$A$5:$CQ$1028, MATCH($A55, '[2]Technical measure database'!$A$5:$A$1028, 0), 6)+1, "Roadmap Goal/Target", "Early R&D (not basic science, but still lab bench)", "Late R&D (cost reduction, performance improvement, may be available to early adopters)", "Early Deployment (savings not yet proven in whole building context)", "Late Deployment (savings proven, but need to transform the market)", "Standards (rule in place, underway, planned, or ready to be planned)") -> 2: Late R&D (cost reduction, performance improvement, may be available to early adopters) | G55: =INDEX('[2]Technical measure database'!$A$5:$CQ$1028, MATCH($A55, '[2]Technical measure database'!$A$5:$A$1028, 0), 67) -> 20 | I55: =INDEX('[2]Technical measure database'!$A$5:$CQ$1028,MATCH($A55,'[2]Technical measure database'!$A$5:$A$1028,0),7) -> Commercial | J55: =INDEX('[2]Technical measure database'!$A$5:$CQ$1028, MATCH($A55, '[2]Technical measure database'!$A$5:$A$1028, 0), 71) -> All commercial cooling by RTUs and chillers, 100% new and 50% old | L55: =INDEX('[2]Technical measure database'!$A$5:$CQ$1028, MATCH($A55, '[2]Technical measure database'!$A$5:$A$1028, 0), 11) -> Energy Savings (%) | M55: =INDEX('[2]Technical measure database'!$A$5:$CQ$1028, MATCH($A55, '[2]Technical measure database'!$A$5:$A$1028, 0), 12) -> 0.25 | N55: =INDEX('[2]Technical measure database'!$A$5:$CQ$1028, MATCH($A55, '[2]Technical measure database'!$A$5:$A$1028, 0), 13) -> 0 | O55: 0.25 | Q55: =INDEX('[2]Technical measure database'!$A$5:$CQ$1028, MATCH($A55, '[2]Technical measure database'!$A$5:$A$1028, 0), 15) -> 0 | R55: N/A | S55: N/A | T55: =INDEX('[2]Technical measure database'!$A$5:$CQ$1028, MATCH($A55, '[2]Technical measure database'!$A$5:$A$1028, 0), 18) -> 2.730590062 | U55: =INDEX('[2]Technical measure database'!$A$5:$CQ$1028, MATCH($A55, '[2]Technical measure database'!$A$5:$A$1028, 0), 19) -> per square foot; 1 ton per 280 square foot | W55: =INDEX('[2]Technical measure database'!$A$5:$CQ$1028, MATCH($A55, '[2]Technical measure database'!$A$5:$A$1028, 0), 24) -> Boeder, A., and Zimm, C., 2006. “Magnetic Refrigeration Technology for High Efficiency Air Conditioning.” Report prepared by Astronautics Corporation of America for the U.S. Department of Energy. December. Chubu Electric, 2006. “Development of Room Temperature Magnetic Refrigeration System - World leading performance a big step forward in achieving practical systems –“. Press Release. November 7. Retrieved July 6, 2011 from http://www.chuden.co.jp/english/corporate/press2006/1107_1.html. Dieckmann, J., Roth, K., and Brodrick, J., 2007. “Emerging Technologies – Magnetic Refrigeration.” ASHRAE Journal. pp. 74-76. August. Goetzler, W., Goffri, S., Jasinski, S., Legett, R., Lisle, H., Marantan, A., Millard, M., Pinault, D., Westphalen, D., and Zogg, R., 2009. “Energy Savings Potential and RD&D Opportunities for Commercial Refrigeration.” Report prepared by Navigant Consulting, Inc. for the U.S. Department of Energy Building Technologies Program. September. Gorman, S., 2009. “As hybrid cars gobble rare metals, shortage looms”. Reuter. Retrieved July 7, 2011 from http://www.reuters.com/article/2009/08/31/us-mining-toyota-idUSTRE57U02B20090831. Gschneider, K. A., and Pecharsky, V. K., 2008. “Thirty years of near room temperature magnetic cooling: Where we are today and future prospects.” International Journal of Refrigeration. Vol. 31, pp. 945-961. January 25. Liu, D., Yue, M., Zhang, J., McQueen, T.M., Lynn, J., Wang, X., Chen, Y., Li, J., Cava, R.J., Liu, X., Altounian, Z., and Huang, Q., 2009. “Origin and tuning of the magnetocaloric effect for the magnetic refrigerant Mn1.1Fe0.9(P0.80Ge0.20).” January. Shen, J., 2011. “Pressure to be lifted on rare earth element pricing, says Information Network “. Digitimes. Retrieved July 7, 2011 from http://www.digitimes.com/news/a20110707PR201.html. Primary Source: Goetzler, W., Zogg, R., Burgos, J., Hiraiwa, H. & Young, J. Energy Savings Potential and RD & D Opportunities for Commercial Building HVAC Systems. 289 (2011). | X55: =INDEX('[2]Technical measure database'!$A$5:$CQ$1028, MATCH($A55, '[2]Technical measure database'!$A$5:$A$1028, 0), 25) -> Appendix B: Technology is in the research stage. No reliable cost data is available. Energy savings estimate is 17% of whole building energy use.
A56: 765 | C56: =INDEX('[2]Technical measure database'!$A$5:$CQ$1028, MATCH($A56, '[2]Technical measure database'!$A$5:$A$1028, 0), 2) -> Advanced RTU (CRADA) | D56: =INDEX('[2]Technical measure database'!$A$5:$CQ$1028, MATCH($A56, '[2]Technical measure database'!$A$5:$A$1028, 0), 3) -> C: RTU (IEER 20) | E56: =INDEX('[2]Technical measure database'!$A$5:$CQ$1028, MATCH($A56, '[2]Technical measure database'!$A$5:$A$1028, 0), 4) -> System | F56: =INDEX('[2]Technical measure database'!$A$5:$CQ$1028, MATCH($A56, '[2]Technical measure database'!$A$5:$A$1028, 0), 6)&": "&CHOOSE(INDEX('[2]Technical measure database'!$A$5:$CQ$1028, MATCH($A56, '[2]Technical measure database'!$A$5:$A$1028, 0), 6)+1, "Roadmap Goal/Target", "Early R&D (not basic science, but still lab bench)", "Late R&D (cost reduction, performance improvement, may be available to early adopters)", "Early Deployment (savings not yet proven in whole building context)", "Late Deployment (savings proven, but need to transform the market)", "Standards (rule in place, underway, planned, or ready to be planned)") -> 4: Late Deployment (savings proven, but need to transform the market) | G56: =INDEX('[2]Technical measure database'!$A$5:$CQ$1028, MATCH($A56, '[2]Technical measure database'!$A$5:$A$1028, 0), 67) -> 20 | I56: =INDEX('[2]Technical measure database'!$A$5:$CQ$1028,MATCH($A56,'[2]Technical measure database'!$A$5:$A$1028,0),7) -> Commercial | J56: =INDEX('[2]Technical measure database'!$A$5:$CQ$1028, MATCH($A56, '[2]Technical measure database'!$A$5:$A$1028, 0), 71) -> Total commercial cooling by rooftop AC units (RTUs) | L56: =INDEX('[2]Technical measure database'!$A$5:$CQ$1028, MATCH($A56, '[2]Technical measure database'!$A$5:$A$1028, 0), 11) -> IEER | M56: =INDEX('[2]Technical measure database'!$A$5:$CQ$1028, MATCH($A56, '[2]Technical measure database'!$A$5:$A$1028, 0), 12) -> 20 | N56: =INDEX('[2]Technical measure database'!$A$5:$CQ$1028, MATCH($A56, '[2]Technical measure database'!$A$5:$A$1028, 0), 13) -> 11.2 | O56: =1-N56/M56 -> 0.44 | Q56: =INDEX('[2]Technical measure database'!$A$5:$CQ$1028, MATCH($A56, '[2]Technical measure database'!$A$5:$A$1028, 0), 15) -> DOE funded target: $9-10k | R56: =INDEX('[2]Technical measure database'!$A$5:$CQ$1028, MATCH($A56, '[2]Technical measure database'!$A$5:$A$1028, 0), 16) -> 1.333333333 | S56: =INDEX('[2]Technical measure database'!$A$5:$CQ$1028, MATCH($A56, '[2]Technical measure database'!$A$5:$A$1028, 0), 17) -> 2.083333333 | T56: =INDEX('[2]Technical measure database'!$A$5:$CQ$1028, MATCH($A56, '[2]Technical measure database'!$A$5:$A$1028, 0), 18) -> 0.75 | U56: =INDEX('[2]Technical measure database'!$A$5:$CQ$1028, MATCH($A56, '[2]Technical measure database'!$A$5:$A$1028, 0), 19) -> per square foot; 10 tons per 6,000 sq.ft. | W56: =INDEX('[2]Technical measure database'!$A$5:$CQ$1028, MATCH($A56, '[2]Technical measure database'!$A$5:$A$1028, 0), 24) -> CRADA with BTP, Primary Source: Personal communication: Bouza | X56: =INDEX('[2]Technical measure database'!$A$5:$CQ$1028, MATCH($A56, '[2]Technical measure database'!$A$5:$A$1028, 0), 25) -> Appendix B: Cost and performance represents funded and supported DOE research product
A57: 778 | C57: =INDEX('[2]Technical measure database'!$A$5:$CQ$1028, MATCH($A57, '[2]Technical measure database'!$A$5:$A$1028, 0), 2) -> Demonstrate and deploy low temperature heat pumps, climate zones 3 & 4 (no fuel switching) | D57: =INDEX('[2]Technical measure database'!$A$5:$CQ$1028, MATCH($A57, '[2]Technical measure database'!$A$5:$A$1028, 0), 3) -> R: Cold Climate HP, CZ 3&4 | E57: =INDEX('[2]Technical measure database'!$A$5:$CQ$1028, MATCH($A57, '[2]Technical measure database'!$A$5:$A$1028, 0), 4) -> System | F57: =INDEX('[2]Technical measure database'!$A$5:$CQ$1028, MATCH($A57, '[2]Technical measure database'!$A$5:$A$1028, 0), 6)&": "&CHOOSE(INDEX('[2]Technical measure database'!$A$5:$CQ$1028, MATCH($A57, '[2]Technical measure database'!$A$5:$A$1028, 0), 6)+1, "Roadmap Goal/Target", "Early R&D (not basic science, but still lab bench)", "Late R&D (cost reduction, performance improvement, may be available to early adopters)", "Early Deployment (savings not yet proven in whole building context)", "Late Deployment (savings proven, but need to transform the market)", "Standards (rule in place, underway, planned, or ready to be planned)") -> 2: Late R&D (cost reduction, performance improvement, may be available to early adopters) | G57: =INDEX('[2]Technical measure database'!$A$5:$CQ$1028, MATCH($A57, '[2]Technical measure database'!$A$5:$A$1028, 0), 67) -> 20 | I57: =INDEX('[2]Technical measure database'!$A$5:$CQ$1028,MATCH($A57,'[2]Technical measure database'!$A$5:$A$1028,0),7) -> Residential | J57: =INDEX('[2]Technical measure database'!$A$5:$CQ$1028, MATCH($A57, '[2]Technical measure database'!$A$5:$A$1028, 0), 71) -> Total residential electric heating energy consumption as a proportion of cooling in climates 3 & 4 | L57: =INDEX('[2]Technical measure database'!$A$5:$CQ$1028, MATCH($A57, '[2]Technical measure database'!$A$5:$A$1028, 0), 11) -> Energy Savings (%) | M57: =INDEX('[2]Technical measure database'!$A$5:$CQ$1028, MATCH($A57, '[2]Technical measure database'!$A$5:$A$1028, 0), 12) -> 0.2518676435 | N57: =INDEX('[2]Technical measure database'!$A$5:$CQ$1028, MATCH($A57, '[2]Technical measure database'!$A$5:$A$1028, 0), 13) -> 0 | O57: 0.2518676435 | Q57: =INDEX('[2]Technical measure database'!$A$5:$CQ$1028, MATCH($A57, '[2]Technical measure database'!$A$5:$A$1028, 0), 15) -> $3000 incremental cost | R57: =INDEX('[2]Technical measure database'!$A$5:$CQ$1028, MATCH($A57, '[2]Technical measure database'!$A$5:$A$1028, 0), 16) -> 4680 | S57: =INDEX('[2]Technical measure database'!$A$5:$CQ$1028, MATCH($A57, '[2]Technical measure database'!$A$5:$A$1028, 0), 17) -> 7680 | T57: =INDEX('[2]Technical measure database'!$A$5:$CQ$1028, MATCH($A57, '[2]Technical measure database'!$A$5:$A$1028, 0), 18) -> 3000 | U57: =INDEX('[2]Technical measure database'!$A$5:$CQ$1028, MATCH($A57, '[2]Technical measure database'!$A$5:$A$1028, 0), 19) -> per home; 3 tons | W57: =INDEX('[2]Technical measure database'!$A$5:$CQ$1028, MATCH($A57, '[2]Technical measure database'!$A$5:$A$1028, 0), 24) -> Hallowell International; Bouza; ACEEE (Sachs et al, 2009, "Emerging Energy-Saving HVAC Technologies and Practices for the Buildings Sector") | X57: =INDEX('[2]Technical measure database'!$A$5:$CQ$1028, MATCH($A57, '[2]Technical measure database'!$A$5:$A$1028, 0), 25) -> BTP Tool: 72/191/16 TBTU's for ASHP/Res/Cooling : COP 2.9 calculated on additional data tab rows 319-325
A58: 804 | C58: =INDEX('[2]Technical measure database'!$A$5:$CQ$1028, MATCH($A58, '[2]Technical measure database'!$A$5:$A$1028, 0), 2) -> Develop and Deploy Cold Climate Heat Pumps - Target based on UTRC project | D58: =INDEX('[2]Technical measure database'!$A$5:$CQ$1028, MATCH($A58, '[2]Technical measure database'!$A$5:$A$1028, 0), 3) -> C: Cold Climate HP - TARGET | E58: =INDEX('[2]Technical measure database'!$A$5:$CQ$1028, MATCH($A58, '[2]Technical measure database'!$A$5:$A$1028, 0), 4) -> System | F58: =INDEX('[2]Technical measure database'!$A$5:$CQ$1028, MATCH($A58, '[2]Technical measure database'!$A$5:$A$1028, 0), 6)&": "&CHOOSE(INDEX('[2]Technical measure database'!$A$5:$CQ$1028, MATCH($A58, '[2]Technical measure database'!$A$5:$A$1028, 0), 6)+1, "Roadmap Goal/Target", "Early R&D (not basic science, but still lab bench)", "Late R&D (cost reduction, performance improvement, may be available to early adopters)", "Early Deployment (savings not yet proven in whole building context)", "Late Deployment (savings proven, but need to transform the market)", "Standards (rule in place, underway, planned, or ready to be planned)") -> 0: Roadmap Goal/Target | G58: =INDEX('[2]Technical measure database'!$A$5:$CQ$1028, MATCH($A58, '[2]Technical measure database'!$A$5:$A$1028, 0), 67) -> 15 | I58: =INDEX('[2]Technical measure database'!$A$5:$CQ$1028,MATCH($A58,'[2]Technical measure database'!$A$5:$A$1028,0),7) -> Commercial | J58: =INDEX('[2]Technical measure database'!$A$5:$CQ$1028, MATCH($A58, '[2]Technical measure database'!$A$5:$A$1028, 0), 71) -> Total commercial electric heating in 2 coldest climates | L58: =INDEX('[2]Technical measure database'!$A$5:$CQ$1028, MATCH($A58, '[2]Technical measure database'!$A$5:$A$1028, 0), 11) -> Energy Savings (%) | M58: =INDEX('[2]Technical measure database'!$A$5:$CQ$1028, MATCH($A58, '[2]Technical measure database'!$A$5:$A$1028, 0), 12) -> 0.5179301259 | N58: =INDEX('[2]Technical measure database'!$A$5:$CQ$1028, MATCH($A58, '[2]Technical measure database'!$A$5:$A$1028, 0), 13) -> 0 | O58: 0.5179301259 | Q58: =INDEX('[2]Technical measure database'!$A$5:$CQ$1028, MATCH($A58, '[2]Technical measure database'!$A$5:$A$1028, 0), 15) -> Simple payback < 5 years! | R58: N/A | S58: N/A | T58: =INDEX('[2]Technical measure database'!$A$5:$CQ$1028, MATCH($A58, '[2]Technical measure database'!$A$5:$A$1028, 0), 18) -> 0.095 | U58: =INDEX('[2]Technical measure database'!$A$5:$CQ$1028, MATCH($A58, '[2]Technical measure database'!$A$5:$A$1028, 0), 19) -> per square foot | W58: =INDEX('[2]Technical measure database'!$A$5:$CQ$1028, MATCH($A58, '[2]Technical measure database'!$A$5:$A$1028, 0), 24) -> Program Goal | X58: =INDEX('[2]Technical measure database'!$A$5:$CQ$1028, MATCH($A58, '[2]Technical measure database'!$A$5:$A$1028, 0), 25) -> Program goal based on current efforts by UTRC under DE-FOA-0000621
A59: 805 | C59: =INDEX('[2]Technical measure database'!$A$5:$CQ$1028, MATCH($A59, '[2]Technical measure database'!$A$5:$A$1028, 0), 2) -> Develop and Deploy Low-Cost Gas Heat Pump for Building Space Heating (DOE FOA Target) | D59: =INDEX('[2]Technical measure database'!$A$5:$CQ$1028, MATCH($A59, '[2]Technical measure database'!$A$5:$A$1028, 0), 3) -> R: Low-Cost Gas HP - TARGET | E59: =INDEX('[2]Technical measure database'!$A$5:$CQ$1028, MATCH($A59, '[2]Technical measure database'!$A$5:$A$1028, 0), 4) -> System | F59: =INDEX('[2]Technical measure database'!$A$5:$CQ$1028, MATCH($A59, '[2]Technical measure database'!$A$5:$A$1028, 0), 6)&": "&CHOOSE(INDEX('[2]Technical measure database'!$A$5:$CQ$1028, MATCH($A59, '[2]Technical measure database'!$A$5:$A$1028, 0), 6)+1, "Roadmap Goal/Target", "Early R&D (not basic science, but still lab bench)", "Late R&D (cost reduction, performance improvement, may be available to early adopters)", "Early Deployment (savings not yet proven in whole building context)", "Late Deployment (savings proven, but need to transform the market)", "Standards (rule in place, underway, planned, or ready to be planned)") -> 0: Roadmap Goal/Target | G59: =INDEX('[2]Technical measure database'!$A$5:$CQ$1028, MATCH($A59, '[2]Technical measure database'!$A$5:$A$1028, 0), 67) -> 20 | I59: =INDEX('[2]Technical measure database'!$A$5:$CQ$1028,MATCH($A59,'[2]Technical measure database'!$A$5:$A$1028,0),7) -> Residential | J59: =INDEX('[2]Technical measure database'!$A$5:$CQ$1028, MATCH($A59, '[2]Technical measure database'!$A$5:$A$1028, 0), 71) -> Total gas heating energy use in all homes | L59: =INDEX('[2]Technical measure database'!$A$5:$CQ$1028, MATCH($A59, '[2]Technical measure database'!$A$5:$A$1028, 0), 11) -> Energy Savings (%) | M59: =INDEX('[2]Technical measure database'!$A$5:$CQ$1028, MATCH($A59, '[2]Technical measure database'!$A$5:$A$1028, 0), 12) -> 0.3 | N59: =INDEX('[2]Technical measure database'!$A$5:$CQ$1028, MATCH($A59, '[2]Technical measure database'!$A$5:$A$1028, 0), 13) -> 0 | O59: 0.3 | Q59: =INDEX('[2]Technical measure database'!$A$5:$CQ$1028, MATCH($A59, '[2]Technical measure database'!$A$5:$A$1028, 0), 15) -> Simple payback 3-5 years! | R59: N/A | S59: N/A | T59: =INDEX('[2]Technical measure database'!$A$5:$CQ$1028, MATCH($A59, '[2]Technical measure database'!$A$5:$A$1028, 0), 18) -> 1000 | U59: =INDEX('[2]Technical measure database'!$A$5:$CQ$1028, MATCH($A59, '[2]Technical measure database'!$A$5:$A$1028, 0), 19) -> per home | W59: =INDEX('[2]Technical measure database'!$A$5:$CQ$1028, MATCH($A59, '[2]Technical measure database'!$A$5:$A$1028, 0), 24) -> Program goal | X59: =INDEX('[2]Technical measure database'!$A$5:$CQ$1028, MATCH($A59, '[2]Technical measure database'!$A$5:$A$1028, 0), 25) -> Program goal based on current efforts by Stone Mountain Technologies, Inc.: Alternative Space-Heating Systems under DE-FOA-0000621
A60: 814 | C60: =INDEX('[2]Technical measure database'!$A$5:$CQ$1028, MATCH($A60, '[2]Technical measure database'!$A$5:$A$1028, 0), 2) -> Advanced Rooftop Unit (RTU) (DOE CRADA TARGET) | D60: =INDEX('[2]Technical measure database'!$A$5:$CQ$1028, MATCH($A60, '[2]Technical measure database'!$A$5:$A$1028, 0), 3) -> C: Adv. RTU (IEER 22) - TARGET | E60: =INDEX('[2]Technical measure database'!$A$5:$CQ$1028, MATCH($A60, '[2]Technical measure database'!$A$5:$A$1028, 0), 4) -> System | F60: =INDEX('[2]Technical measure database'!$A$5:$CQ$1028, MATCH($A60, '[2]Technical measure database'!$A$5:$A$1028, 0), 6)&": "&CHOOSE(INDEX('[2]Technical measure database'!$A$5:$CQ$1028, MATCH($A60, '[2]Technical measure database'!$A$5:$A$1028, 0), 6)+1, "Roadmap Goal/Target", "Early R&D (not basic science, but still lab bench)", "Late R&D (cost reduction, performance improvement, may be available to early adopters)", "Early Deployment (savings not yet proven in whole building context)", "Late Deployment (savings proven, but need to transform the market)", "Standards (rule in place, underway, planned, or ready to be planned)") -> 0: Roadmap Goal/Target | G60: =INDEX('[2]Technical measure database'!$A$5:$CQ$1028, MATCH($A60, '[2]Technical measure database'!$A$5:$A$1028, 0), 67) -> 20 | I60: =INDEX('[2]Technical measure database'!$A$5:$CQ$1028,MATCH($A60,'[2]Technical measure database'!$A$5:$A$1028,0),7) -> Commercial | J60: =INDEX('[2]Technical measure database'!$A$5:$CQ$1028, MATCH($A60, '[2]Technical measure database'!$A$5:$A$1028, 0), 71) -> Total commercial cooling by rooftop AC units (RTUs) | L60: =INDEX('[2]Technical measure database'!$A$5:$CQ$1028, MATCH($A60, '[2]Technical measure database'!$A$5:$A$1028, 0), 11) -> IEER | M60: =INDEX('[2]Technical measure database'!$A$5:$CQ$1028, MATCH($A60, '[2]Technical measure database'!$A$5:$A$1028, 0), 12) -> 22 | N60: =INDEX('[2]Technical measure database'!$A$5:$CQ$1028, MATCH($A60, '[2]Technical measure database'!$A$5:$A$1028, 0), 13) -> 11.2 | O60: =1-N60/M60 -> 0.4909090909 | Q60: =INDEX('[2]Technical measure database'!$A$5:$CQ$1028, MATCH($A60, '[2]Technical measure database'!$A$5:$A$1028, 0), 15) -> DOE funded target: $9-10k | R60: =INDEX('[2]Technical measure database'!$A$5:$CQ$1028, MATCH($A60, '[2]Technical measure database'!$A$5:$A$1028, 0), 16) -> 1.333333333 | S60: =INDEX('[2]Technical measure database'!$A$5:$CQ$1028, MATCH($A60, '[2]Technical measure database'!$A$5:$A$1028, 0), 17) -> 2.3 | T60: =INDEX('[2]Technical measure database'!$A$5:$CQ$1028, MATCH($A60, '[2]Technical measure database'!$A$5:$A$1028, 0), 18) -> 0.9666666667 | U60: =INDEX('[2]Technical measure database'!$A$5:$CQ$1028, MATCH($A60, '[2]Technical measure database'!$A$5:$A$1028, 0), 19) -> per square foot; 10 tons per 6,000 sq.ft. | W60: =INDEX('[2]Technical measure database'!$A$5:$CQ$1028, MATCH($A60, '[2]Technical measure database'!$A$5:$A$1028, 0), 24) -> CRADA with BTP, Primary Source: Personal communication: Bouza | X60: =INDEX('[2]Technical measure database'!$A$5:$CQ$1028, MATCH($A60, '[2]Technical measure database'!$A$5:$A$1028, 0), 25) -> Cost was approximated by interpolating between the IEER 20 (#765) and SEER 24 AC targets. (#97)

Sheet HVAC Outputs
D2: This tab contains data and graphs for: | E2: HVAC Outputs
B4: Each entry in the table below shows the results for each particular energy efficiency measure included in the BTO Prioritization Tool analysis. These results are graphed and illustrated below.
B6: Abbreviations:
B7: C: Commercial; R: Residential; O: Outdoor; I: Industrial; (N) New homes/buildings only; (E) Existing homes/buildings only; CZ: Climate Zone; HP: Heat Pump
B9: Deployment Level Code:
B10: 0: Roadmap Goal / Target; 1: Early R&D: not basic science, but still lab bench; 2: Late R&D: cost reduction, performance improvement, maybe available to early adopters); 3: Early Deployment: savings not yet proven in whole building context 4: Late Deployment: savings proven, but need to transform the market; 5: Standards: rule in place, underway, planned, or ready to be planned.
B12: Measure No. | D12: Description | E12: Brief description | F12: Deployment Level (0-5) | H12: Market: Consumption, 2030 (TBTUs) | I12: Market: Stock, 2030 (Million Units) | J12: Stock Unit Definition | L12: Technical Potential, 2030 (TBTUs) | M12: Unstaged Maximum Adoption Potential, 2030 (TBTUs) | N12: Unstaged CCE ($/MMBTU) | P12: Staged Maximum Adoption Potential, 2030 (TBTUs) | Q12: Staged CCE ($/MMBTU)
B13: 142 | D13: =INDEX('[2]Technical measure database'!$A$5:$CQ$1028, MATCH($B13, '[2]Technical measure database'!$A$5:$A$1028, 0), 2) -> Demonstrate and deploy displacement ventilation in new commercial buildings | E13: =INDEX('[2]Technical measure database'!$A$5:$CQ$1028, MATCH($B13, '[2]Technical measure database'!$A$5:$A$1028, 0), 3) -> C: Disp. Ventilation | F13: =INDEX('[2]Technical measure database'!$A$5:$CQ$1028, MATCH($B13, '[2]Technical measure database'!$A$5:$A$1028, 0), 6)&": "&CHOOSE(INDEX('[2]Technical measure database'!$A$5:$CQ$1028, MATCH($B13, '[2]Technical measure database'!$A$5:$A$1028, 0), 6)+1, "Roadmap Goal/Target", "Early R&D (not basic science, but still lab bench)", "Late R&D (cost reduction, performance improvement, may be available to early adopters)", "Early Deployment (savings not yet proven in whole building context)", "Late Deployment (savings proven, but need to transform the market)", "Standards (rule in place, underway, planned, or ready to be planned)") -> 2: Late R&D (cost reduction, performance improvement, may be available to early adopters) | H13: =INDEX('[2]Market and sales data'!$A$9:$BQ$840, MATCH($B13, '[2]Market and sales data'!$A$9:$A$840, 0), 59)*INDEX('[2]Primary energy and carbon data'!$CS$51:$CS$882,MATCH(B13,'[2]Primary energy and carbon data'!$B$51:$B$882,0)) -> 2902.829035 | I13: =INDEX('[2]Market and sales data'!$A$9:$BQ$840, MATCH($B13, '[2]Market and sales data'!$A$9:$A$840, 0), 33) -> 50965.9078 | J13: =INDEX('[2]Technical measure database'!$A$5:$CQ$1028, MATCH($B13, '[2]Technical measure database'!$A$5:$A$1028, 0), 19) -> per square foot | L13: =INDEX('[2]Adoption curve'!$SM$38:$SM$650,MATCH(B13,'[2]Adoption curve'!$B$38:$B$650,0)) -> 220.7575655 | M13: =INDEX([2]Staging!$N$6:$N$566,MATCH(B13,[2]Staging!$D$6:$D$566,0)) -> 162.8884681 | N13: =INDEX([2]Staging!$J$6:$J$566,MATCH(B13,[2]Staging!$D$6:$D$566, 0)) -> -104.4 | P13: =INDEX([2]Staging!$P$6:$P$566,MATCH(B13,[2]Staging!$D$6:$D$566,0)) -> 168.2078629 | Q13: =IF(P13=0,"N/A",MAX(INDEX([2]Staging!$K$6:$K$566,MATCH(B13,[2]Staging!$D$6:$D$566,0)),$N13)) -> -104.4
B14: 90 | D14: =INDEX('[2]Technical measure database'!$A$5:$CQ$1028, MATCH($B14, '[2]Technical measure database'!$A$5:$A$1028, 0), 2) -> Move to include proper A/C sizing in commercial codes | E14: =INDEX('[2]Technical measure database'!$A$5:$CQ$1028, MATCH($B14, '[2]Technical measure database'!$A$5:$A$1028, 0), 3) -> C: Right sized AC | F14: =INDEX('[2]Technical measure database'!$A$5:$CQ$1028, MATCH($B14, '[2]Technical measure database'!$A$5:$A$1028, 0), 6)&": "&CHOOSE(INDEX('[2]Technical measure database'!$A$5:$CQ$1028, MATCH($B14, '[2]Technical measure database'!$A$5:$A$1028, 0), 6)+1, "Roadmap Goal/Target", "Early R&D (not basic science, but still lab bench)", "Late R&D (cost reduction, performance improvement, may be available to early adopters)", "Early Deployment (savings not yet proven in whole building context)", "Late Deployment (savings proven, but need to transform the market)", "Standards (rule in place, underway, planned, or ready to be planned)") -> 4: Late Deployment (savings proven, but need to transform the market) | H14: =INDEX('[2]Market and sales data'!$A$9:$BQ$840, MATCH($B14, '[2]Market and sales data'!$A$9:$A$840, 0), 59)*INDEX('[2]Primary energy and carbon data'!$CS$51:$CS$882,MATCH(B14,'[2]Primary energy and carbon data'!$B$51:$B$882,0)) -> 2132.704072 | I14: =INDEX('[2]Market and sales data'!$A$9:$BQ$840, MATCH($B14, '[2]Market and sales data'!$A$9:$A$840, 0), 18) -> 85074.365 | J14: =INDEX('[2]Technical measure database'!$A$5:$CQ$1028, MATCH($B14, '[2]Technical measure database'!$A$5:$A$1028, 0), 19) -> per square foot; 1 ton per 280 sq.ft. | L14: =INDEX('[2]Adoption curve'!$SM$38:$SM$650,MATCH(B14,'[2]Adoption curve'!$B$38:$B$650,0)) -> 146.2327621 | M14: =INDEX([2]Staging!$N$6:$N$566,MATCH(B14,[2]Staging!$D$6:$D$566,0)) -> 146.2327621 | N14: =INDEX([2]Staging!$J$6:$J$566,MATCH(B14,[2]Staging!$D$6:$D$566, 0)) -> -21.37 | P14: =INDEX([2]Staging!$P$6:$P$566,MATCH(B14,[2]Staging!$D$6:$D$566,0)) -> 136.9577688 | Q14: =IF(P14=0,"N/A",MAX(INDEX([2]Staging!$K$6:$K$566,MATCH(B14,[2]Staging!$D$6:$D$566,0)),$N14)) -> -21.37
B15: 140 | D15: =INDEX('[2]Technical measure database'!$A$5:$CQ$1028, MATCH($B15, '[2]Technical measure database'!$A$5:$A$1028, 0), 2) -> Demonstrate and deploy chilled beams for heating and cooling in new commercial buildings | E15: =INDEX('[2]Technical measure database'!$A$5:$CQ$1028, MATCH($B15, '[2]Technical measure database'!$A$5:$A$1028, 0), 3) -> C: Chilled Beams | F15: =INDEX('[2]Technical measure database'!$A$5:$CQ$1028, MATCH($B15, '[2]Technical measure database'!$A$5:$A$1028, 0), 6)&": "&CHOOSE(INDEX('[2]Technical measure database'!$A$5:$CQ$1028, MATCH($B15, '[2]Technical measure database'!$A$5:$A$1028, 0), 6)+1, "Roadmap Goal/Target", "Early R&D (not basic science, but still lab bench)", "Late R&D (cost reduction, performance improvement, may be available to early adopters)", "Early Deployment (savings not yet proven in whole building context)", "Late Deployment (savings proven, but need to transform the market)", "Standards (rule in place, underway, planned, or ready to be planned)") -> 4: Late Deployment (savings proven, but need to transform the market) | H15: =INDEX('[2]Market and sales data'!$A$9:$BQ$840, MATCH($B15, '[2]Market and sales data'!$A$9:$A$840, 0), 59)*INDEX('[2]Primary energy and carbon data'!$CS$51:$CS$882,MATCH(B15,'[2]Primary energy and carbon data'!$B$51:$B$882,0)) -> 1326.208522 | I15: =INDEX('[2]Market and sales data'!$A$9:$BQ$840, MATCH($B15, '[2]Market and sales data'!$A$9:$A$840, 0), 18) -> 8012.340654 | J15: =INDEX('[2]Technical measure database'!$A$5:$CQ$1028, MATCH($B15, '[2]Technical measure database'!$A$5:$A$1028, 0), 19) -> per square foot; 150 BTU/h/sq.ft | L15: =INDEX('[2]Adoption curve'!$SM$38:$SM$650,MATCH(B15,'[2]Adoption curve'!$B$38:$B$650,0)) -> 189.4675254 | M15: =INDEX([2]Staging!$N$6:$N$566,MATCH(B15,[2]Staging!$D$6:$D$566,0)) -> 189.4675254 | N15: =INDEX([2]Staging!$J$6:$J$566,MATCH(B15,[2]Staging!$D$6:$D$566, 0)) -> -13.1 | P15: =INDEX([2]Staging!$P$6:$P$566,MATCH(B15,[2]Staging!$D$6:$D$566,0)) -> 105.4582289 | Q15: =IF(P15=0,"N/A",MAX(INDEX([2]Staging!$K$6:$K$566,MATCH(B15,[2]Staging!$D$6:$D$566,0)),$N15)) -> -13.1
B16: 125 | D16: =INDEX('[2]Technical measure database'!$A$5:$CQ$1028, MATCH($B16, '[2]Technical measure database'!$A$5:$A$1028, 0), 2) -> Reduce over sizing in home heaters | E16: =INDEX('[2]Technical measure database'!$A$5:$CQ$1028, MATCH($B16, '[2]Technical measure database'!$A$5:$A$1028, 0), 3) -> R: Right Sized Heater | F16: =INDEX('[2]Technical measure database'!$A$5:$CQ$1028, MATCH($B16, '[2]Technical measure database'!$A$5:$A$1028, 0), 6)&": "&CHOOSE(INDEX('[2]Technical measure database'!$A$5:$CQ$1028, MATCH($B16, '[2]Technical measure database'!$A$5:$A$1028, 0), 6)+1, "Roadmap Goal/Target", "Early R&D (not basic science, but still lab bench)", "Late R&D (cost reduction, performance improvement, may be available to early adopters)", "Early Deployment (savings not yet proven in whole building context)", "Late Deployment (savings proven, but need to transform the market)", "Standards (rule in place, underway, planned, or ready to be planned)") -> 3: Early Deployment (savings not yet proven in whole building context) | H16: =INDEX('[2]Market and sales data'!$A$9:$BQ$840, MATCH($B16, '[2]Market and sales data'!$A$9:$A$840, 0), 59)*INDEX('[2]Primary energy and carbon data'!$CS$51:$CS$882,MATCH(B16,'[2]Primary energy and carbon data'!$B$51:$B$882,0)) -> 4616.299128 | I16: =INDEX('[2]Market and sales data'!$A$9:$BQ$840, MATCH($B16, '[2]Market and sales data'!$A$9:$A$840, 0), 18) -> 120.017899 | J16: =INDEX('[2]Technical measure database'!$A$5:$CQ$1028, MATCH($B16, '[2]Technical measure database'!$A$5:$A$1028, 0), 19) -> per home | L16: =INDEX('[2]Adoption curve'!$SM$38:$SM$650,MATCH(B16,'[2]Adoption curve'!$B$38:$B$650,0)) -> 66.18381854 | M16: =INDEX([2]Staging!$N$6:$N$566,MATCH(B16,[2]Staging!$D$6:$D$566,0)) -> 66.18381854 | N16: =INDEX([2]Staging!$J$6:$J$566,MATCH(B16,[2]Staging!$D$6:$D$566, 0)) -> -11.22 | P16: =INDEX([2]Staging!$P$6:$P$566,MATCH(B16,[2]Staging!$D$6:$D$566,0)) -> 65.45143243 | Q16: =IF(P16=0,"N/A",MAX(INDEX([2]Staging!$K$6:$K$566,MATCH(B16,[2]Staging!$D$6:$D$566,0)),$N16)) -> -11.22
B17: 89 | D17: =INDEX('[2]Technical measure database'!$A$5:$CQ$1028, MATCH($B17, '[2]Technical measure database'!$A$5:$A$1028, 0), 2) -> Move to include proper A/C sizing in residential codes | E17: =INDEX('[2]Technical measure database'!$A$5:$CQ$1028, MATCH($B17, '[2]Technical measure database'!$A$5:$A$1028, 0), 3) -> R: Right sized AC | F17: =INDEX('[2]Technical measure database'!$A$5:$CQ$1028, MATCH($B17, '[2]Technical measure database'!$A$5:$A$1028, 0), 6)&": "&CHOOSE(INDEX('[2]Technical measure database'!$A$5:$CQ$1028, MATCH($B17, '[2]Technical measure database'!$A$5:$A$1028, 0), 6)+1, "Roadmap Goal/Target", "Early R&D (not basic science, but still lab bench)", "Late R&D (cost reduction, performance improvement, may be available to early adopters)", "Early Deployment (savings not yet proven in whole building context)", "Late Deployment (savings proven, but need to transform the market)", "Standards (rule in place, underway, planned, or ready to be planned)") -> 5: Standards (rule in place, underway, planned, or ready to be planned) | H17: =INDEX('[2]Market and sales data'!$A$9:$BQ$840, MATCH($B17, '[2]Market and sales data'!$A$9:$A$840, 0), 59)*INDEX('[2]Primary energy and carbon data'!$CS$51:$CS$882,MATCH(B17,'[2]Primary energy and carbon data'!$B$51:$B$882,0)) -> 2787.914659 | I17: =INDEX('[2]Market and sales data'!$A$9:$BQ$840, MATCH($B17, '[2]Market and sales data'!$A$9:$A$840, 0), 18) -> 101.396045 | J17: =INDEX('[2]Technical measure database'!$A$5:$CQ$1028, MATCH($B17, '[2]Technical measure database'!$A$5:$A$1028, 0), 19) -> per home, 3 tons of cooling | L17: =INDEX('[2]Adoption curve'!$SM$38:$SM$650,MATCH(B17,'[2]Adoption curve'!$B$38:$B$650,0)) -> 152.1676803 | M17: =INDEX([2]Staging!$N$6:$N$566,MATCH(B17,[2]Staging!$D$6:$D$566,0)) -> 152.1676803 | N17: =INDEX([2]Staging!$J$6:$J$566,MATCH(B17,[2]Staging!$D$6:$D$566, 0)) -> -10.9 | P17: =INDEX([2]Staging!$P$6:$P$566,MATCH(B17,[2]Staging!$D$6:$D$566,0)) -> 149.5026073 | Q17: =IF(P17=0,"N/A",MAX(INDEX([2]Staging!$K$6:$K$566,MATCH(B17,[2]Staging!$D$6:$D$566,0)),$N17)) -> -10.9
B18: 126 | D18: =INDEX('[2]Technical measure database'!$A$5:$CQ$1028, MATCH($B18, '[2]Technical measure database'!$A$5:$A$1028, 0), 2) -> Reduce over sizing in commercial heaters | E18: =INDEX('[2]Technical measure database'!$A$5:$CQ$1028, MATCH($B18, '[2]Technical measure database'!$A$5:$A$1028, 0), 3) -> C: Right Sized Heater | F18: =INDEX('[2]Technical measure database'!$A$5:$CQ$1028, MATCH($B18, '[2]Technical measure database'!$A$5:$A$1028, 0), 6)&": "&CHOOSE(INDEX('[2]Technical measure database'!$A$5:$CQ$1028, MATCH($B18, '[2]Technical measure database'!$A$5:$A$1028, 0), 6)+1, "Roadmap Goal/Target", "Early R&D (not basic science, but still lab bench)", "Late R&D (cost reduction, performance improvement, may be available to early adopters)", "Early Deployment (savings not yet proven in whole building context)", "Late Deployment (savings proven, but need to transform the market)", "Standards (rule in place, underway, planned, or ready to be planned)") -> 4: Late Deployment (savings proven, but need to transform the market) | H18: =INDEX('[2]Market and sales data'!$A$9:$BQ$840, MATCH($B18, '[2]Market and sales data'!$A$9:$A$840, 0), 59)*INDEX('[2]Primary energy and carbon data'!$CS$51:$CS$882,MATCH(B18,'[2]Primary energy and carbon data'!$B$51:$B$882,0)) -> 2196.938562 | I18: =INDEX('[2]Market and sales data'!$A$9:$BQ$840, MATCH($B18, '[2]Market and sales data'!$A$9:$A$840, 0), 18) -> 85074.365 | J18: =INDEX('[2]Technical measure database'!$A$5:$CQ$1028, MATCH($B18, '[2]Technical measure database'!$A$5:$A$1028, 0), 19) -> per square foot | L18: =INDEX('[2]Adoption curve'!$SM$38:$SM$650,MATCH(B18,'[2]Adoption curve'!$B$38:$B$650,0)) -> 71.91780935 | M18: =INDEX([2]Staging!$N$6:$N$566,MATCH(B18,[2]Staging!$D$6:$D$566,0)) -> 42.5474677 | N18: =INDEX([2]Staging!$J$6:$J$566,MATCH(B18,[2]Staging!$D$6:$D$566, 0)) -> -8.83 | P18: =INDEX([2]Staging!$P$6:$P$566,MATCH(B18,[2]Staging!$D$6:$D$566,0)) -> 41.33056756 | Q18: =IF(P18=0,"N/A",MAX(INDEX([2]Staging!$K$6:$K$566,MATCH(B18,[2]Staging!$D$6:$D$566,0)),$N18)) -> -8.83
B19: 275 | D19: =INDEX('[2]Technical measure database'!$A$5:$CQ$1028, MATCH($B19, '[2]Technical measure database'!$A$5:$A$1028, 0), 2) -> Deploy restructured fume hoods with reduced air flow in commercial buildings | E19: =INDEX('[2]Technical measure database'!$A$5:$CQ$1028, MATCH($B19, '[2]Technical measure database'!$A$5:$A$1028, 0), 3) -> C: Fume Hood Standard | F19: =INDEX('[2]Technical measure database'!$A$5:$CQ$1028, MATCH($B19, '[2]Technical measure database'!$A$5:$A$1028, 0), 6)&": "&CHOOSE(INDEX('[2]Technical measure database'!$A$5:$CQ$1028, MATCH($B19, '[2]Technical measure database'!$A$5:$A$1028, 0), 6)+1, "Roadmap Goal/Target", "Early R&D (not basic science, but still lab bench)", "Late R&D (cost reduction, performance improvement, may be available to early adopters)", "Early Deployment (savings not yet proven in whole building context)", "Late Deployment (savings proven, but need to transform the market)", "Standards (rule in place, underway, planned, or ready to be planned)") -> 4: Late Deployment (savings proven, but need to transform the market) | H19: =INDEX('[2]Market and sales data'!$A$9:$BQ$840, MATCH($B19, '[2]Market and sales data'!$A$9:$A$840, 0), 59)*INDEX('[2]Primary energy and carbon data'!$CS$51:$CS$882,MATCH(B19,'[2]Primary energy and carbon data'!$B$51:$B$882,0)) -> 213.9642631 | I19: =INDEX('[2]Market and sales data'!$A$9:$BQ$840, MATCH($B19, '[2]Market and sales data'!$A$9:$A$840, 0), 18) -> 0.809832191 | J19: =INDEX('[2]Technical measure database'!$A$5:$CQ$1028, MATCH($B19, '[2]Technical measure database'!$A$5:$A$1028, 0), 19) -> per unit | L19: =INDEX('[2]Adoption curve'!$SM$38:$SM$650,MATCH(B19,'[2]Adoption curve'!$B$38:$B$650,0)) -> 103.0046304 | M19: =INDEX([2]Staging!$N$6:$N$566,MATCH(B19,[2]Staging!$D$6:$D$566,0)) -> 103.0046304 | N19: =INDEX([2]Staging!$J$6:$J$566,MATCH(B19,[2]Staging!$D$6:$D$566, 0)) -> -0.35 | P19: =INDEX([2]Staging!$P$6:$P$566,MATCH(B19,[2]Staging!$D$6:$D$566,0)) -> 104.3160466 | Q19: =IF(P19=0,"N/A",MAX(INDEX([2]Staging!$K$6:$K$566,MATCH(B19,[2]Staging!$D$6:$D$566,0)),$N19)) -> -0.35
B20: 157 | D20: =INDEX('[2]Technical measure database'!$A$5:$CQ$1028, MATCH($B20, '[2]Technical measure database'!$A$5:$A$1028, 0), 2) -> Move to standardize improved duct routing in commercial codes | E20: =INDEX('[2]Technical measure database'!$A$5:$CQ$1028, MATCH($B20, '[2]Technical measure database'!$A$5:$A$1028, 0), 3) -> C: Duct Routing (N) | F20: =INDEX('[2]Technical measure database'!$A$5:$CQ$1028, MATCH($B20, '[2]Technical measure database'!$A$5:$A$1028, 0), 6)&": "&CHOOSE(INDEX('[2]Technical measure database'!$A$5:$CQ$1028, MATCH($B20, '[2]Technical measure database'!$A$5:$A$1028, 0), 6)+1, "Roadmap Goal/Target", "Early R&D (not basic science, but still lab bench)", "Late R&D (cost reduction, performance improvement, may be available to early adopters)", "Early Deployment (savings not yet proven in whole building context)", "Late Deployment (savings proven, but need to transform the market)", "Standards (rule in place, underway, planned, or ready to be planned)") -> 4: Late Deployment (savings proven, but need to transform the market) | H20: =INDEX('[2]Market and sales data'!$A$9:$BQ$840, MATCH($B20, '[2]Market and sales data'!$A$9:$A$840, 0), 59)*INDEX('[2]Primary energy and carbon data'!$CS$51:$CS$882,MATCH(B20,'[2]Primary energy and carbon data'!$B$51:$B$882,0)) -> 1263.532472 | I20: =INDEX('[2]Market and sales data'!$A$9:$BQ$840, MATCH($B20, '[2]Market and sales data'!$A$9:$A$840, 0), 18) -> 12013.10454 | J20: =INDEX('[2]Technical measure database'!$A$5:$CQ$1028, MATCH($B20, '[2]Technical measure database'!$A$5:$A$1028, 0), 19) -> per square foot | L20: =INDEX('[2]Adoption curve'!$SM$38:$SM$650,MATCH(B20,'[2]Adoption curve'!$B$38:$B$650,0)) -> 153.3207361 | M20: =INDEX([2]Staging!$N$6:$N$566,MATCH(B20,[2]Staging!$D$6:$D$566,0)) -> 145.5176185 | N20: =INDEX([2]Staging!$J$6:$J$566,MATCH(B20,[2]Staging!$D$6:$D$566, 0)) -> 0 | P20: =INDEX([2]Staging!$P$6:$P$566,MATCH(B20,[2]Staging!$D$6:$D$566,0)) -> 172.3356385 | Q20: =IF(P20=0,"N/A",MAX(INDEX([2]Staging!$K$6:$K$566,MATCH(B20,[2]Staging!$D$6:$D$566,0)),$N20)) -> 0
B21: 162 | D21: =INDEX('[2]Technical measure database'!$A$5:$CQ$1028, MATCH($B21, '[2]Technical measure database'!$A$5:$A$1028, 0), 2) -> Move to standardize variable air volume (VAV) ventilation | E21: =INDEX('[2]Technical measure database'!$A$5:$CQ$1028, MATCH($B21, '[2]Technical measure database'!$A$5:$A$1028, 0), 3) -> C: Move from CAV to VAV | F21: =INDEX('[2]Technical measure database'!$A$5:$CQ$1028, MATCH($B21, '[2]Technical measure database'!$A$5:$A$1028, 0), 6)&": "&CHOOSE(INDEX('[2]Technical measure database'!$A$5:$CQ$1028, MATCH($B21, '[2]Technical measure database'!$A$5:$A$1028, 0), 6)+1, "Roadmap Goal/Target", "Early R&D (not basic science, but still lab bench)", "Late R&D (cost reduction, performance improvement, may be available to early adopters)", "Early Deployment (savings not yet proven in whole building context)", "Late Deployment (savings proven, but need to transform the market)", "Standards (rule in place, underway, planned, or ready to be planned)") -> 4: Late Deployment (savings proven, but need to transform the market) | H21: =INDEX('[2]Market and sales data'!$A$9:$BQ$840, MATCH($B21, '[2]Market and sales data'!$A$9:$A$840, 0), 59)*INDEX('[2]Primary energy and carbon data'!$CS$51:$CS$882,MATCH(B21,'[2]Primary energy and carbon data'!$B$51:$B$882,0)) -> 999.9272019 | I21: =INDEX('[2]Market and sales data'!$A$9:$BQ$840, MATCH($B21, '[2]Market and sales data'!$A$9:$A$840, 0), 18) -> 56465.57607 | J21: =INDEX('[2]Technical measure database'!$A$5:$CQ$1028, MATCH($B21, '[2]Technical measure database'!$A$5:$A$1028, 0), 19) -> per unit | L21: =INDEX('[2]Adoption curve'!$SM$38:$SM$650,MATCH(B21,'[2]Adoption curve'!$B$38:$B$650,0)) -> 219.867153 | M21: =INDEX([2]Staging!$N$6:$N$566,MATCH(B21,[2]Staging!$D$6:$D$566,0)) -> 219.867153 | N21: =INDEX([2]Staging!$J$6:$J$566,MATCH(B21,[2]Staging!$D$6:$D$566, 0)) -> 0 | P21: =INDEX([2]Staging!$P$6:$P$566,MATCH(B21,[2]Staging!$D$6:$D$566,0)) -> 151.1531035 | Q21: =IF(P21=0,"N/A",MAX(INDEX([2]Staging!$K$6:$K$566,MATCH(B21,[2]Staging!$D$6:$D$566,0)),$N21)) -> 0
B22: 637 | D22: =INDEX('[2]Technical measure database'!$A$5:$CQ$1028, MATCH($B22, '[2]Technical measure database'!$A$5:$A$1028, 0), 2) -> Residential dehumidifers (packaged) | E22: =INDEX('[2]Technical measure database'!$A$5:$CQ$1028, MATCH($B22, '[2]Technical measure database'!$A$5:$A$1028, 0), 3) -> R: Dehumidifier | F22: =INDEX('[2]Technical measure database'!$A$5:$CQ$1028, MATCH($B22, '[2]Technical measure database'!$A$5:$A$1028, 0), 6)&": "&CHOOSE(INDEX('[2]Technical measure database'!$A$5:$CQ$1028, MATCH($B22, '[2]Technical measure database'!$A$5:$A$1028, 0), 6)+1, "Roadmap Goal/Target", "Early R&D (not basic science, but still lab bench)", "Late R&D (cost reduction, performance improvement, may be available to early adopters)", "Early Deployment (savings not yet proven in whole building context)", "Late Deployment (savings proven, but need to transform the market)", "Standards (rule in place, underway, planned, or ready to be planned)") -> 3: Early Deployment (savings not yet proven in whole building context) | H22: =INDEX('[2]Market and sales data'!$A$9:$BQ$840, MATCH($B22, '[2]Market and sales data'!$A$9:$A$840, 0), 59)*INDEX('[2]Primary energy and carbon data'!$CS$51:$CS$882,MATCH(B22,'[2]Primary energy and carbon data'!$B$51:$B$882,0)) -> 727.0554502 | I22: =INDEX('[2]Market and sales data'!$A$9:$BQ$840, MATCH($B22, '[2]Market and sales data'!$A$9:$A$840, 0), 18) -> 14.49720355 | J22: =INDEX('[2]Technical measure database'!$A$5:$CQ$1028, MATCH($B22, '[2]Technical measure database'!$A$5:$A$1028, 0), 19) -> per unit; 70 pint/day capacity | L22: =INDEX('[2]Adoption curve'!$SM$38:$SM$650,MATCH(B22,'[2]Adoption curve'!$B$38:$B$650,0)) -> 60.91045814 | M22: =INDEX([2]Staging!$N$6:$N$566,MATCH(B22,[2]Staging!$D$6:$D$566,0)) -> 60.91045814 | N22: =INDEX([2]Staging!$J$6:$J$566,MATCH(B22,[2]Staging!$D$6:$D$566, 0)) -> 0 | P22: =INDEX([2]Staging!$P$6:$P$566,MATCH(B22,[2]Staging!$D$6:$D$566,0)) -> 61.46505169 | Q22: =IF(P22=0,"N/A",MAX(INDEX([2]Staging!$K$6:$K$566,MATCH(B22,[2]Staging!$D$6:$D$566,0)),$N22)) -> 0
B23: 638 | D23: =INDEX('[2]Technical measure database'!$A$5:$CQ$1028, MATCH($B23, '[2]Technical measure database'!$A$5:$A$1028, 0), 2) -> Develop, demonstrate, and deploy integrated heat pumps: no fuel switching (commercial) | E23: =INDEX('[2]Technical measure database'!$A$5:$CQ$1028, MATCH($B23, '[2]Technical measure database'!$A$5:$A$1028, 0), 3) -> C: IHP | F23: =INDEX('[2]Technical measure database'!$A$5:$CQ$1028, MATCH($B23, '[2]Technical measure database'!$A$5:$A$1028, 0), 6)&": "&CHOOSE(INDEX('[2]Technical measure database'!$A$5:$CQ$1028, MATCH($B23, '[2]Technical measure database'!$A$5:$A$1028, 0), 6)+1, "Roadmap Goal/Target", "Early R&D (not basic science, but still lab bench)", "Late R&D (cost reduction, performance improvement, may be available to early adopters)", "Early Deployment (savings not yet proven in whole building context)", "Late Deployment (savings proven, but need to transform the market)", "Standards (rule in place, underway, planned, or ready to be planned)") -> 2: Late R&D (cost reduction, performance improvement, may be available to early adopters) | H23: =INDEX('[2]Market and sales data'!$A$9:$BQ$840, MATCH($B23, '[2]Market and sales data'!$A$9:$A$840, 0), 59)*INDEX('[2]Primary energy and carbon data'!$CS$51:$CS$882,MATCH(B23,'[2]Primary energy and carbon data'!$B$51:$B$882,0)) -> 1378.797939 | I23: =INDEX('[2]Market and sales data'!$A$9:$BQ$840, MATCH($B23, '[2]Market and sales data'!$A$9:$A$840, 0), 18) -> 3729.992992 | J23: =INDEX('[2]Technical measure database'!$A$5:$CQ$1028, MATCH($B23, '[2]Technical measure database'!$A$5:$A$1028, 0), 19) -> per square foot | L23: =INDEX('[2]Adoption curve'!$SM$38:$SM$650,MATCH(B23,'[2]Adoption curve'!$B$38:$B$650,0)) -> 659.9591467 | M23: =INDEX([2]Staging!$N$6:$N$566,MATCH(B23,[2]Staging!$D$6:$D$566,0)) -> 416.8056898 | N23: =INDEX([2]Staging!$J$6:$J$566,MATCH(B23,[2]Staging!$D$6:$D$566, 0)) -> 0.23 | P23: =INDEX([2]Staging!$P$6:$P$566,MATCH(B23,[2]Staging!$D$6:$D$566,0)) -> 232.8102911 | Q23: =IF(P23=0,"N/A",MAX(INDEX([2]Staging!$K$6:$K$566,MATCH(B23,[2]Staging!$D$6:$D$566,0)),$N23)) -> 0.4117743602
B24: 81 | D24: =INDEX('[2]Technical measure database'!$A$5:$CQ$1028, MATCH($B24, '[2]Technical measure database'!$A$5:$A$1028, 0), 2) -> Demonstrate and deploy filters with lower pressure drop in variable air volume (VAV) systems in commercial buildings | E24: =INDEX('[2]Technical measure database'!$A$5:$CQ$1028, MATCH($B24, '[2]Technical measure database'!$A$5:$A$1028, 0), 3) -> C: Low ΔP Air Filter | F24: =INDEX('[2]Technical measure database'!$A$5:$CQ$1028, MATCH($B24, '[2]Technical measure database'!$A$5:$A$1028, 0), 6)&": "&CHOOSE(INDEX('[2]Technical measure database'!$A$5:$CQ$1028, MATCH($B24, '[2]Technical measure database'!$A$5:$A$1028, 0), 6)+1, "Roadmap Goal/Target", "Early R&D (not basic science, but still lab bench)", "Late R&D (cost reduction, performance improvement, may be available to early adopters)", "Early Deployment (savings not yet proven in whole building context)", "Late Deployment (savings proven, but need to transform the market)", "Standards (rule in place, underway, planned, or ready to be planned)") -> 3: Early Deployment (savings not yet proven in whole building context) | H24: =INDEX('[2]Market and sales data'!$A$9:$BQ$840, MATCH($B24, '[2]Market and sales data'!$A$9:$A$840, 0), 59)*INDEX('[2]Primary energy and carbon data'!$CS$51:$CS$882,MATCH(B24,'[2]Primary energy and carbon data'!$B$51:$B$882,0)) -> 1429.851355 | I24: =INDEX('[2]Market and sales data'!$A$9:$BQ$840, MATCH($B24, '[2]Market and sales data'!$A$9:$A$840, 0), 18) -> 18971.58339 | J24: =INDEX('[2]Technical measure database'!$A$5:$CQ$1028, MATCH($B24, '[2]Technical measure database'!$A$5:$A$1028, 0), 19) -> per square foot; represents 6 filter changes over lifetime; 1 per 1,500 sq.ft. of service | L24: =INDEX('[2]Adoption curve'!$SM$38:$SM$650,MATCH(B24,'[2]Adoption curve'!$B$38:$B$650,0)) -> 443.988483 | M24: =INDEX([2]Staging!$N$6:$N$566,MATCH(B24,[2]Staging!$D$6:$D$566,0)) -> 443.988483 | N24: =INDEX([2]Staging!$J$6:$J$566,MATCH(B24,[2]Staging!$D$6:$D$566, 0)) -> 0.93 | P24: =INDEX([2]Staging!$P$6:$P$566,MATCH(B24,[2]Staging!$D$6:$D$566,0)) -> 406.6445512 | Q24: =IF(P24=0,"N/A",MAX(INDEX([2]Staging!$K$6:$K$566,MATCH(B24,[2]Staging!$D$6:$D$566,0)),$N24)) -> 1.015405931
B25: 80 | D25: =INDEX('[2]Technical measure database'!$A$5:$CQ$1028, MATCH($B25, '[2]Technical measure database'!$A$5:$A$1028, 0), 2) -> Demonstrate and deploy filters with lower pressure drop in homes with central air systems | E25: =INDEX('[2]Technical measure database'!$A$5:$CQ$1028, MATCH($B25, '[2]Technical measure database'!$A$5:$A$1028, 0), 3) -> R: Low ΔP Air Filter | F25: =INDEX('[2]Technical measure database'!$A$5:$CQ$1028, MATCH($B25, '[2]Technical measure database'!$A$5:$A$1028, 0), 6)&": "&CHOOSE(INDEX('[2]Technical measure database'!$A$5:$CQ$1028, MATCH($B25, '[2]Technical measure database'!$A$5:$A$1028, 0), 6)+1, "Roadmap Goal/Target", "Early R&D (not basic science, but still lab bench)", "Late R&D (cost reduction, performance improvement, may be available to early adopters)", "Early Deployment (savings not yet proven in whole building context)", "Late Deployment (savings proven, but need to transform the market)", "Standards (rule in place, underway, planned, or ready to be planned)") -> 3: Early Deployment (savings not yet proven in whole building context) | H25: =INDEX('[2]Market and sales data'!$A$9:$BQ$840, MATCH($B25, '[2]Market and sales data'!$A$9:$A$840, 0), 59)*INDEX('[2]Primary energy and carbon data'!$CS$51:$CS$882,MATCH(B25,'[2]Primary energy and carbon data'!$B$51:$B$882,0)) -> 589.2678056 | I25: =INDEX('[2]Market and sales data'!$A$9:$BQ$840, MATCH($B25, '[2]Market and sales data'!$A$9:$A$840, 0), 18) -> 77.585193 | J25: =INDEX('[2]Technical measure database'!$A$5:$CQ$1028, MATCH($B25, '[2]Technical measure database'!$A$5:$A$1028, 0), 19) -> per square foot | L25: =INDEX('[2]Adoption curve'!$SM$38:$SM$650,MATCH(B25,'[2]Adoption curve'!$B$38:$B$650,0)) -> 186.6667334 | M25: =INDEX([2]Staging!$N$6:$N$566,MATCH(B25,[2]Staging!$D$6:$D$566,0)) -> 186.6667334 | N25: =INDEX([2]Staging!$J$6:$J$566,MATCH(B25,[2]Staging!$D$6:$D$566, 0)) -> 3.01 | P25: =INDEX([2]Staging!$P$6:$P$566,MATCH(B25,[2]Staging!$D$6:$D$566,0)) -> 186.8351747 | Q25: =IF(P25=0,"N/A",MAX(INDEX([2]Staging!$K$6:$K$566,MATCH(B25,[2]Staging!$D$6:$D$566,0)),$N25)) -> 3.01
B26: 131 | D26: =INDEX('[2]Technical measure database'!$A$5:$CQ$1028, MATCH($B26, '[2]Technical measure database'!$A$5:$A$1028, 0), 2) -> Move to standardize efficient magnetic bearing centrifugal chiller | E26: =INDEX('[2]Technical measure database'!$A$5:$CQ$1028, MATCH($B26, '[2]Technical measure database'!$A$5:$A$1028, 0), 3) -> C: Efficient Chiller | F26: =INDEX('[2]Technical measure database'!$A$5:$CQ$1028, MATCH($B26, '[2]Technical measure database'!$A$5:$A$1028, 0), 6)&": "&CHOOSE(INDEX('[2]Technical measure database'!$A$5:$CQ$1028, MATCH($B26, '[2]Technical measure database'!$A$5:$A$1028, 0), 6)+1, "Roadmap Goal/Target", "Early R&D (not basic science, but still lab bench)", "Late R&D (cost reduction, performance improvement, may be available to early adopters)", "Early Deployment (savings not yet proven in whole building context)", "Late Deployment (savings proven, but need to transform the market)", "Standards (rule in place, underway, planned, or ready to be planned)") -> 4: Late Deployment (savings proven, but need to transform the market) | H26: =INDEX('[2]Market and sales data'!$A$9:$BQ$840, MATCH($B26, '[2]Market and sales data'!$A$9:$A$840, 0), 59)*INDEX('[2]Primary energy and carbon data'!$CS$51:$CS$882,MATCH(B26,'[2]Primary energy and carbon data'!$B$51:$B$882,0)) -> 516.9660191 | I26: =INDEX('[2]Market and sales data'!$A$9:$BQ$840, MATCH($B26, '[2]Market and sales data'!$A$9:$A$840, 0), 18) -> 13686.38769 | J26: =INDEX('[2]Technical measure database'!$A$5:$CQ$1028, MATCH($B26, '[2]Technical measure database'!$A$5:$A$1028, 0), 19) -> per square foot; 1 ton per 280 sq.ft. | L26: =INDEX('[2]Adoption curve'!$SM$38:$SM$650,MATCH(B26,'[2]Adoption curve'!$B$38:$B$650,0)) -> 239.546353 | M26: =INDEX([2]Staging!$N$6:$N$566,MATCH(B26,[2]Staging!$D$6:$D$566,0)) -> 239.546353 | N26: =INDEX([2]Staging!$J$6:$J$566,MATCH(B26,[2]Staging!$D$6:$D$566, 0)) -> 2.58 | P26: =INDEX([2]Staging!$P$6:$P$566,MATCH(B26,[2]Staging!$D$6:$D$566,0)) -> 156.491773 | Q26: =IF(P26=0,"N/A",MAX(INDEX([2]Staging!$K$6:$K$566,MATCH(B26,[2]Staging!$D$6:$D$566,0)),$N26)) -> 3.949278476
B27: 128 | D27: =INDEX('[2]Technical measure database'!$A$5:$CQ$1028, MATCH($B27, '[2]Technical measure database'!$A$5:$A$1028, 0), 2) -> Launch campaign to encourage adoption of duct sealing in existing commercial buildings | E27: =INDEX('[2]Technical measure database'!$A$5:$CQ$1028, MATCH($B27, '[2]Technical measure database'!$A$5:$A$1028, 0), 3) -> C: Duct Sealing (E) | F27: =INDEX('[2]Technical measure database'!$A$5:$CQ$1028, MATCH($B27, '[2]Technical measure database'!$A$5:$A$1028, 0), 6)&": "&CHOOSE(INDEX('[2]Technical measure database'!$A$5:$CQ$1028, MATCH($B27, '[2]Technical measure database'!$A$5:$A$1028, 0), 6)+1, "Roadmap Goal/Target", "Early R&D (not basic science, but still lab bench)", "Late R&D (cost reduction, performance improvement, may be available to early adopters)", "Early Deployment (savings not yet proven in whole building context)", "Late Deployment (savings proven, but need to transform the market)", "Standards (rule in place, underway, planned, or ready to be planned)") -> 3: Early Deployment (savings not yet proven in whole building context) | H27: =INDEX('[2]Market and sales data'!$A$9:$BQ$840, MATCH($B27, '[2]Market and sales data'!$A$9:$A$840, 0), 59)*INDEX('[2]Primary energy and carbon data'!$CS$51:$CS$882,MATCH(B27,'[2]Primary energy and carbon data'!$B$51:$B$882,0)) -> 1443.501052 | I27: =INDEX('[2]Market and sales data'!$A$9:$BQ$840, MATCH($B27, '[2]Market and sales data'!$A$9:$A$840, 0), 18) -> 76566.9285 | J27: =INDEX('[2]Technical measure database'!$A$5:$CQ$1028, MATCH($B27, '[2]Technical measure database'!$A$5:$A$1028, 0), 19) -> per square foot | L27: =INDEX('[2]Adoption curve'!$SM$38:$SM$650,MATCH(B27,'[2]Adoption curve'!$B$38:$B$650,0)) -> 96.05094007 | M27: =INDEX([2]Staging!$N$6:$N$566,MATCH(B27,[2]Staging!$D$6:$D$566,0)) -> 96.05094007 | N27: =INDEX([2]Staging!$J$6:$J$566,MATCH(B27,[2]Staging!$D$6:$D$566, 0)) -> 5.13 | P27: =INDEX([2]Staging!$P$6:$P$566,MATCH(B27,[2]Staging!$D$6:$D$566,0)) -> 90.53161726 | Q27: =IF(P27=0,"N/A",MAX(INDEX([2]Staging!$K$6:$K$566,MATCH(B27,[2]Staging!$D$6:$D$566,0)),$N27)) -> 5.442754006
B28: 681 | D28: =INDEX('[2]Technical measure database'!$A$5:$CQ$1028, MATCH($B28, '[2]Technical measure database'!$A$5:$A$1028, 0), 2) -> Demonstrate and deploy ERV (Energy Recovery Ventilation) in new commercial buildings | E28: =INDEX('[2]Technical measure database'!$A$5:$CQ$1028, MATCH($B28, '[2]Technical measure database'!$A$5:$A$1028, 0), 3) -> C: Energy Recovery Vent (N) | F28: =INDEX('[2]Technical measure database'!$A$5:$CQ$1028, MATCH($B28, '[2]Technical measure database'!$A$5:$A$1028, 0), 6)&": "&CHOOSE(INDEX('[2]Technical measure database'!$A$5:$CQ$1028, MATCH($B28, '[2]Technical measure database'!$A$5:$A$1028, 0), 6)+1, "Roadmap Goal/Target", "Early R&D (not basic science, but still lab bench)", "Late R&D (cost reduction, performance improvement, may be available to early adopters)", "Early Deployment (savings not yet proven in whole building context)", "Late Deployment (savings proven, but need to transform the market)", "Standards (rule in place, underway, planned, or ready to be planned)") -> 4: Late Deployment (savings proven, but need to transform the market) | H28: =INDEX('[2]Market and sales data'!$A$9:$BQ$840, MATCH($B28, '[2]Market and sales data'!$A$9:$A$840, 0), 59)*INDEX('[2]Primary energy and carbon data'!$CS$51:$CS$882,MATCH(B28,'[2]Primary energy and carbon data'!$B$51:$B$882,0)) -> 2902.829035 | I28: =INDEX('[2]Market and sales data'!$A$9:$BQ$840, MATCH($B28, '[2]Market and sales data'!$A$9:$A$840, 0), 18) -> 12013.10454 | J28: =INDEX('[2]Technical measure database'!$A$5:$CQ$1028, MATCH($B28, '[2]Technical measure database'!$A$5:$A$1028, 0), 19) -> per square foot | L28: =INDEX('[2]Adoption curve'!$SM$38:$SM$650,MATCH(B28,'[2]Adoption curve'!$B$38:$B$650,0)) -> 871.1434695 | M28: =INDEX([2]Staging!$N$6:$N$566,MATCH(B28,[2]Staging!$D$6:$D$566,0)) -> 871.1434695 | N28: =INDEX([2]Staging!$J$6:$J$566,MATCH(B28,[2]Staging!$D$6:$D$566, 0)) -> 4.17 | P28: =INDEX([2]Staging!$P$6:$P$566,MATCH(B28,[2]Staging!$D$6:$D$566,0)) -> 565.9473104 | Q28: =IF(P28=0,"N/A",MAX(INDEX([2]Staging!$K$6:$K$566,MATCH(B28,[2]Staging!$D$6:$D$566,0)),$N28)) -> 6.418739344
B29: 141 | D29: =INDEX('[2]Technical measure database'!$A$5:$CQ$1028, MATCH($B29, '[2]Technical measure database'!$A$5:$A$1028, 0), 2) -> Demonstrate and deploy demand control ventilation in commercial buildings | E29: =INDEX('[2]Technical measure database'!$A$5:$CQ$1028, MATCH($B29, '[2]Technical measure database'!$A$5:$A$1028, 0), 3) -> C: Demand Ventilation | F29: =INDEX('[2]Technical measure database'!$A$5:$CQ$1028, MATCH($B29, '[2]Technical measure database'!$A$5:$A$1028, 0), 6)&": "&CHOOSE(INDEX('[2]Technical measure database'!$A$5:$CQ$1028, MATCH($B29, '[2]Technical measure database'!$A$5:$A$1028, 0), 6)+1, "Roadmap Goal/Target", "Early R&D (not basic science, but still lab bench)", "Late R&D (cost reduction, performance improvement, may be available to early adopters)", "Early Deployment (savings not yet proven in whole building context)", "Late Deployment (savings proven, but need to transform the market)", "Standards (rule in place, underway, planned, or ready to be planned)") -> 4: Late Deployment (savings proven, but need to transform the market) | H29: =INDEX('[2]Market and sales data'!$A$9:$BQ$840, MATCH($B29, '[2]Market and sales data'!$A$9:$A$840, 0), 59)*INDEX('[2]Primary energy and carbon data'!$CS$51:$CS$882,MATCH(B29,'[2]Primary energy and carbon data'!$B$51:$B$882,0)) -> 5920.30091 | I29: =INDEX('[2]Market and sales data'!$A$9:$BQ$840, MATCH($B29, '[2]Market and sales data'!$A$9:$A$840, 0), 18) -> 85074.365 | J29: =INDEX('[2]Technical measure database'!$A$5:$CQ$1028, MATCH($B29, '[2]Technical measure database'!$A$5:$A$1028, 0), 19) -> per square foot; $800/zone | L29: =INDEX('[2]Adoption curve'!$SM$38:$SM$650,MATCH(B29,'[2]Adoption curve'!$B$38:$B$650,0)) -> 547.5507643 | M29: =INDEX([2]Staging!$N$6:$N$566,MATCH(B29,[2]Staging!$D$6:$D$566,0)) -> 547.5507643 | N29: =INDEX([2]Staging!$J$6:$J$566,MATCH(B29,[2]Staging!$D$6:$D$566, 0)) -> 4.79 | P29: =INDEX([2]Staging!$P$6:$P$566,MATCH(B29,[2]Staging!$D$6:$D$566,0)) -> 305.9104656 | Q29: =IF(P29=0,"N/A",MAX(INDEX([2]Staging!$K$6:$K$566,MATCH(B29,[2]Staging!$D$6:$D$566,0)),$N29)) -> 8.573646395
B30: 161 | D30: =INDEX('[2]Technical measure database'!$A$5:$CQ$1028, MATCH($B30, '[2]Technical measure database'!$A$5:$A$1028, 0), 2) -> Demonstrate and deploy minisplit heat pumps in homes | E30: =INDEX('[2]Technical measure database'!$A$5:$CQ$1028, MATCH($B30, '[2]Technical measure database'!$A$5:$A$1028, 0), 3) -> R: Minisplits | F30: =INDEX('[2]Technical measure database'!$A$5:$CQ$1028, MATCH($B30, '[2]Technical measure database'!$A$5:$A$1028, 0), 6)&": "&CHOOSE(INDEX('[2]Technical measure database'!$A$5:$CQ$1028, MATCH($B30, '[2]Technical measure database'!$A$5:$A$1028, 0), 6)+1, "Roadmap Goal/Target", "Early R&D (not basic science, but still lab bench)", "Late R&D (cost reduction, performance improvement, may be available to early adopters)", "Early Deployment (savings not yet proven in whole building context)", "Late Deployment (savings proven, but need to transform the market)", "Standards (rule in place, underway, planned, or ready to be planned)") -> 4: Late Deployment (savings proven, but need to transform the market) | H30: =INDEX('[2]Market and sales data'!$A$9:$BQ$840, MATCH($B30, '[2]Market and sales data'!$A$9:$A$840, 0), 59)*INDEX('[2]Primary energy and carbon data'!$CS$51:$CS$882,MATCH(B30,'[2]Primary energy and carbon data'!$B$51:$B$882,0)) -> 971.6583199 | I30: =INDEX('[2]Market and sales data'!$A$9:$BQ$840, MATCH($B30, '[2]Market and sales data'!$A$9:$A$840, 0), 18) -> 10.44595702 | J30: =INDEX('[2]Technical measure database'!$A$5:$CQ$1028, MATCH($B30, '[2]Technical measure database'!$A$5:$A$1028, 0), 19) -> per home; 3 tons capacity (3 indoor units for mini-split) | L30: =INDEX('[2]Adoption curve'!$SM$38:$SM$650,MATCH(B30,'[2]Adoption curve'!$B$38:$B$650,0)) -> 349.410867 | M30: =INDEX([2]Staging!$N$6:$N$566,MATCH(B30,[2]Staging!$D$6:$D$566,0)) -> 349.410867 | N30: =INDEX([2]Staging!$J$6:$J$566,MATCH(B30,[2]Staging!$D$6:$D$566, 0)) -> 3.77 | P30: =INDEX([2]Staging!$P$6:$P$566,MATCH(B30,[2]Staging!$D$6:$D$566,0)) -> 121.9389034 | Q30: =IF(P30=0,"N/A",MAX(INDEX([2]Staging!$K$6:$K$566,MATCH(B30,[2]Staging!$D$6:$D$566,0)),$N30)) -> 10.80277854
B31: 765 | D31: =INDEX('[2]Technical measure database'!$A$5:$CQ$1028, MATCH($B31, '[2]Technical measure database'!$A$5:$A$1028, 0), 2) -> Advanced RTU (CRADA) | E31: =INDEX('[2]Technical measure database'!$A$5:$CQ$1028, MATCH($B31, '[2]Technical measure database'!$A$5:$A$1028, 0), 3) -> C: RTU (IEER 20) | F31: =INDEX('[2]Technical measure database'!$A$5:$CQ$1028, MATCH($B31, '[2]Technical measure database'!$A$5:$A$1028, 0), 6)&": "&CHOOSE(INDEX('[2]Technical measure database'!$A$5:$CQ$1028, MATCH($B31, '[2]Technical measure database'!$A$5:$A$1028, 0), 6)+1, "Roadmap Goal/Target", "Early R&D (not basic science, but still lab bench)", "Late R&D (cost reduction, performance improvement, may be available to early adopters)", "Early Deployment (savings not yet proven in whole building context)", "Late Deployment (savings proven, but need to transform the market)", "Standards (rule in place, underway, planned, or ready to be planned)") -> 4: Late Deployment (savings proven, but need to transform the market) | H31: =INDEX('[2]Market and sales data'!$A$9:$BQ$840, MATCH($B31, '[2]Market and sales data'!$A$9:$A$840, 0), 59)*INDEX('[2]Primary energy and carbon data'!$CS$51:$CS$882,MATCH(B31,'[2]Primary energy and carbon data'!$B$51:$B$882,0)) -> 608.7233758 | I31: =INDEX('[2]Market and sales data'!$A$9:$BQ$840, MATCH($B31, '[2]Market and sales data'!$A$9:$A$840, 0), 18) -> 32688.19335 | J31: =INDEX('[2]Technical measure database'!$A$5:$CQ$1028, MATCH($B31, '[2]Technical measure database'!$A$5:$A$1028, 0), 19) -> per square foot; 10 tons per 6,000 sq.ft. | L31: =INDEX('[2]Adoption curve'!$SM$38:$SM$650,MATCH(B31,'[2]Adoption curve'!$B$38:$B$650,0)) -> 258.1439563 | M31: =INDEX([2]Staging!$N$6:$N$566,MATCH(B31,[2]Staging!$D$6:$D$566,0)) -> 258.1439563 | N31: =INDEX([2]Staging!$J$6:$J$566,MATCH(B31,[2]Staging!$D$6:$D$566, 0)) -> 4.65 | P31: =INDEX([2]Staging!$P$6:$P$566,MATCH(B31,[2]Staging!$D$6:$D$566,0)) -> 102.6504828 | Q31: =IF(P31=0,"N/A",MAX(INDEX([2]Staging!$K$6:$K$566,MATCH(B31,[2]Staging!$D$6:$D$566,0)),$N31)) -> 11.69375306
B32: 102 | D32: =INDEX('[2]Technical measure database'!$A$5:$CQ$1028, MATCH($B32, '[2]Technical measure database'!$A$5:$A$1028, 0), 2) -> Move to standardize variable speed motors in residential blowers | E32: =INDEX('[2]Technical measure database'!$A$5:$CQ$1028, MATCH($B32, '[2]Technical measure database'!$A$5:$A$1028, 0), 3) -> R: Variable Speed Blower | F32: =INDEX('[2]Technical measure database'!$A$5:$CQ$1028, MATCH($B32, '[2]Technical measure database'!$A$5:$A$1028, 0), 6)&": "&CHOOSE(INDEX('[2]Technical measure database'!$A$5:$CQ$1028, MATCH($B32, '[2]Technical measure database'!$A$5:$A$1028, 0), 6)+1, "Roadmap Goal/Target", "Early R&D (not basic science, but still lab bench)", "Late R&D (cost reduction, performance improvement, may be available to early adopters)", "Early Deployment (savings not yet proven in whole building context)", "Late Deployment (savings proven, but need to transform the market)", "Standards (rule in place, underway, planned, or ready to be planned)") -> 4: Late Deployment (savings proven, but need to transform the market) | H32: =INDEX('[2]Market and sales data'!$A$9:$BQ$840, MATCH($B32, '[2]Market and sales data'!$A$9:$A$840, 0), 59)*INDEX('[2]Primary energy and carbon data'!$CS$51:$CS$882,MATCH(B32,'[2]Primary energy and carbon data'!$B$51:$B$882,0)) -> 589.2678056 | I32: =INDEX('[2]Market and sales data'!$A$9:$BQ$840, MATCH($B32, '[2]Market and sales data'!$A$9:$A$840, 0), 18) -> 77.585193 | J32: =INDEX('[2]Technical measure database'!$A$5:$CQ$1028, MATCH($B32, '[2]Technical measure database'!$A$5:$A$1028, 0), 19) -> per unit | L32: =INDEX('[2]Adoption curve'!$SM$38:$SM$650,MATCH(B32,'[2]Adoption curve'!$B$38:$B$650,0)) -> 320.7251612 | M32: =INDEX([2]Staging!$N$6:$N$566,MATCH(B32,[2]Staging!$D$6:$D$566,0)) -> 320.7251612 | N32: =INDEX([2]Staging!$J$6:$J$566,MATCH(B32,[2]Staging!$D$6:$D$566, 0)) -> 5.47 | P32: =INDEX([2]Staging!$P$6:$P$566,MATCH(B32,[2]Staging!$D$6:$D$566,0)) -> 127.6261457 | Q32: =IF(P32=0,"N/A",MAX(INDEX([2]Staging!$K$6:$K$566,MATCH(B32,[2]Staging!$D$6:$D$566,0)),$N32)) -> 13.74613816
B33: 118 | D33: =INDEX('[2]Technical measure database'!$A$5:$CQ$1028, MATCH($B33, '[2]Technical measure database'!$A$5:$A$1028, 0), 2) -> Move to standardize improved motors in ceiling fans | E33: =INDEX('[2]Technical measure database'!$A$5:$CQ$1028, MATCH($B33, '[2]Technical measure database'!$A$5:$A$1028, 0), 3) -> R: Efficient Ceiling Fan Motors | F33: =INDEX('[2]Technical measure database'!$A$5:$CQ$1028, MATCH($B33, '[2]Technical measure database'!$A$5:$A$1028, 0), 6)&": "&CHOOSE(INDEX('[2]Technical measure database'!$A$5:$CQ$1028, MATCH($B33, '[2]Technical measure database'!$A$5:$A$1028, 0), 6)+1, "Roadmap Goal/Target", "Early R&D (not basic science, but still lab bench)", "Late R&D (cost reduction, performance improvement, may be available to early adopters)", "Early Deployment (savings not yet proven in whole building context)", "Late Deployment (savings proven, but need to transform the market)", "Standards (rule in place, underway, planned, or ready to be planned)") -> 4: Late Deployment (savings proven, but need to transform the market) | H33: =INDEX('[2]Market and sales data'!$A$9:$BQ$840, MATCH($B33, '[2]Market and sales data'!$A$9:$A$840, 0), 59)*INDEX('[2]Primary energy and carbon data'!$CS$51:$CS$882,MATCH(B33,'[2]Primary energy and carbon data'!$B$51:$B$882,0)) -> 230.789491 | I33: =INDEX('[2]Market and sales data'!$A$9:$BQ$840, MATCH($B33, '[2]Market and sales data'!$A$9:$A$840, 0), 18) -> 257.551603 | J33: =INDEX('[2]Technical measure database'!$A$5:$CQ$1028, MATCH($B33, '[2]Technical measure database'!$A$5:$A$1028, 0), 19) -> per unit | L33: =INDEX('[2]Adoption curve'!$SM$38:$SM$650,MATCH(B33,'[2]Adoption curve'!$B$38:$B$650,0)) -> 124.6881927 | M33: =INDEX([2]Staging!$N$6:$N$566,MATCH(B33,[2]Staging!$D$6:$D$566,0)) -> 124.6881927 | N33: =INDEX([2]Staging!$J$6:$J$566,MATCH(B33,[2]Staging!$D$6:$D$566, 0)) -> 14.18 | P33: =INDEX([2]Staging!$P$6:$P$566,MATCH(B33,[2]Staging!$D$6:$D$566,0)) -> 124.354348 | Q33: =IF(P33=0,"N/A",MAX(INDEX([2]Staging!$K$6:$K$566,MATCH(B33,[2]Staging!$D$6:$D$566,0)),$N33)) -> 14.21806797
B34: 88 | D34: =INDEX('[2]Technical measure database'!$A$5:$CQ$1028, MATCH($B34, '[2]Technical measure database'!$A$5:$A$1028, 0), 2) -> Launch campaign to encourage proper A/C refrigerant charging in homes | E34: =INDEX('[2]Technical measure database'!$A$5:$CQ$1028, MATCH($B34, '[2]Technical measure database'!$A$5:$A$1028, 0), 3) -> R: Charge AC Refrigerant | F34: =INDEX('[2]Technical measure database'!$A$5:$CQ$1028, MATCH($B34, '[2]Technical measure database'!$A$5:$A$1028, 0), 6)&": "&CHOOSE(INDEX('[2]Technical measure database'!$A$5:$CQ$1028, MATCH($B34, '[2]Technical measure database'!$A$5:$A$1028, 0), 6)+1, "Roadmap Goal/Target", "Early R&D (not basic science, but still lab bench)", "Late R&D (cost reduction, performance improvement, may be available to early adopters)", "Early Deployment (savings not yet proven in whole building context)", "Late Deployment (savings proven, but need to transform the market)", "Standards (rule in place, underway, planned, or ready to be planned)") -> 4: Late Deployment (savings proven, but need to transform the market) | H34: =INDEX('[2]Market and sales data'!$A$9:$BQ$840, MATCH($B34, '[2]Market and sales data'!$A$9:$A$840, 0), 59)*INDEX('[2]Primary energy and carbon data'!$CS$51:$CS$882,MATCH(B34,'[2]Primary energy and carbon data'!$B$51:$B$882,0)) -> 3097.216001 | I34: =INDEX('[2]Market and sales data'!$A$9:$BQ$840, MATCH($B34, '[2]Market and sales data'!$A$9:$A$840, 0), 18) -> 78.976 | J34: =INDEX('[2]Technical measure database'!$A$5:$CQ$1028, MATCH($B34, '[2]Technical measure database'!$A$5:$A$1028, 0), 19) -> per unit | L34: =INDEX('[2]Adoption curve'!$SM$38:$SM$650,MATCH(B34,'[2]Adoption curve'!$B$38:$B$650,0)) -> 43.35601678 | M34: =INDEX([2]Staging!$N$6:$N$566,MATCH(B34,[2]Staging!$D$6:$D$566,0)) -> 43.35601678 | N34: =INDEX([2]Staging!$J$6:$J$566,MATCH(B34,[2]Staging!$D$6:$D$566, 0)) -> 8.69 | P34: =INDEX([2]Staging!$P$6:$P$566,MATCH(B34,[2]Staging!$D$6:$D$566,0)) -> 23.79426969 | Q34: =IF(P34=0,"N/A",MAX(INDEX([2]Staging!$K$6:$K$566,MATCH(B34,[2]Staging!$D$6:$D$566,0)),$N34)) -> 15.83422357
B35: 85 | D35: =INDEX('[2]Technical measure database'!$A$5:$CQ$1028, MATCH($B35, '[2]Technical measure database'!$A$5:$A$1028, 0), 2) -> Move to include duct insulation in building codes: residential | E35: =INDEX('[2]Technical measure database'!$A$5:$CQ$1028, MATCH($B35, '[2]Technical measure database'!$A$5:$A$1028, 0), 3) -> R: Duct Insulation (N) | F35: =INDEX('[2]Technical measure database'!$A$5:$CQ$1028, MATCH($B35, '[2]Technical measure database'!$A$5:$A$1028, 0), 6)&": "&CHOOSE(INDEX('[2]Technical measure database'!$A$5:$CQ$1028, MATCH($B35, '[2]Technical measure database'!$A$5:$A$1028, 0), 6)+1, "Roadmap Goal/Target", "Early R&D (not basic science, but still lab bench)", "Late R&D (cost reduction, performance improvement, may be available to early adopters)", "Early Deployment (savings not yet proven in whole building context)", "Late Deployment (savings proven, but need to transform the market)", "Standards (rule in place, underway, planned, or ready to be planned)") -> 5: Standards (rule in place, underway, planned, or ready to be planned) | H35: =INDEX('[2]Market and sales data'!$A$9:$BQ$840, MATCH($B35, '[2]Market and sales data'!$A$9:$A$840, 0), 59)*INDEX('[2]Primary energy and carbon data'!$CS$51:$CS$882,MATCH(B35,'[2]Primary energy and carbon data'!$B$51:$B$882,0)) -> 1889.473205 | I35: =INDEX('[2]Market and sales data'!$A$9:$BQ$840, MATCH($B35, '[2]Market and sales data'!$A$9:$A$840, 0), 18) -> 10.429829 | J35: =INDEX('[2]Technical measure database'!$A$5:$CQ$1028, MATCH($B35, '[2]Technical measure database'!$A$5:$A$1028, 0), 19) -> per home; 195 ft^2 of supply duct and ^240 ft^2 return duct for 1500 ft^2 home | L35: =INDEX('[2]Adoption curve'!$SM$38:$SM$650,MATCH(B35,'[2]Adoption curve'!$B$38:$B$650,0)) -> 148.5253243 | M35: =INDEX([2]Staging!$N$6:$N$566,MATCH(B35,[2]Staging!$D$6:$D$566,0)) -> 140.5788066 | N35: =INDEX([2]Staging!$J$6:$J$566,MATCH(B35,[2]Staging!$D$6:$D$566, 0)) -> 9.6 | P35: =INDEX([2]Staging!$P$6:$P$566,MATCH(B35,[2]Staging!$D$6:$D$566,0)) -> 80.38468783 | Q35: =IF(P35=0,"N/A",MAX(INDEX([2]Staging!$K$6:$K$566,MATCH(B35,[2]Staging!$D$6:$D$566,0)),$N35)) -> 16.78872656
B36: 98 | D36: =INDEX('[2]Technical measure database'!$A$5:$CQ$1028, MATCH($B36, '[2]Technical measure database'!$A$5:$A$1028, 0), 2) -> Launch campaign to encourage adoption of SEER 21 central A/C in homes at end of life | E36: =INDEX('[2]Technical measure database'!$A$5:$CQ$1028, MATCH($B36, '[2]Technical measure database'!$A$5:$A$1028, 0), 3) -> R: SEER 21 CAC | F36: =INDEX('[2]Technical measure database'!$A$5:$CQ$1028, MATCH($B36, '[2]Technical measure database'!$A$5:$A$1028, 0), 6)&": "&CHOOSE(INDEX('[2]Technical measure database'!$A$5:$CQ$1028, MATCH($B36, '[2]Technical measure database'!$A$5:$A$1028, 0), 6)+1, "Roadmap Goal/Target", "Early R&D (not basic science, but still lab bench)", "Late R&D (cost reduction, performance improvement, may be available to early adopters)", "Early Deployment (savings not yet proven in whole building context)", "Late Deployment (savings proven, but need to transform the market)", "Standards (rule in place, underway, planned, or ready to be planned)") -> 3: Early Deployment (savings not yet proven in whole building context) | H36: =INDEX('[2]Market and sales data'!$A$9:$BQ$840, MATCH($B36, '[2]Market and sales data'!$A$9:$A$840, 0), 59)*INDEX('[2]Primary energy and carbon data'!$CS$51:$CS$882,MATCH(B36,'[2]Primary energy and carbon data'!$B$51:$B$882,0)) -> 2007.781468 | I36: =INDEX('[2]Market and sales data'!$A$9:$BQ$840, MATCH($B36, '[2]Market and sales data'!$A$9:$A$840, 0), 18) -> 66.122779 | J36: =INDEX('[2]Technical measure database'!$A$5:$CQ$1028, MATCH($B36, '[2]Technical measure database'!$A$5:$A$1028, 0), 19) -> per home; 3 ton cooling | L36: =INDEX('[2]Adoption curve'!$SM$38:$SM$650,MATCH(B36,'[2]Adoption curve'!$B$38:$B$650,0)) -> 813.2978479 | M36: =INDEX([2]Staging!$N$6:$N$566,MATCH(B36,[2]Staging!$D$6:$D$566,0)) -> 813.2978479 | N36: =INDEX([2]Staging!$J$6:$J$566,MATCH(B36,[2]Staging!$D$6:$D$566, 0)) -> 11.21 | P36: =INDEX([2]Staging!$P$6:$P$566,MATCH(B36,[2]Staging!$D$6:$D$566,0)) -> 452.7738987 | Q36: =IF(P36=0,"N/A",MAX(INDEX([2]Staging!$K$6:$K$566,MATCH(B36,[2]Staging!$D$6:$D$566,0)),$N36)) -> 20.13603015
B37: 685 | D37: =INDEX('[2]Technical measure database'!$A$5:$CQ$1028, MATCH($B37, '[2]Technical measure database'!$A$5:$A$1028, 0), 2) -> Deploy ground source heat pumps (GSHP) to all commercial buildings, no fuel switching | E37: =INDEX('[2]Technical measure database'!$A$5:$CQ$1028, MATCH($B37, '[2]Technical measure database'!$A$5:$A$1028, 0), 3) -> C: GSHP | F37: =INDEX('[2]Technical measure database'!$A$5:$CQ$1028, MATCH($B37, '[2]Technical measure database'!$A$5:$A$1028, 0), 6)&": "&CHOOSE(INDEX('[2]Technical measure database'!$A$5:$CQ$1028, MATCH($B37, '[2]Technical measure database'!$A$5:$A$1028, 0), 6)+1, "Roadmap Goal/Target", "Early R&D (not basic science, but still lab bench)", "Late R&D (cost reduction, performance improvement, may be available to early adopters)", "Early Deployment (savings not yet proven in whole building context)", "Late Deployment (savings proven, but need to transform the market)", "Standards (rule in place, underway, planned, or ready to be planned)") -> 3: Early Deployment (savings not yet proven in whole building context) | H37: =INDEX('[2]Market and sales data'!$A$9:$BQ$840, MATCH($B37, '[2]Market and sales data'!$A$9:$A$840, 0), 59)*INDEX('[2]Primary energy and carbon data'!$CS$51:$CS$882,MATCH(B37,'[2]Primary energy and carbon data'!$B$51:$B$882,0)) -> 1378.797939 | I37: =INDEX('[2]Market and sales data'!$A$9:$BQ$840, MATCH($B37, '[2]Market and sales data'!$A$9:$A$840, 0), 18) -> 3729.992992 | J37: =INDEX('[2]Technical measure database'!$A$5:$CQ$1028, MATCH($B37, '[2]Technical measure database'!$A$5:$A$1028, 0), 19) -> per square foot; 1 ton per 280 sq. ft. | L37: =INDEX('[2]Adoption curve'!$SM$38:$SM$650,MATCH(B37,'[2]Adoption curve'!$B$38:$B$650,0)) -> 762.9927275 | M37: =INDEX([2]Staging!$N$6:$N$566,MATCH(B37,[2]Staging!$D$6:$D$566,0)) -> 762.9927275 | N37: =INDEX([2]Staging!$J$6:$J$566,MATCH(B37,[2]Staging!$D$6:$D$566, 0)) -> 4.05 | P37: =INDEX([2]Staging!$P$6:$P$566,MATCH(B37,[2]Staging!$D$6:$D$566,0)) -> 115.3487438 | Q37: =IF(P37=0,"N/A",MAX(INDEX([2]Staging!$K$6:$K$566,MATCH(B37,[2]Staging!$D$6:$D$566,0)),$N37)) -> 26.78937321
B38: 127 | D38: =INDEX('[2]Technical measure database'!$A$5:$CQ$1028, MATCH($B38, '[2]Technical measure database'!$A$5:$A$1028, 0), 2) -> Launch campaign to encourage adoption of duct sealing in existing homes | E38: =INDEX('[2]Technical measure database'!$A$5:$CQ$1028, MATCH($B38, '[2]Technical measure database'!$A$5:$A$1028, 0), 3) -> R: Duct Sealing (E) | F38: =INDEX('[2]Technical measure database'!$A$5:$CQ$1028, MATCH($B38, '[2]Technical measure database'!$A$5:$A$1028, 0), 6)&": "&CHOOSE(INDEX('[2]Technical measure database'!$A$5:$CQ$1028, MATCH($B38, '[2]Technical measure database'!$A$5:$A$1028, 0), 6)+1, "Roadmap Goal/Target", "Early R&D (not basic science, but still lab bench)", "Late R&D (cost reduction, performance improvement, may be available to early adopters)", "Early Deployment (savings not yet proven in whole building context)", "Late Deployment (savings proven, but need to transform the market)", "Standards (rule in place, underway, planned, or ready to be planned)") -> 3: Early Deployment (savings not yet proven in whole building context) | H38: =INDEX('[2]Market and sales data'!$A$9:$BQ$840, MATCH($B38, '[2]Market and sales data'!$A$9:$A$840, 0), 59)*INDEX('[2]Primary energy and carbon data'!$CS$51:$CS$882,MATCH(B38,'[2]Primary energy and carbon data'!$B$51:$B$882,0)) -> 4291.689985 | I38: =INDEX('[2]Market and sales data'!$A$9:$BQ$840, MATCH($B38, '[2]Market and sales data'!$A$9:$A$840, 0), 18) -> 96.3805994 | J38: =INDEX('[2]Technical measure database'!$A$5:$CQ$1028, MATCH($B38, '[2]Technical measure database'!$A$5:$A$1028, 0), 19) -> per home | L38: =INDEX('[2]Adoption curve'!$SM$38:$SM$650,MATCH(B38,'[2]Adoption curve'!$B$38:$B$650,0)) -> 192.9465624 | M38: =INDEX([2]Staging!$N$6:$N$566,MATCH(B38,[2]Staging!$D$6:$D$566,0)) -> 192.9465624 | N38: =INDEX([2]Staging!$J$6:$J$566,MATCH(B38,[2]Staging!$D$6:$D$566, 0)) -> 5.7 | P38: =INDEX([2]Staging!$P$6:$P$566,MATCH(B38,[2]Staging!$D$6:$D$566,0)) -> 36.70098244 | Q38: =IF(P38=0,"N/A",MAX(INDEX([2]Staging!$K$6:$K$566,MATCH(B38,[2]Staging!$D$6:$D$566,0)),$N38)) -> 29.96637508
B39: 628 | D39: =INDEX('[2]Technical measure database'!$A$5:$CQ$1028, MATCH($B39, '[2]Technical measure database'!$A$5:$A$1028, 0), 2) -> Develop, demonstrate, and deploy integrated heat pumps (No fuel switching) | E39: =INDEX('[2]Technical measure database'!$A$5:$CQ$1028, MATCH($B39, '[2]Technical measure database'!$A$5:$A$1028, 0), 3) -> R: IHP | F39: =INDEX('[2]Technical measure database'!$A$5:$CQ$1028, MATCH($B39, '[2]Technical measure database'!$A$5:$A$1028, 0), 6)&": "&CHOOSE(INDEX('[2]Technical measure database'!$A$5:$CQ$1028, MATCH($B39, '[2]Technical measure database'!$A$5:$A$1028, 0), 6)+1, "Roadmap Goal/Target", "Early R&D (not basic science, but still lab bench)", "Late R&D (cost reduction, performance improvement, may be available to early adopters)", "Early Deployment (savings not yet proven in whole building context)", "Late Deployment (savings proven, but need to transform the market)", "Standards (rule in place, underway, planned, or ready to be planned)") -> 2: Late R&D (cost reduction, performance improvement, may be available to early adopters) | H39: =INDEX('[2]Market and sales data'!$A$9:$BQ$840, MATCH($B39, '[2]Market and sales data'!$A$9:$A$840, 0), 59)*INDEX('[2]Primary energy and carbon data'!$CS$51:$CS$882,MATCH(B39,'[2]Primary energy and carbon data'!$B$51:$B$882,0)) -> 3523.121628 | I39: =INDEX('[2]Market and sales data'!$A$9:$BQ$840, MATCH($B39, '[2]Market and sales data'!$A$9:$A$840, 0), 18) -> 37.961404 | J39: =INDEX('[2]Technical measure database'!$A$5:$CQ$1028, MATCH($B39, '[2]Technical measure database'!$A$5:$A$1028, 0), 19) -> per home; 3 ton | L39: =INDEX('[2]Adoption curve'!$SM$38:$SM$650,MATCH(B39,'[2]Adoption curve'!$B$38:$B$650,0)) -> 1684.538003 | M39: =INDEX([2]Staging!$N$6:$N$566,MATCH(B39,[2]Staging!$D$6:$D$566,0)) -> 1088.889359 | N39: =INDEX([2]Staging!$J$6:$J$566,MATCH(B39,[2]Staging!$D$6:$D$566, 0)) -> 5.63 | P39: =INDEX([2]Staging!$P$6:$P$566,MATCH(B39,[2]Staging!$D$6:$D$566,0)) -> 200.7408986 | Q39: =IF(P39=0,"N/A",MAX(INDEX([2]Staging!$K$6:$K$566,MATCH(B39,[2]Staging!$D$6:$D$566,0)),$N39)) -> 30.53910356
B40: 563 | D40: =INDEX('[2]Technical measure database'!$A$5:$CQ$1028, MATCH($B40, '[2]Technical measure database'!$A$5:$A$1028, 0), 2) -> Demonstrate and deploy pre-dehumidification multiple-small plate dehumidifiers in commercial buildings in hot, humid climates | E40: =INDEX('[2]Technical measure database'!$A$5:$CQ$1028, MATCH($B40, '[2]Technical measure database'!$A$5:$A$1028, 0), 3) -> C: MSP Dehumidifier | F40: =INDEX('[2]Technical measure database'!$A$5:$CQ$1028, MATCH($B40, '[2]Technical measure database'!$A$5:$A$1028, 0), 6)&": "&CHOOSE(INDEX('[2]Technical measure database'!$A$5:$CQ$1028, MATCH($B40, '[2]Technical measure database'!$A$5:$A$1028, 0), 6)+1, "Roadmap Goal/Target", "Early R&D (not basic science, but still lab bench)", "Late R&D (cost reduction, performance improvement, may be available to early adopters)", "Early Deployment (savings not yet proven in whole building context)", "Late Deployment (savings proven, but need to transform the market)", "Standards (rule in place, underway, planned, or ready to be planned)") -> 1: Early R&D (not basic science, but still lab bench) | H40: =INDEX('[2]Market and sales data'!$A$9:$BQ$840, MATCH($B40, '[2]Market and sales data'!$A$9:$A$840, 0), 59)*INDEX('[2]Primary energy and carbon data'!$CS$51:$CS$882,MATCH(B40,'[2]Primary energy and carbon data'!$B$51:$B$882,0)) -> 907.0986934 | I40: =INDEX('[2]Market and sales data'!$A$9:$BQ$840, MATCH($B40, '[2]Market and sales data'!$A$9:$A$840, 0), 18) -> 24375.61307 | J40: =INDEX('[2]Technical measure database'!$A$5:$CQ$1028, MATCH($B40, '[2]Technical measure database'!$A$5:$A$1028, 0), 19) -> per square foot | L40: =INDEX('[2]Adoption curve'!$SM$38:$SM$650,MATCH(B40,'[2]Adoption curve'!$B$38:$B$650,0)) -> 280.1770144 | M40: =INDEX([2]Staging!$N$6:$N$566,MATCH(B40,[2]Staging!$D$6:$D$566,0)) -> 255.4409163 | N40: =INDEX([2]Staging!$J$6:$J$566,MATCH(B40,[2]Staging!$D$6:$D$566, 0)) -> 3.33 | P40: =INDEX([2]Staging!$P$6:$P$566,MATCH(B40,[2]Staging!$D$6:$D$566,0)) -> 17.27961636 | Q40: =IF(P40=0,"N/A",MAX(INDEX([2]Staging!$K$6:$K$566,MATCH(B40,[2]Staging!$D$6:$D$566,0)),$N40)) -> 49.22668616
B41: 150 | D41: =INDEX('[2]Technical measure database'!$A$5:$CQ$1028, MATCH($B41, '[2]Technical measure database'!$A$5:$A$1028, 0), 2) -> Research, demonstrate, and deploy natural gas powered GAX heat pumps in homes | E41: =INDEX('[2]Technical measure database'!$A$5:$CQ$1028, MATCH($B41, '[2]Technical measure database'!$A$5:$A$1028, 0), 3) -> R: GAX Heat Pump | F41: =INDEX('[2]Technical measure database'!$A$5:$CQ$1028, MATCH($B41, '[2]Technical measure database'!$A$5:$A$1028, 0), 6)&": "&CHOOSE(INDEX('[2]Technical measure database'!$A$5:$CQ$1028, MATCH($B41, '[2]Technical measure database'!$A$5:$A$1028, 0), 6)+1, "Roadmap Goal/Target", "Early R&D (not basic science, but still lab bench)", "Late R&D (cost reduction, performance improvement, may be available to early adopters)", "Early Deployment (savings not yet proven in whole building context)", "Late Deployment (savings proven, but need to transform the market)", "Standards (rule in place, underway, planned, or ready to be planned)") -> 1: Early R&D (not basic science, but still lab bench) | H41: =INDEX('[2]Market and sales data'!$A$9:$BQ$840, MATCH($B41, '[2]Market and sales data'!$A$9:$A$840, 0), 59)*INDEX('[2]Primary energy and carbon data'!$CS$51:$CS$882,MATCH(B41,'[2]Primary energy and carbon data'!$B$51:$B$882,0)) -> 5147.214031 | I41: =INDEX('[2]Market and sales data'!$A$9:$BQ$840, MATCH($B41, '[2]Market and sales data'!$A$9:$A$840, 0), 18) -> 82.056495 | J41: =INDEX('[2]Technical measure database'!$A$5:$CQ$1028, MATCH($B41, '[2]Technical measure database'!$A$5:$A$1028, 0), 19) -> per home; 3 tons | L41: =INDEX('[2]Adoption curve'!$SM$38:$SM$650,MATCH(B41,'[2]Adoption curve'!$B$38:$B$650,0)) -> 2499.991135 | M41: =INDEX([2]Staging!$N$6:$N$566,MATCH(B41,[2]Staging!$D$6:$D$566,0)) -> 2010.937179 | N41: =INDEX([2]Staging!$J$6:$J$566,MATCH(B41,[2]Staging!$D$6:$D$566, 0)) -> 32.39 | P41: =INDEX([2]Staging!$P$6:$P$566,MATCH(B41,[2]Staging!$D$6:$D$566,0)) -> 421.0964596 | Q41: =IF(P41=0,"N/A",MAX(INDEX([2]Staging!$K$6:$K$566,MATCH(B41,[2]Staging!$D$6:$D$566,0)),$N41)) -> 100
B42: 673 | D42: =INDEX('[2]Technical measure database'!$A$5:$CQ$1028, MATCH($B42, '[2]Technical measure database'!$A$5:$A$1028, 0), 2) -> Magnetic Cooling Cycle for all Commercial Buildings | E42: =INDEX('[2]Technical measure database'!$A$5:$CQ$1028, MATCH($B42, '[2]Technical measure database'!$A$5:$A$1028, 0), 3) -> C: Magnetic AC | F42: =INDEX('[2]Technical measure database'!$A$5:$CQ$1028, MATCH($B42, '[2]Technical measure database'!$A$5:$A$1028, 0), 6)&": "&CHOOSE(INDEX('[2]Technical measure database'!$A$5:$CQ$1028, MATCH($B42, '[2]Technical measure database'!$A$5:$A$1028, 0), 6)+1, "Roadmap Goal/Target", "Early R&D (not basic science, but still lab bench)", "Late R&D (cost reduction, performance improvement, may be available to early adopters)", "Early Deployment (savings not yet proven in whole building context)", "Late Deployment (savings proven, but need to transform the market)", "Standards (rule in place, underway, planned, or ready to be planned)") -> 1: Early R&D (not basic science, but still lab bench) | H42: =INDEX('[2]Market and sales data'!$A$9:$BQ$840, MATCH($B42, '[2]Market and sales data'!$A$9:$A$840, 0), 59)*INDEX('[2]Primary energy and carbon data'!$CS$51:$CS$882,MATCH(B42,'[2]Primary energy and carbon data'!$B$51:$B$882,0)) -> 2132.704072 | I42: =INDEX('[2]Market and sales data'!$A$9:$BQ$840, MATCH($B42, '[2]Market and sales data'!$A$9:$A$840, 0), 18) -> 85074.365 | J42: =INDEX('[2]Technical measure database'!$A$5:$CQ$1028, MATCH($B42, '[2]Technical measure database'!$A$5:$A$1028, 0), 19) -> per square foot; 1 ton per 280 square foot | L42: =INDEX('[2]Adoption curve'!$SM$38:$SM$650,MATCH(B42,'[2]Adoption curve'!$B$38:$B$650,0)) -> 585.4792544 | M42: =INDEX([2]Staging!$N$6:$N$566,MATCH(B42,[2]Staging!$D$6:$D$566,0)) -> 478.3565208 | N42: =INDEX([2]Staging!$J$6:$J$566,MATCH(B42,[2]Staging!$D$6:$D$566, 0)) -> 29.28 | P42: =INDEX([2]Staging!$P$6:$P$566,MATCH(B42,[2]Staging!$D$6:$D$566,0)) -> 36.34805299 | Q42: =IF(P42=0,"N/A",MAX(INDEX([2]Staging!$K$6:$K$566,MATCH(B42,[2]Staging!$D$6:$D$566,0)),$N42)) -> 100
B43: 135 | D43: =INDEX('[2]Technical measure database'!$A$5:$CQ$1028, MATCH($B43, '[2]Technical measure database'!$A$5:$A$1028, 0), 2) -> Research, demonstrate, and deploy air-to-air heat exchangers in homes | E43: =INDEX('[2]Technical measure database'!$A$5:$CQ$1028, MATCH($B43, '[2]Technical measure database'!$A$5:$A$1028, 0), 3) -> R: Air-to-Air Exchangers | F43: =INDEX('[2]Technical measure database'!$A$5:$CQ$1028, MATCH($B43, '[2]Technical measure database'!$A$5:$A$1028, 0), 6)&": "&CHOOSE(INDEX('[2]Technical measure database'!$A$5:$CQ$1028, MATCH($B43, '[2]Technical measure database'!$A$5:$A$1028, 0), 6)+1, "Roadmap Goal/Target", "Early R&D (not basic science, but still lab bench)", "Late R&D (cost reduction, performance improvement, may be available to early adopters)", "Early Deployment (savings not yet proven in whole building context)", "Late Deployment (savings proven, but need to transform the market)", "Standards (rule in place, underway, planned, or ready to be planned)") -> 3: Early Deployment (savings not yet proven in whole building context) | H43: =INDEX('[2]Market and sales data'!$A$9:$BQ$840, MATCH($B43, '[2]Market and sales data'!$A$9:$A$840, 0), 59)*INDEX('[2]Primary energy and carbon data'!$CS$51:$CS$882,MATCH(B43,'[2]Primary energy and carbon data'!$B$51:$B$882,0)) -> 4616.299128 | I43: =INDEX('[2]Market and sales data'!$A$9:$BQ$840, MATCH($B43, '[2]Market and sales data'!$A$9:$A$840, 0), 18) -> 120.017899 | J43: =INDEX('[2]Technical measure database'!$A$5:$CQ$1028, MATCH($B43, '[2]Technical measure database'!$A$5:$A$1028, 0), 19) -> per home; 100 cfm air excahnge | L43: =INDEX('[2]Adoption curve'!$SM$38:$SM$650,MATCH(B43,'[2]Adoption curve'!$B$38:$B$650,0)) -> 144.9295474 | M43: =INDEX([2]Staging!$N$6:$N$566,MATCH(B43,[2]Staging!$D$6:$D$566,0)) -> 144.9295474 | N43: =INDEX([2]Staging!$J$6:$J$566,MATCH(B43,[2]Staging!$D$6:$D$566, 0)) -> 46.9 | P43: =INDEX([2]Staging!$P$6:$P$566,MATCH(B43,[2]Staging!$D$6:$D$566,0)) -> 27.16432977 | Q43: =IF(P43=0,"N/A",MAX(INDEX([2]Staging!$K$6:$K$566,MATCH(B43,[2]Staging!$D$6:$D$566,0)),$N43)) -> 100
B44: 553 | D44: =INDEX('[2]Technical measure database'!$A$5:$CQ$1028, MATCH($B44, '[2]Technical measure database'!$A$5:$A$1028, 0), 2) -> Deploy ground source heat pumps to all single family homes, no fuel switching | E44: =INDEX('[2]Technical measure database'!$A$5:$CQ$1028, MATCH($B44, '[2]Technical measure database'!$A$5:$A$1028, 0), 3) -> R: Single Family GSHP | F44: =INDEX('[2]Technical measure database'!$A$5:$CQ$1028, MATCH($B44, '[2]Technical measure database'!$A$5:$A$1028, 0), 6)&": "&CHOOSE(INDEX('[2]Technical measure database'!$A$5:$CQ$1028, MATCH($B44, '[2]Technical measure database'!$A$5:$A$1028, 0), 6)+1, "Roadmap Goal/Target", "Early R&D (not basic science, but still lab bench)", "Late R&D (cost reduction, performance improvement, may be available to early adopters)", "Early Deployment (savings not yet proven in whole building context)", "Late Deployment (savings proven, but need to transform the market)", "Standards (rule in place, underway, planned, or ready to be planned)") -> 4: Late Deployment (savings proven, but need to transform the market) | H44: =INDEX('[2]Market and sales data'!$A$9:$BQ$840, MATCH($B44, '[2]Market and sales data'!$A$9:$A$840, 0), 59)*INDEX('[2]Primary energy and carbon data'!$CS$51:$CS$882,MATCH(B44,'[2]Primary energy and carbon data'!$B$51:$B$882,0)) -> 3523.121628 | I44: =INDEX('[2]Market and sales data'!$A$9:$BQ$840, MATCH($B44, '[2]Market and sales data'!$A$9:$A$840, 0), 18) -> 37.961404 | J44: =INDEX('[2]Technical measure database'!$A$5:$CQ$1028, MATCH($B44, '[2]Technical measure database'!$A$5:$A$1028, 0), 19) -> per home; 3 ton | L44: =INDEX('[2]Adoption curve'!$SM$38:$SM$650,MATCH(B44,'[2]Adoption curve'!$B$38:$B$650,0)) -> 2102.16357 | M44: =INDEX([2]Staging!$N$6:$N$566,MATCH(B44,[2]Staging!$D$6:$D$566,0)) -> 1202.503383 | N44: =INDEX([2]Staging!$J$6:$J$566,MATCH(B44,[2]Staging!$D$6:$D$566, 0)) -> 21.8 | P44: =INDEX([2]Staging!$P$6:$P$566,MATCH(B44,[2]Staging!$D$6:$D$566,0)) -> 12.32057896 | Q44: =IF(P44=0,"N/A",MAX(INDEX([2]Staging!$K$6:$K$566,MATCH(B44,[2]Staging!$D$6:$D$566,0)),$N44)) -> 100
B45: 814 | D45: =INDEX('[2]Technical measure database'!$A$5:$CQ$1028, MATCH($B45, '[2]Technical measure database'!$A$5:$A$1028, 0), 2) -> Advanced Rooftop Unit (RTU) (DOE CRADA TARGET) | E45: =INDEX('[2]Technical measure database'!$A$5:$CQ$1028, MATCH($B45, '[2]Technical measure database'!$A$5:$A$1028, 0), 3) -> C: Adv. RTU (IEER 22) - TARGET | F45: =INDEX('[2]Technical measure database'!$A$5:$CQ$1028, MATCH($B45, '[2]Technical measure database'!$A$5:$A$1028, 0), 6)&": "&CHOOSE(INDEX('[2]Technical measure database'!$A$5:$CQ$1028, MATCH($B45, '[2]Technical measure database'!$A$5:$A$1028, 0), 6)+1, "Roadmap Goal/Target", "Early R&D (not basic science, but still lab bench)", "Late R&D (cost reduction, performance improvement, may be available to early adopters)", "Early Deployment (savings not yet proven in whole building context)", "Late Deployment (savings proven, but need to transform the market)", "Standards (rule in place, underway, planned, or ready to be planned)") -> 0: Roadmap Goal/Target | H45: =INDEX('[2]Market and sales data'!$A$9:$BQ$840, MATCH($B45, '[2]Market and sales data'!$A$9:$A$840, 0), 59)*INDEX('[2]Primary energy and carbon data'!$CS$51:$CS$882,MATCH(B45,'[2]Primary energy and carbon data'!$B$51:$B$882,0)) -> 608.7233758 | I45: =INDEX('[2]Market and sales data'!$A$9:$BQ$840, MATCH($B45, '[2]Market and sales data'!$A$9:$A$840, 0), 18) -> 32688.19335 | J45: =INDEX('[2]Technical measure database'!$A$5:$CQ$1028, MATCH($B45, '[2]Technical measure database'!$A$5:$A$1028, 0), 19) -> per square foot; 10 tons per 6,000 sq.ft. | L45: =INDEX('[2]Adoption curve'!$SM$38:$SM$650,MATCH(B45,'[2]Adoption curve'!$B$38:$B$650,0)) -> 288.011852 | M45: =INDEX([2]Staging!$N$6:$N$566,MATCH(B45,[2]Staging!$D$6:$D$566,0)) -> 288.011852 | N45: =INDEX([2]Staging!$J$6:$J$566,MATCH(B45,[2]Staging!$D$6:$D$566, 0)) -> 5.34 | P45: =INDEX([2]Staging!$P$6:$P$566,MATCH(B45,[2]Staging!$D$6:$D$566,0)) -> 9.903103926 | Q45: =IF(P45=0,"N/A",MAX(INDEX([2]Staging!$K$6:$K$566,MATCH(B45,[2]Staging!$D$6:$D$566,0)),$N45)) -> 100
B46: 144 | D46: =INDEX('[2]Technical measure database'!$A$5:$CQ$1028, MATCH($B46, '[2]Technical measure database'!$A$5:$A$1028, 0), 2) -> Demonstrate and deploy dual source heat pumps in homes in non-coldest climates, no fuel switching | E46: =INDEX('[2]Technical measure database'!$A$5:$CQ$1028, MATCH($B46, '[2]Technical measure database'!$A$5:$A$1028, 0), 3) -> R: Dual Source HP | F46: =INDEX('[2]Technical measure database'!$A$5:$CQ$1028, MATCH($B46, '[2]Technical measure database'!$A$5:$A$1028, 0), 6)&": "&CHOOSE(INDEX('[2]Technical measure database'!$A$5:$CQ$1028, MATCH($B46, '[2]Technical measure database'!$A$5:$A$1028, 0), 6)+1, "Roadmap Goal/Target", "Early R&D (not basic science, but still lab bench)", "Late R&D (cost reduction, performance improvement, may be available to early adopters)", "Early Deployment (savings not yet proven in whole building context)", "Late Deployment (savings proven, but need to transform the market)", "Standards (rule in place, underway, planned, or ready to be planned)") -> 4: Late Deployment (savings proven, but need to transform the market) | H46: =INDEX('[2]Market and sales data'!$A$9:$BQ$840, MATCH($B46, '[2]Market and sales data'!$A$9:$A$840, 0), 59)*INDEX('[2]Primary energy and carbon data'!$CS$51:$CS$882,MATCH(B46,'[2]Primary energy and carbon data'!$B$51:$B$882,0)) -> 830.3417799 | I46: =INDEX('[2]Market and sales data'!$A$9:$BQ$840, MATCH($B46, '[2]Market and sales data'!$A$9:$A$840, 0), 18) -> 27.95497072 | J46: =INDEX('[2]Technical measure database'!$A$5:$CQ$1028, MATCH($B46, '[2]Technical measure database'!$A$5:$A$1028, 0), 19) -> per home; 3 ton total, 2 ton ground | L46: =INDEX('[2]Adoption curve'!$SM$38:$SM$650,MATCH(B46,'[2]Adoption curve'!$B$38:$B$650,0)) -> 262.4409471 | M46: =INDEX([2]Staging!$N$6:$N$566,MATCH(B46,[2]Staging!$D$6:$D$566,0)) -> 199.2006979 | N46: =INDEX([2]Staging!$J$6:$J$566,MATCH(B46,[2]Staging!$D$6:$D$566, 0)) -> 22.73 | P46: =INDEX([2]Staging!$P$6:$P$566,MATCH(B46,[2]Staging!$D$6:$D$566,0)) -> 7.951196821 | Q46: =IF(P46=0,"N/A",MAX(INDEX([2]Staging!$K$6:$K$566,MATCH(B46,[2]Staging!$D$6:$D$566,0)),$N46)) -> 100
B47: 805 | D47: =INDEX('[2]Technical measure database'!$A$5:$CQ$1028, MATCH($B47, '[2]Technical measure database'!$A$5:$A$1028, 0), 2) -> Develop and Deploy Low-Cost Gas Heat Pump for Building Space Heating (DOE FOA Target) | E47: =INDEX('[2]Technical measure database'!$A$5:$CQ$1028, MATCH($B47, '[2]Technical measure database'!$A$5:$A$1028, 0), 3) -> R: Low-Cost Gas HP - TARGET | F47: =INDEX('[2]Technical measure database'!$A$5:$CQ$1028, MATCH($B47, '[2]Technical measure database'!$A$5:$A$1028, 0), 6)&": "&CHOOSE(INDEX('[2]Technical measure database'!$A$5:$CQ$1028, MATCH($B47, '[2]Technical measure database'!$A$5:$A$1028, 0), 6)+1, "Roadmap Goal/Target", "Early R&D (not basic science, but still lab bench)", "Late R&D (cost reduction, performance improvement, may be available to early adopters)", "Early Deployment (savings not yet proven in whole building context)", "Late Deployment (savings proven, but need to transform the market)", "Standards (rule in place, underway, planned, or ready to be planned)") -> 0: Roadmap Goal/Target | H47: =INDEX('[2]Market and sales data'!$A$9:$BQ$840, MATCH($B47, '[2]Market and sales data'!$A$9:$A$840, 0), 59)*INDEX('[2]Primary energy and carbon data'!$CS$51:$CS$882,MATCH(B47,'[2]Primary energy and carbon data'!$B$51:$B$882,0)) -> 10065.4013 | I47: =INDEX('[2]Market and sales data'!$A$9:$BQ$840, MATCH($B47, '[2]Market and sales data'!$A$9:$A$840, 0), 18) -> 64.264127 | J47: =INDEX('[2]Technical measure database'!$A$5:$CQ$1028, MATCH($B47, '[2]Technical measure database'!$A$5:$A$1028, 0), 19) -> per home | L47: =INDEX('[2]Adoption curve'!$SM$38:$SM$650,MATCH(B47,'[2]Adoption curve'!$B$38:$B$650,0)) -> 1619.038211 | M47: =INDEX([2]Staging!$N$6:$N$566,MATCH(B47,[2]Staging!$D$6:$D$566,0)) -> 1226.694781 | N47: =INDEX([2]Staging!$J$6:$J$566,MATCH(B47,[2]Staging!$D$6:$D$566, 0)) -> 3.8 | P47: =INDEX([2]Staging!$P$6:$P$566,MATCH(B47,[2]Staging!$D$6:$D$566,0)) -> 0 | Q47: =IF(P47=0,"N/A",MAX(INDEX([2]Staging!$K$6:$K$566,MATCH(B47,[2]Staging!$D$6:$D$566,0)),$N47)) -> N/A
B48: 151 | D48: =INDEX('[2]Technical measure database'!$A$5:$CQ$1028, MATCH($B48, '[2]Technical measure database'!$A$5:$A$1028, 0), 2) -> Research, demonstrate, and deploy natural gas powered GAX heat pumps in commercial buildings | E48: =INDEX('[2]Technical measure database'!$A$5:$CQ$1028, MATCH($B48, '[2]Technical measure database'!$A$5:$A$1028, 0), 3) -> C: GAX Heat Pump | F48: =INDEX('[2]Technical measure database'!$A$5:$CQ$1028, MATCH($B48, '[2]Technical measure database'!$A$5:$A$1028, 0), 6)&": "&CHOOSE(INDEX('[2]Technical measure database'!$A$5:$CQ$1028, MATCH($B48, '[2]Technical measure database'!$A$5:$A$1028, 0), 6)+1, "Roadmap Goal/Target", "Early R&D (not basic science, but still lab bench)", "Late R&D (cost reduction, performance improvement, may be available to early adopters)", "Early Deployment (savings not yet proven in whole building context)", "Late Deployment (savings proven, but need to transform the market)", "Standards (rule in place, underway, planned, or ready to be planned)") -> 2: Late R&D (cost reduction, performance improvement, may be available to early adopters) | H48: =INDEX('[2]Market and sales data'!$A$9:$BQ$840, MATCH($B48, '[2]Market and sales data'!$A$9:$A$840, 0), 59)*INDEX('[2]Primary energy and carbon data'!$CS$51:$CS$882,MATCH(B48,'[2]Primary energy and carbon data'!$B$51:$B$882,0)) -> 838.1726363 | I48: =INDEX('[2]Market and sales data'!$A$9:$BQ$840, MATCH($B48, '[2]Market and sales data'!$A$9:$A$840, 0), 18) -> 3364.044084 | J48: =INDEX('[2]Technical measure database'!$A$5:$CQ$1028, MATCH($B48, '[2]Technical measure database'!$A$5:$A$1028, 0), 19) -> per square foot; 40 tons for 15,000 sq.ft. | L48: =INDEX('[2]Adoption curve'!$SM$38:$SM$650,MATCH(B48,'[2]Adoption curve'!$B$38:$B$650,0)) -> 655.0857902 | M48: =INDEX([2]Staging!$N$6:$N$566,MATCH(B48,[2]Staging!$D$6:$D$566,0)) -> 511.555241 | N48: =INDEX([2]Staging!$J$6:$J$566,MATCH(B48,[2]Staging!$D$6:$D$566, 0)) -> 5.76 | P48: =INDEX([2]Staging!$P$6:$P$566,MATCH(B48,[2]Staging!$D$6:$D$566,0)) -> 0 | Q48: =IF(P48=0,"N/A",MAX(INDEX([2]Staging!$K$6:$K$566,MATCH(B48,[2]Staging!$D$6:$D$566,0)),$N48)) -> N/A
B49: 119 | D49: =INDEX('[2]Technical measure database'!$A$5:$CQ$1028, MATCH($B49, '[2]Technical measure database'!$A$5:$A$1028, 0), 2) -> Launch campaign to encourage adoption of duct insulation in existing homes | E49: =INDEX('[2]Technical measure database'!$A$5:$CQ$1028, MATCH($B49, '[2]Technical measure database'!$A$5:$A$1028, 0), 3) -> R: Insulating Ducts (E) | F49: =INDEX('[2]Technical measure database'!$A$5:$CQ$1028, MATCH($B49, '[2]Technical measure database'!$A$5:$A$1028, 0), 6)&": "&CHOOSE(INDEX('[2]Technical measure database'!$A$5:$CQ$1028, MATCH($B49, '[2]Technical measure database'!$A$5:$A$1028, 0), 6)+1, "Roadmap Goal/Target", "Early R&D (not basic science, but still lab bench)", "Late R&D (cost reduction, performance improvement, may be available to early adopters)", "Early Deployment (savings not yet proven in whole building context)", "Late Deployment (savings proven, but need to transform the market)", "Standards (rule in place, underway, planned, or ready to be planned)") -> 4: Late Deployment (savings proven, but need to transform the market) | H49: =INDEX('[2]Market and sales data'!$A$9:$BQ$840, MATCH($B49, '[2]Market and sales data'!$A$9:$A$840, 0), 59)*INDEX('[2]Primary energy and carbon data'!$CS$51:$CS$882,MATCH(B49,'[2]Primary energy and carbon data'!$B$51:$B$882,0)) -> 2398.350227 | I49: =INDEX('[2]Market and sales data'!$A$9:$BQ$840, MATCH($B49, '[2]Market and sales data'!$A$9:$A$840, 0), 18) -> 65.94462064 | J49: =INDEX('[2]Technical measure database'!$A$5:$CQ$1028, MATCH($B49, '[2]Technical measure database'!$A$5:$A$1028, 0), 19) -> per home; 195 ft^2 of supply duct and ^240 ft^2 return duct for 1500 ft^2 home | L49: =INDEX('[2]Adoption curve'!$SM$38:$SM$650,MATCH(B49,'[2]Adoption curve'!$B$38:$B$650,0)) -> 257.6288703 | M49: =INDEX([2]Staging!$N$6:$N$566,MATCH(B49,[2]Staging!$D$6:$D$566,0)) -> 257.6288703 | N49: =INDEX([2]Staging!$J$6:$J$566,MATCH(B49,[2]Staging!$D$6:$D$566, 0)) -> 6.29 | P49: =INDEX([2]Staging!$P$6:$P$566,MATCH(B49,[2]Staging!$D$6:$D$566,0)) -> 0 | Q49: =IF(P49=0,"N/A",MAX(INDEX([2]Staging!$K$6:$K$566,MATCH(B49,[2]Staging!$D$6:$D$566,0)),$N49)) -> N/A
B50: 564 | D50: =INDEX('[2]Technical measure database'!$A$5:$CQ$1028, MATCH($B50, '[2]Technical measure database'!$A$5:$A$1028, 0), 2) -> Demonstrate and deploy magnetic bearing variable speed centrifugal chillers | E50: =INDEX('[2]Technical measure database'!$A$5:$CQ$1028, MATCH($B50, '[2]Technical measure database'!$A$5:$A$1028, 0), 3) -> C: Centrifugal Chiller | F50: =INDEX('[2]Technical measure database'!$A$5:$CQ$1028, MATCH($B50, '[2]Technical measure database'!$A$5:$A$1028, 0), 6)&": "&CHOOSE(INDEX('[2]Technical measure database'!$A$5:$CQ$1028, MATCH($B50, '[2]Technical measure database'!$A$5:$A$1028, 0), 6)+1, "Roadmap Goal/Target", "Early R&D (not basic science, but still lab bench)", "Late R&D (cost reduction, performance improvement, may be available to early adopters)", "Early Deployment (savings not yet proven in whole building context)", "Late Deployment (savings proven, but need to transform the market)", "Standards (rule in place, underway, planned, or ready to be planned)") -> 3: Early Deployment (savings not yet proven in whole building context) | H50: =INDEX('[2]Market and sales data'!$A$9:$BQ$840, MATCH($B50, '[2]Market and sales data'!$A$9:$A$840, 0), 59)*INDEX('[2]Primary energy and carbon data'!$CS$51:$CS$882,MATCH(B50,'[2]Primary energy and carbon data'!$B$51:$B$882,0)) -> 516.9660191 | I50: =INDEX('[2]Market and sales data'!$A$9:$BQ$840, MATCH($B50, '[2]Market and sales data'!$A$9:$A$840, 0), 18) -> 13686.38769 | J50: =INDEX('[2]Technical measure database'!$A$5:$CQ$1028, MATCH($B50, '[2]Technical measure database'!$A$5:$A$1028, 0), 19) -> per square foot; 1 ton per 280 sq.ft. | L50: =INDEX('[2]Adoption curve'!$SM$38:$SM$650,MATCH(B50,'[2]Adoption curve'!$B$38:$B$650,0)) -> 215.1002476 | M50: =INDEX([2]Staging!$N$6:$N$566,MATCH(B50,[2]Staging!$D$6:$D$566,0)) -> 215.1002476 | N50: =INDEX([2]Staging!$J$6:$J$566,MATCH(B50,[2]Staging!$D$6:$D$566, 0)) -> 10.43 | P50: =INDEX([2]Staging!$P$6:$P$566,MATCH(B50,[2]Staging!$D$6:$D$566,0)) -> 0 | Q50: =IF(P50=0,"N/A",MAX(INDEX([2]Staging!$K$6:$K$566,MATCH(B50,[2]Staging!$D$6:$D$566,0)),$N50)) -> N/A
B51: 690 | D51: =INDEX('[2]Technical measure database'!$A$5:$CQ$1028, MATCH($B51, '[2]Technical measure database'!$A$5:$A$1028, 0), 2) -> Magnetic Cooling | E51: =INDEX('[2]Technical measure database'!$A$5:$CQ$1028, MATCH($B51, '[2]Technical measure database'!$A$5:$A$1028, 0), 3) -> C: RTU: magnetic cooling | F51: =INDEX('[2]Technical measure database'!$A$5:$CQ$1028, MATCH($B51, '[2]Technical measure database'!$A$5:$A$1028, 0), 6)&": "&CHOOSE(INDEX('[2]Technical measure database'!$A$5:$CQ$1028, MATCH($B51, '[2]Technical measure database'!$A$5:$A$1028, 0), 6)+1, "Roadmap Goal/Target", "Early R&D (not basic science, but still lab bench)", "Late R&D (cost reduction, performance improvement, may be available to early adopters)", "Early Deployment (savings not yet proven in whole building context)", "Late Deployment (savings proven, but need to transform the market)", "Standards (rule in place, underway, planned, or ready to be planned)") -> 2: Late R&D (cost reduction, performance improvement, may be available to early adopters) | H51: =INDEX('[2]Market and sales data'!$A$9:$BQ$840, MATCH($B51, '[2]Market and sales data'!$A$9:$A$840, 0), 59)*INDEX('[2]Primary energy and carbon data'!$CS$51:$CS$882,MATCH(B51,'[2]Primary energy and carbon data'!$B$51:$B$882,0)) -> 844.8189037 | I51: =INDEX('[2]Market and sales data'!$A$9:$BQ$840, MATCH($B51, '[2]Market and sales data'!$A$9:$A$840, 0), 18) -> 26606.83442 | J51: =INDEX('[2]Technical measure database'!$A$5:$CQ$1028, MATCH($B51, '[2]Technical measure database'!$A$5:$A$1028, 0), 19) -> per square foot; 1 ton per 280 square foot | L51: =INDEX('[2]Adoption curve'!$SM$38:$SM$650,MATCH(B51,'[2]Adoption curve'!$B$38:$B$650,0)) -> 203.5663867 | M51: =INDEX([2]Staging!$N$6:$N$566,MATCH(B51,[2]Staging!$D$6:$D$566,0)) -> 168.4620974 | N51: =INDEX([2]Staging!$J$6:$J$566,MATCH(B51,[2]Staging!$D$6:$D$566, 0)) -> 36.58 | P51: =INDEX([2]Staging!$P$6:$P$566,MATCH(B51,[2]Staging!$D$6:$D$566,0)) -> 0 | Q51: =IF(P51=0,"N/A",MAX(INDEX([2]Staging!$K$6:$K$566,MATCH(B51,[2]Staging!$D$6:$D$566,0)),$N51)) -> N/A
B52: 93 | D52: =INDEX('[2]Technical measure database'!$A$5:$CQ$1028, MATCH($B52, '[2]Technical measure database'!$A$5:$A$1028, 0), 2) -> Launch campaign to encourage steam cleaning commercial A/C coils annually | E52: =INDEX('[2]Technical measure database'!$A$5:$CQ$1028, MATCH($B52, '[2]Technical measure database'!$A$5:$A$1028, 0), 3) -> C: Steam Clean AC Coils | F52: =INDEX('[2]Technical measure database'!$A$5:$CQ$1028, MATCH($B52, '[2]Technical measure database'!$A$5:$A$1028, 0), 6)&": "&CHOOSE(INDEX('[2]Technical measure database'!$A$5:$CQ$1028, MATCH($B52, '[2]Technical measure database'!$A$5:$A$1028, 0), 6)+1, "Roadmap Goal/Target", "Early R&D (not basic science, but still lab bench)", "Late R&D (cost reduction, performance improvement, may be available to early adopters)", "Early Deployment (savings not yet proven in whole building context)", "Late Deployment (savings proven, but need to transform the market)", "Standards (rule in place, underway, planned, or ready to be planned)") -> 4: Late Deployment (savings proven, but need to transform the market) | H52: =INDEX('[2]Market and sales data'!$A$9:$BQ$840, MATCH($B52, '[2]Market and sales data'!$A$9:$A$840, 0), 59)*INDEX('[2]Primary energy and carbon data'!$CS$51:$CS$882,MATCH(B52,'[2]Primary energy and carbon data'!$B$51:$B$882,0)) -> 2284.884368 | I52: =INDEX('[2]Market and sales data'!$A$9:$BQ$840, MATCH($B52, '[2]Market and sales data'!$A$9:$A$840, 0), 18) -> 85074.365 | J52: =INDEX('[2]Technical measure database'!$A$5:$CQ$1028, MATCH($B52, '[2]Technical measure database'!$A$5:$A$1028, 0), 19) -> per square foot | L52: =INDEX('[2]Adoption curve'!$SM$38:$SM$650,MATCH(B52,'[2]Adoption curve'!$B$38:$B$650,0)) -> 160.0143406 | M52: =INDEX([2]Staging!$N$6:$N$566,MATCH(B52,[2]Staging!$D$6:$D$566,0)) -> 160.0143406 | N52: =INDEX([2]Staging!$J$6:$J$566,MATCH(B52,[2]Staging!$D$6:$D$566, 0)) -> 12.85 | P52: =INDEX([2]Staging!$P$6:$P$566,MATCH(B52,[2]Staging!$D$6:$D$566,0)) -> 0 | Q52: =IF(P52=0,"N/A",MAX(INDEX([2]Staging!$K$6:$K$566,MATCH(B52,[2]Staging!$D$6:$D$566,0)),$N52)) -> N/A
B53: 679 | D53: =INDEX('[2]Technical measure database'!$A$5:$CQ$1028, MATCH($B53, '[2]Technical measure database'!$A$5:$A$1028, 0), 2) -> Research, demonstrate, and deploy advanced liquid desiccant A/C (e.g., DeVAP, DuCool) in homes in dry climates | E53: =INDEX('[2]Technical measure database'!$A$5:$CQ$1028, MATCH($B53, '[2]Technical measure database'!$A$5:$A$1028, 0), 3) -> R: DEVAP, Dry CZ | F53: =INDEX('[2]Technical measure database'!$A$5:$CQ$1028, MATCH($B53, '[2]Technical measure database'!$A$5:$A$1028, 0), 6)&": "&CHOOSE(INDEX('[2]Technical measure database'!$A$5:$CQ$1028, MATCH($B53, '[2]Technical measure database'!$A$5:$A$1028, 0), 6)+1, "Roadmap Goal/Target", "Early R&D (not basic science, but still lab bench)", "Late R&D (cost reduction, performance improvement, may be available to early adopters)", "Early Deployment (savings not yet proven in whole building context)", "Late Deployment (savings proven, but need to transform the market)", "Standards (rule in place, underway, planned, or ready to be planned)") -> 1: Early R&D (not basic science, but still lab bench) | H53: =INDEX('[2]Market and sales data'!$A$9:$BQ$840, MATCH($B53, '[2]Market and sales data'!$A$9:$A$840, 0), 59)*INDEX('[2]Primary energy and carbon data'!$CS$51:$CS$882,MATCH(B53,'[2]Primary energy and carbon data'!$B$51:$B$882,0)) -> 343.0540366 | I53: =INDEX('[2]Market and sales data'!$A$9:$BQ$840, MATCH($B53, '[2]Market and sales data'!$A$9:$A$840, 0), 18) -> 12.64129165 | J53: =INDEX('[2]Technical measure database'!$A$5:$CQ$1028, MATCH($B53, '[2]Technical measure database'!$A$5:$A$1028, 0), 19) -> per home; 3 ton | L53: =INDEX('[2]Adoption curve'!$SM$38:$SM$650,MATCH(B53,'[2]Adoption curve'!$B$38:$B$650,0)) -> 220.0545049 | M53: =INDEX([2]Staging!$N$6:$N$566,MATCH(B53,[2]Staging!$D$6:$D$566,0)) -> 155.1858088 | N53: =INDEX([2]Staging!$J$6:$J$566,MATCH(B53,[2]Staging!$D$6:$D$566, 0)) -> 28.8 | P53: =INDEX([2]Staging!$P$6:$P$566,MATCH(B53,[2]Staging!$D$6:$D$566,0)) -> 0 | Q53: =IF(P53=0,"N/A",MAX(INDEX([2]Staging!$K$6:$K$566,MATCH(B53,[2]Staging!$D$6:$D$566,0)),$N53)) -> N/A
B54: 778 | D54: =INDEX('[2]Technical measure database'!$A$5:$CQ$1028, MATCH($B54, '[2]Technical measure database'!$A$5:$A$1028, 0), 2) -> Demonstrate and deploy low temperature heat pumps, climate zones 3 & 4 (no fuel switching) | E54: =INDEX('[2]Technical measure database'!$A$5:$CQ$1028, MATCH($B54, '[2]Technical measure database'!$A$5:$A$1028, 0), 3) -> R: Cold Climate HP, CZ 3&4 | F54: =INDEX('[2]Technical measure database'!$A$5:$CQ$1028, MATCH($B54, '[2]Technical measure database'!$A$5:$A$1028, 0), 6)&": "&CHOOSE(INDEX('[2]Technical measure database'!$A$5:$CQ$1028, MATCH($B54, '[2]Technical measure database'!$A$5:$A$1028, 0), 6)+1, "Roadmap Goal/Target", "Early R&D (not basic science, but still lab bench)", "Late R&D (cost reduction, performance improvement, may be available to early adopters)", "Early Deployment (savings not yet proven in whole building context)", "Late Deployment (savings proven, but need to transform the market)", "Standards (rule in place, underway, planned, or ready to be planned)") -> 2: Late R&D (cost reduction, performance improvement, may be available to early adopters) | H54: =INDEX('[2]Market and sales data'!$A$9:$BQ$840, MATCH($B54, '[2]Market and sales data'!$A$9:$A$840, 0), 59)*INDEX('[2]Primary energy and carbon data'!$CS$51:$CS$882,MATCH(B54,'[2]Primary energy and carbon data'!$B$51:$B$882,0)) -> 648.2119217 | I54: =INDEX('[2]Market and sales data'!$A$9:$BQ$840, MATCH($B54, '[2]Market and sales data'!$A$9:$A$840, 0), 18) -> 16.87779108 | J54: =INDEX('[2]Technical measure database'!$A$5:$CQ$1028, MATCH($B54, '[2]Technical measure database'!$A$5:$A$1028, 0), 19) -> per home; 3 tons | L54: =INDEX('[2]Adoption curve'!$SM$38:$SM$650,MATCH(B54,'[2]Adoption curve'!$B$38:$B$650,0)) -> 155.8434755 | M54: =INDEX([2]Staging!$N$6:$N$566,MATCH(B54,[2]Staging!$D$6:$D$566,0)) -> 132.8719537 | N54: =INDEX([2]Staging!$J$6:$J$566,MATCH(B54,[2]Staging!$D$6:$D$566, 0)) -> 24.64 | P54: =INDEX([2]Staging!$P$6:$P$566,MATCH(B54,[2]Staging!$D$6:$D$566,0)) -> 0 | Q54: =IF(P54=0,"N/A",MAX(INDEX([2]Staging!$K$6:$K$566,MATCH(B54,[2]Staging!$D$6:$D$566,0)),$N54)) -> N/A
B55: 92 | D55: =INDEX('[2]Technical measure database'!$A$5:$CQ$1028, MATCH($B55, '[2]Technical measure database'!$A$5:$A$1028, 0), 2) -> Move to include duct sealing in commercial codes | E55: =INDEX('[2]Technical measure database'!$A$5:$CQ$1028, MATCH($B55, '[2]Technical measure database'!$A$5:$A$1028, 0), 3) -> C: Duct Sealing (N) | F55: =INDEX('[2]Technical measure database'!$A$5:$CQ$1028, MATCH($B55, '[2]Technical measure database'!$A$5:$A$1028, 0), 6)&": "&CHOOSE(INDEX('[2]Technical measure database'!$A$5:$CQ$1028, MATCH($B55, '[2]Technical measure database'!$A$5:$A$1028, 0), 6)+1, "Roadmap Goal/Target", "Early R&D (not basic science, but still lab bench)", "Late R&D (cost reduction, performance improvement, may be available to early adopters)", "Early Deployment (savings not yet proven in whole building context)", "Late Deployment (savings proven, but need to transform the market)", "Standards (rule in place, underway, planned, or ready to be planned)") -> 5: Standards (rule in place, underway, planned, or ready to be planned) | H55: =INDEX('[2]Market and sales data'!$A$9:$BQ$840, MATCH($B55, '[2]Market and sales data'!$A$9:$A$840, 0), 59)*INDEX('[2]Primary energy and carbon data'!$CS$51:$CS$882,MATCH(B55,'[2]Primary energy and carbon data'!$B$51:$B$882,0)) -> 1622.989425 | I55: =INDEX('[2]Market and sales data'!$A$9:$BQ$840, MATCH($B55, '[2]Market and sales data'!$A$9:$A$840, 0), 18) -> 12013.10454 | J55: =INDEX('[2]Technical measure database'!$A$5:$CQ$1028, MATCH($B55, '[2]Technical measure database'!$A$5:$A$1028, 0), 19) -> per square foot | L55: =INDEX('[2]Adoption curve'!$SM$38:$SM$650,MATCH(B55,'[2]Adoption curve'!$B$38:$B$650,0)) -> 138.2751828 | M55: =INDEX([2]Staging!$N$6:$N$566,MATCH(B55,[2]Staging!$D$6:$D$566,0)) -> 131.5171026 | N55: =INDEX([2]Staging!$J$6:$J$566,MATCH(B55,[2]Staging!$D$6:$D$566, 0)) -> 10.35 | P55: =INDEX([2]Staging!$P$6:$P$566,MATCH(B55,[2]Staging!$D$6:$D$566,0)) -> 0 | Q55: =IF(P55=0,"N/A",MAX(INDEX([2]Staging!$K$6:$K$566,MATCH(B55,[2]Staging!$D$6:$D$566,0)),$N55)) -> N/A
B56: 146 | D56: =INDEX('[2]Technical measure database'!$A$5:$CQ$1028, MATCH($B56, '[2]Technical measure database'!$A$5:$A$1028, 0), 2) -> Demonstrate and deploy dual source heat pumps in commercial buildings in non-coldest climates, no fuel switching | E56: =INDEX('[2]Technical measure database'!$A$5:$CQ$1028, MATCH($B56, '[2]Technical measure database'!$A$5:$A$1028, 0), 3) -> C: Dual Source HP | F56: =INDEX('[2]Technical measure database'!$A$5:$CQ$1028, MATCH($B56, '[2]Technical measure database'!$A$5:$A$1028, 0), 6)&": "&CHOOSE(INDEX('[2]Technical measure database'!$A$5:$CQ$1028, MATCH($B56, '[2]Technical measure database'!$A$5:$A$1028, 0), 6)+1, "Roadmap Goal/Target", "Early R&D (not basic science, but still lab bench)", "Late R&D (cost reduction, performance improvement, may be available to early adopters)", "Early Deployment (savings not yet proven in whole building context)", "Late Deployment (savings proven, but need to transform the market)", "Standards (rule in place, underway, planned, or ready to be planned)") -> 4: Late Deployment (savings proven, but need to transform the market) | H56: =INDEX('[2]Market and sales data'!$A$9:$BQ$840, MATCH($B56, '[2]Market and sales data'!$A$9:$A$840, 0), 59)*INDEX('[2]Primary energy and carbon data'!$CS$51:$CS$882,MATCH(B56,'[2]Primary energy and carbon data'!$B$51:$B$882,0)) -> 824.1647593 | I56: =INDEX('[2]Market and sales data'!$A$9:$BQ$840, MATCH($B56, '[2]Market and sales data'!$A$9:$A$840, 0), 18) -> 3364.044084 | J56: =INDEX('[2]Technical measure database'!$A$5:$CQ$1028, MATCH($B56, '[2]Technical measure database'!$A$5:$A$1028, 0), 19) -> per square foot; 40 ton total, 10 ton ground assumed for 15,000 sq.ft. buildings | L56: =INDEX('[2]Adoption curve'!$SM$38:$SM$650,MATCH(B56,'[2]Adoption curve'!$B$38:$B$650,0)) -> 154.3944329 | M56: =INDEX([2]Staging!$N$6:$N$566,MATCH(B56,[2]Staging!$D$6:$D$566,0)) -> 105.4079487 | N56: =INDEX([2]Staging!$J$6:$J$566,MATCH(B56,[2]Staging!$D$6:$D$566, 0)) -> 5.81 | P56: =INDEX([2]Staging!$P$6:$P$566,MATCH(B56,[2]Staging!$D$6:$D$566,0)) -> 0 | Q56: =IF(P56=0,"N/A",MAX(INDEX([2]Staging!$K$6:$K$566,MATCH(B56,[2]Staging!$D$6:$D$566,0)),$N56)) -> N/A
B57: 804 | D57: =INDEX('[2]Technical measure database'!$A$5:$CQ$1028, MATCH($B57, '[2]Technical measure database'!$A$5:$A$1028, 0), 2) -> Develop and Deploy Cold Climate Heat Pumps - Target based on UTRC project | E57: =INDEX('[2]Technical measure database'!$A$5:$CQ$1028, MATCH($B57, '[2]Technical measure database'!$A$5:$A$1028, 0), 3) -> C: Cold Climate HP - TARGET | F57: =INDEX('[2]Technical measure database'!$A$5:$CQ$1028, MATCH($B57, '[2]Technical measure database'!$A$5:$A$1028, 0), 6)&": "&CHOOSE(INDEX('[2]Technical measure database'!$A$5:$CQ$1028, MATCH($B57, '[2]Technical measure database'!$A$5:$A$1028, 0), 6)+1, "Roadmap Goal/Target", "Early R&D (not basic science, but still lab bench)", "Late R&D (cost reduction, performance improvement, may be available to early adopters)", "Early Deployment (savings not yet proven in whole building context)", "Late Deployment (savings proven, but need to transform the market)", "Standards (rule in place, underway, planned, or ready to be planned)") -> 0: Roadmap Goal/Target | H57: =INDEX('[2]Market and sales data'!$A$9:$BQ$840, MATCH($B57, '[2]Market and sales data'!$A$9:$A$840, 0), 59)*INDEX('[2]Primary energy and carbon data'!$CS$51:$CS$882,MATCH(B57,'[2]Primary energy and carbon data'!$B$51:$B$882,0)) -> 244.7929036 | I57: =INDEX('[2]Market and sales data'!$A$9:$BQ$840, MATCH($B57, '[2]Market and sales data'!$A$9:$A$840, 0), 18) -> 31224.74295 | J57: =INDEX('[2]Technical measure database'!$A$5:$CQ$1028, MATCH($B57, '[2]Technical measure database'!$A$5:$A$1028, 0), 19) -> per square foot | L57: =INDEX('[2]Adoption curve'!$SM$38:$SM$650,MATCH(B57,'[2]Adoption curve'!$B$38:$B$650,0)) -> 100.7588381 | M57: =INDEX([2]Staging!$N$6:$N$566,MATCH(B57,[2]Staging!$D$6:$D$566,0)) -> 100.7588381 | N57: =INDEX([2]Staging!$J$6:$J$566,MATCH(B57,[2]Staging!$D$6:$D$566, 0)) -> 2.56 | P57: =INDEX([2]Staging!$P$6:$P$566,MATCH(B57,[2]Staging!$D$6:$D$566,0)) -> 0 | Q57: =IF(P57=0,"N/A",MAX(INDEX([2]Staging!$K$6:$K$566,MATCH(B57,[2]Staging!$D$6:$D$566,0)),$N57)) -> N/A
B58: 96 | D58: =INDEX('[2]Technical measure database'!$A$5:$CQ$1028, MATCH($B58, '[2]Technical measure database'!$A$5:$A$1028, 0), 2) -> Launch campaign to encourage adoption of 13 EER Room A/Cs at end of life | E58: =INDEX('[2]Technical measure database'!$A$5:$CQ$1028, MATCH($B58, '[2]Technical measure database'!$A$5:$A$1028, 0), 3) -> R: EER 13 Room AC | F58: =INDEX('[2]Technical measure database'!$A$5:$CQ$1028, MATCH($B58, '[2]Technical measure database'!$A$5:$A$1028, 0), 6)&": "&CHOOSE(INDEX('[2]Technical measure database'!$A$5:$CQ$1028, MATCH($B58, '[2]Technical measure database'!$A$5:$A$1028, 0), 6)+1, "Roadmap Goal/Target", "Early R&D (not basic science, but still lab bench)", "Late R&D (cost reduction, performance improvement, may be available to early adopters)", "Early Deployment (savings not yet proven in whole building context)", "Late Deployment (savings proven, but need to transform the market)", "Standards (rule in place, underway, planned, or ready to be planned)") -> 3: Early Deployment (savings not yet proven in whole building context) | H58: =INDEX('[2]Market and sales data'!$A$9:$BQ$840, MATCH($B58, '[2]Market and sales data'!$A$9:$A$840, 0), 59)*INDEX('[2]Primary energy and carbon data'!$CS$51:$CS$882,MATCH(B58,'[2]Primary energy and carbon data'!$B$51:$B$882,0)) -> 282.8406383 | I58: =INDEX('[2]Market and sales data'!$A$9:$BQ$840, MATCH($B58, '[2]Market and sales data'!$A$9:$A$840, 0), 18) -> 51.42209 | J58: =INDEX('[2]Technical measure database'!$A$5:$CQ$1028, MATCH($B58, '[2]Technical measure database'!$A$5:$A$1028, 0), 19) -> per unit; 12 kBTU/hr for 1,000 sq.ft. | L58: =INDEX('[2]Adoption curve'!$SM$38:$SM$650,MATCH(B58,'[2]Adoption curve'!$B$38:$B$650,0)) -> 94.38978348 | M58: =INDEX([2]Staging!$N$6:$N$566,MATCH(B58,[2]Staging!$D$6:$D$566,0)) -> 94.38978348 | N58: =INDEX([2]Staging!$J$6:$J$566,MATCH(B58,[2]Staging!$D$6:$D$566, 0)) -> 9.36 | P58: =INDEX([2]Staging!$P$6:$P$566,MATCH(B58,[2]Staging!$D$6:$D$566,0)) -> 0 | Q58: =IF(P58=0,"N/A",MAX(INDEX([2]Staging!$K$6:$K$566,MATCH(B58,[2]Staging!$D$6:$D$566,0)),$N58)) -> N/A
B59: 678 | D59: =INDEX('[2]Technical measure database'!$A$5:$CQ$1028, MATCH($B59, '[2]Technical measure database'!$A$5:$A$1028, 0), 2) -> Research, demonstrate, and deploy advanced liquid desiccant A/C (e.g., DeVAP, DuCool) in commercial buildings in dry climates | E59: =INDEX('[2]Technical measure database'!$A$5:$CQ$1028, MATCH($B59, '[2]Technical measure database'!$A$5:$A$1028, 0), 3) -> C: DEVAP, Dry CZ | F59: =INDEX('[2]Technical measure database'!$A$5:$CQ$1028, MATCH($B59, '[2]Technical measure database'!$A$5:$A$1028, 0), 6)&": "&CHOOSE(INDEX('[2]Technical measure database'!$A$5:$CQ$1028, MATCH($B59, '[2]Technical measure database'!$A$5:$A$1028, 0), 6)+1, "Roadmap Goal/Target", "Early R&D (not basic science, but still lab bench)", "Late R&D (cost reduction, performance improvement, may be available to early adopters)", "Early Deployment (savings not yet proven in whole building context)", "Late Deployment (savings proven, but need to transform the market)", "Standards (rule in place, underway, planned, or ready to be planned)") -> 1: Early R&D (not basic science, but still lab bench) | H59: =INDEX('[2]Market and sales data'!$A$9:$BQ$840, MATCH($B59, '[2]Market and sales data'!$A$9:$A$840, 0), 59)*INDEX('[2]Primary energy and carbon data'!$CS$51:$CS$882,MATCH(B59,'[2]Primary energy and carbon data'!$B$51:$B$882,0)) -> 122.6447753 | I59: =INDEX('[2]Market and sales data'!$A$9:$BQ$840, MATCH($B59, '[2]Market and sales data'!$A$9:$A$840, 0), 18) -> 7832.622371 | J59: =INDEX('[2]Technical measure database'!$A$5:$CQ$1028, MATCH($B59, '[2]Technical measure database'!$A$5:$A$1028, 0), 19) -> per square foot; 10 tons per 6,000 sq.ft. | L59: =INDEX('[2]Adoption curve'!$SM$38:$SM$650,MATCH(B59,'[2]Adoption curve'!$B$38:$B$650,0)) -> 102.5175016 | M59: =INDEX([2]Staging!$N$6:$N$566,MATCH(B59,[2]Staging!$D$6:$D$566,0)) -> 88.38883165 | N59: =INDEX([2]Staging!$J$6:$J$566,MATCH(B59,[2]Staging!$D$6:$D$566, 0)) -> 7.92 | P59: =INDEX([2]Staging!$P$6:$P$566,MATCH(B59,[2]Staging!$D$6:$D$566,0)) -> 0 | Q59: =IF(P59=0,"N/A",MAX(INDEX([2]Staging!$K$6:$K$566,MATCH(B59,[2]Staging!$D$6:$D$566,0)),$N59)) -> N/A
B60: 132 | D60: =INDEX('[2]Technical measure database'!$A$5:$CQ$1028, MATCH($B60, '[2]Technical measure database'!$A$5:$A$1028, 0), 2) -> Demonstrate and deploy low temperature heat pumps, climate zones 1 & 2 (no fuel switching) | E60: =INDEX('[2]Technical measure database'!$A$5:$CQ$1028, MATCH($B60, '[2]Technical measure database'!$A$5:$A$1028, 0), 3) -> R: Cold Climate HP, Coldest CZ | F60: =INDEX('[2]Technical measure database'!$A$5:$CQ$1028, MATCH($B60, '[2]Technical measure database'!$A$5:$A$1028, 0), 6)&": "&CHOOSE(INDEX('[2]Technical measure database'!$A$5:$CQ$1028, MATCH($B60, '[2]Technical measure database'!$A$5:$A$1028, 0), 6)+1, "Roadmap Goal/Target", "Early R&D (not basic science, but still lab bench)", "Late R&D (cost reduction, performance improvement, may be available to early adopters)", "Early Deployment (savings not yet proven in whole building context)", "Late Deployment (savings proven, but need to transform the market)", "Standards (rule in place, underway, planned, or ready to be planned)") -> 2: Late R&D (cost reduction, performance improvement, may be available to early adopters) | H60: =INDEX('[2]Market and sales data'!$A$9:$BQ$840, MATCH($B60, '[2]Market and sales data'!$A$9:$A$840, 0), 59)*INDEX('[2]Primary energy and carbon data'!$CS$51:$CS$882,MATCH(B60,'[2]Primary energy and carbon data'!$B$51:$B$882,0)) -> 275.0892579 | I60: =INDEX('[2]Market and sales data'!$A$9:$BQ$840, MATCH($B60, '[2]Market and sales data'!$A$9:$A$840, 0), 18) -> 5.903165279 | J60: =INDEX('[2]Technical measure database'!$A$5:$CQ$1028, MATCH($B60, '[2]Technical measure database'!$A$5:$A$1028, 0), 19) -> per home; 3 tons | L60: =INDEX('[2]Adoption curve'!$SM$38:$SM$650,MATCH(B60,'[2]Adoption curve'!$B$38:$B$650,0)) -> 72.24761027 | M60: =INDEX([2]Staging!$N$6:$N$566,MATCH(B60,[2]Staging!$D$6:$D$566,0)) -> 61.60072689 | N60: =INDEX([2]Staging!$J$6:$J$566,MATCH(B60,[2]Staging!$D$6:$D$566, 0)) -> 17.63 | P60: =INDEX([2]Staging!$P$6:$P$566,MATCH(B60,[2]Staging!$D$6:$D$566,0)) -> 0 | Q60: =IF(P60=0,"N/A",MAX(INDEX([2]Staging!$K$6:$K$566,MATCH(B60,[2]Staging!$D$6:$D$566,0)),$N60)) -> N/A
B61: 72 | D61: =INDEX('[2]Technical measure database'!$A$5:$CQ$1028, MATCH($B61, '[2]Technical measure database'!$A$5:$A$1028, 0), 2) -> Research, demonstrate, and deploy advanced liquid desiccant A/C (e.g., DeVAP, DuCool) in commercial buildings in humid climates | E61: =INDEX('[2]Technical measure database'!$A$5:$CQ$1028, MATCH($B61, '[2]Technical measure database'!$A$5:$A$1028, 0), 3) -> C: DEVAP, humid climates | F61: =INDEX('[2]Technical measure database'!$A$5:$CQ$1028, MATCH($B61, '[2]Technical measure database'!$A$5:$A$1028, 0), 6)&": "&CHOOSE(INDEX('[2]Technical measure database'!$A$5:$CQ$1028, MATCH($B61, '[2]Technical measure database'!$A$5:$A$1028, 0), 6)+1, "Roadmap Goal/Target", "Early R&D (not basic science, but still lab bench)", "Late R&D (cost reduction, performance improvement, may be available to early adopters)", "Early Deployment (savings not yet proven in whole building context)", "Late Deployment (savings proven, but need to transform the market)", "Standards (rule in place, underway, planned, or ready to be planned)") -> 1: Early R&D (not basic science, but still lab bench) | H61: =INDEX('[2]Market and sales data'!$A$9:$BQ$840, MATCH($B61, '[2]Market and sales data'!$A$9:$A$840, 0), 59)*INDEX('[2]Primary energy and carbon data'!$CS$51:$CS$882,MATCH(B61,'[2]Primary energy and carbon data'!$B$51:$B$882,0)) -> 157.3679776 | I61: =INDEX('[2]Market and sales data'!$A$9:$BQ$840, MATCH($B61, '[2]Market and sales data'!$A$9:$A$840, 0), 18) -> 7203.94657 | J61: =INDEX('[2]Technical measure database'!$A$5:$CQ$1028, MATCH($B61, '[2]Technical measure database'!$A$5:$A$1028, 0), 19) -> per square foot; 1 ton per 280 sq.ft. | L61: =INDEX('[2]Adoption curve'!$SM$38:$SM$650,MATCH(B61,'[2]Adoption curve'!$B$38:$B$650,0)) -> 67.04965907 | M61: =INDEX([2]Staging!$N$6:$N$566,MATCH(B61,[2]Staging!$D$6:$D$566,0)) -> 57.45257497 | N61: =INDEX([2]Staging!$J$6:$J$566,MATCH(B61,[2]Staging!$D$6:$D$566, 0)) -> 9.19 | P61: =INDEX([2]Staging!$P$6:$P$566,MATCH(B61,[2]Staging!$D$6:$D$566,0)) -> 0 | Q61: =IF(P61=0,"N/A",MAX(INDEX([2]Staging!$K$6:$K$566,MATCH(B61,[2]Staging!$D$6:$D$566,0)),$N61)) -> N/A
B62: 71 | D62: =INDEX('[2]Technical measure database'!$A$5:$CQ$1028, MATCH($B62, '[2]Technical measure database'!$A$5:$A$1028, 0), 2) -> Research, demonstrate, and deploy advanced liquid desiccant A/C (e.g., DeVAP, DuCool) in homes in humid climates | E62: =INDEX('[2]Technical measure database'!$A$5:$CQ$1028, MATCH($B62, '[2]Technical measure database'!$A$5:$A$1028, 0), 3) -> R: DEVAP, humid climates | F62: =INDEX('[2]Technical measure database'!$A$5:$CQ$1028, MATCH($B62, '[2]Technical measure database'!$A$5:$A$1028, 0), 6)&": "&CHOOSE(INDEX('[2]Technical measure database'!$A$5:$CQ$1028, MATCH($B62, '[2]Technical measure database'!$A$5:$A$1028, 0), 6)+1, "Roadmap Goal/Target", "Early R&D (not basic science, but still lab bench)", "Late R&D (cost reduction, performance improvement, may be available to early adopters)", "Early Deployment (savings not yet proven in whole building context)", "Late Deployment (savings proven, but need to transform the market)", "Standards (rule in place, underway, planned, or ready to be planned)") -> 1: Early R&D (not basic science, but still lab bench) | H62: =INDEX('[2]Market and sales data'!$A$9:$BQ$840, MATCH($B62, '[2]Market and sales data'!$A$9:$A$840, 0), 59)*INDEX('[2]Primary energy and carbon data'!$CS$51:$CS$882,MATCH(B62,'[2]Primary energy and carbon data'!$B$51:$B$882,0)) -> 119.9054143 | I62: =INDEX('[2]Market and sales data'!$A$9:$BQ$840, MATCH($B62, '[2]Market and sales data'!$A$9:$A$840, 0), 18) -> 3.967925387 | J62: =INDEX('[2]Technical measure database'!$A$5:$CQ$1028, MATCH($B62, '[2]Technical measure database'!$A$5:$A$1028, 0), 19) -> per home, 3 ton unit | L62: =INDEX('[2]Adoption curve'!$SM$38:$SM$650,MATCH(B62,'[2]Adoption curve'!$B$38:$B$650,0)) -> 26.90532552 | M62: =INDEX([2]Staging!$N$6:$N$566,MATCH(B62,[2]Staging!$D$6:$D$566,0)) -> 19.01934085 | N62: =INDEX([2]Staging!$J$6:$J$566,MATCH(B62,[2]Staging!$D$6:$D$566, 0)) -> 70.01 | P62: =INDEX([2]Staging!$P$6:$P$566,MATCH(B62,[2]Staging!$D$6:$D$566,0)) -> 0 | Q62: =IF(P62=0,"N/A",MAX(INDEX([2]Staging!$K$6:$K$566,MATCH(B62,[2]Staging!$D$6:$D$566,0)),$N62)) -> N/A
D64: HVAC Results Graphs

Sheet Water Heating Inputs
C2: This tab contains data for: | D2: =RIGHT(CELL("filename",A1),LEN(CELL("filename",A1))-FIND("]",CELL("filename",A1))) -> Water Heating Inputs
A4: Each entry in the below table represents the inputs and assumptions for one particular energy efficiency measure included in the BTO Prioritization Tool analysis.
A6: Abbreviations:
A7: C: Commercial; R: Residential; O: Outdoor; I: Industrial; (N) New homes/buildings only; (E) Existing homes/buildings only; CZ: Climate Zone; WH: Water Heater; HP: Heat Pump
A9: Indexing # | C9: These columns describe the measure and its characteristics | I9: These columns describe the market to which the measure is applied | L9: These columns describe the efficiency level of the measure | Q9: These columns contain the cost data for the measure and what it replaces in the market | W9: These columns list sources and notes applicable to the measure
A10: Measure No. | C10: Description | D10: Brief description | E10: Component | F10: Deployment Level (0-5) | G10: Lifetime (years) | I10: Sector Targeted | J10: Market Description | L10: Units of Operation | M10: Efficient Operation | N10: Baseline Operation | O10: Energy Savings (%) | Q10: Market Cost (as defined in the source) | R10: Market Cost (per standard unit) | S10: Market Cost (per efficient unit, at scale) | T10: Incremental Measure Cost | U10: Stock Unit Definition | W10: Source(s) Used | X10: Relevant Notes
A11: 67 | C11: =INDEX('[2]Technical measure database'!$A$5:$CQ$1028, MATCH($A11, '[2]Technical measure database'!$A$5:$A$1028, 0), 2) -> Demonstrate and deploy waste heat recovery systems (desuperheaters) for single family cooling and water heating applications (note: May not work on SEER 13+ because coolant too cold) | D11: =INDEX('[2]Technical measure database'!$A$5:$CQ$1028, MATCH($A11, '[2]Technical measure database'!$A$5:$A$1028, 0), 3) -> R: Waste Heat Recovery from AC | E11: =INDEX('[2]Technical measure database'!$A$5:$CQ$1028, MATCH($A11, '[2]Technical measure database'!$A$5:$A$1028, 0), 4) -> System | F11: =INDEX('[2]Technical measure database'!$A$5:$CQ$1028, MATCH($A11, '[2]Technical measure database'!$A$5:$A$1028, 0), 6)&": "&CHOOSE(INDEX('[2]Technical measure database'!$A$5:$CQ$1028, MATCH($A11, '[2]Technical measure database'!$A$5:$A$1028, 0), 6)+1, "Roadmap Goal/Target", "Early R&D (not basic science, but still lab bench)", "Late R&D (cost reduction, performance improvement, may be available to early adopters)", "Early Deployment (savings not yet proven in whole building context)", "Late Deployment (savings proven, but need to transform the market)", "Standards (rule in place, underway, planned, or ready to be planned)") -> 3: Early Deployment (savings not yet proven in whole building context) | G11: =INDEX('[2]Technical measure database'!$A$5:$CQ$1028, MATCH($A11, '[2]Technical measure database'!$A$5:$A$1028, 0), 67) -> 20 | I11: =INDEX('[2]Technical measure database'!$A$5:$CQ$1028,MATCH($A11,'[2]Technical measure database'!$A$5:$A$1028,0),7) -> Residential | J11: =INDEX('[2]Technical measure database'!$A$5:$CQ$1028, MATCH($A11, '[2]Technical measure database'!$A$5:$A$1028, 0), 71) -> Total cooling and water heating energy use in all single family homes | L11: =INDEX('[2]Technical measure database'!$A$5:$CQ$1028, MATCH($A11, '[2]Technical measure database'!$A$5:$A$1028, 0), 11) -> Energy savings (%) | M11: =INDEX('[2]Technical measure database'!$A$5:$CQ$1028, MATCH($A11, '[2]Technical measure database'!$A$5:$A$1028, 0), 12) -> 0.1 | N11: =INDEX('[2]Technical measure database'!$A$5:$CQ$1028, MATCH($A11, '[2]Technical measure database'!$A$5:$A$1028, 0), 13) -> 0 | O11: =M11-N11 -> 0.1 | Q11: =INDEX('[2]Technical measure database'!$A$5:$CQ$1028, MATCH($A11, '[2]Technical measure database'!$A$5:$A$1028, 0), 15) -> 600 | R11: N/A | S11: N/A | T11: =INDEX('[2]Technical measure database'!$A$5:$CQ$1028, MATCH($A11, '[2]Technical measure database'!$A$5:$A$1028, 0), 18) -> 600 | U11: =INDEX('[2]Technical measure database'!$A$5:$CQ$1028, MATCH($A11, '[2]Technical measure database'!$A$5:$A$1028, 0), 19) -> per home; family of 4: 3 ton A/C; 70 gal/day hot H2O | W11: =INDEX('[2]Technical measure database'!$A$5:$CQ$1028, MATCH($A11, '[2]Technical measure database'!$A$5:$A$1028, 0), 24) -> Savings from NCI Commercial Appliances 2009 report. P. 207, Table 6-19. Cost: See 1. http://www.cdhenergy.com/presentations/ASHRAE%20Chicago%201999%20Desuperheater%20Impact.pdf; 2. http://stampededrive.net/PDF/BuilderGuide3E.pdf; 3. http://www.bpa.gov/energy/n/reports/evaluation/commercial/pdf/BPA-Evaluation_Reverse-Cycle-Chillers_09-30-09.pdf | X11: =INDEX('[2]Technical measure database'!$A$5:$CQ$1028, MATCH($A11, '[2]Technical measure database'!$A$5:$A$1028, 0), 25) -> BTP Tool: 50% H2O savings and 5% cooling savings through recovery system derated by 40% to represent load mismatch: weighted average on NEMS 2 consumption page
A12: 133 | C12: =INDEX('[2]Technical measure database'!$A$5:$CQ$1028, MATCH($A12, '[2]Technical measure database'!$A$5:$A$1028, 0), 2) -> Demonstrate and deploy reverse cycle chiller (heat pump water heater) to heat water in multifamily homes. The RCC is a water heater which uses a refrigeration cycle with an air‐side evaporator and a water‐side condenser. | D12: =INDEX('[2]Technical measure database'!$A$5:$CQ$1028, MATCH($A12, '[2]Technical measure database'!$A$5:$A$1028, 0), 3) -> R: Reverse Cycle Chiller (multi family) | E12: =INDEX('[2]Technical measure database'!$A$5:$CQ$1028, MATCH($A12, '[2]Technical measure database'!$A$5:$A$1028, 0), 4) -> System | F12: =INDEX('[2]Technical measure database'!$A$5:$CQ$1028, MATCH($A12, '[2]Technical measure database'!$A$5:$A$1028, 0), 6)&": "&CHOOSE(INDEX('[2]Technical measure database'!$A$5:$CQ$1028, MATCH($A12, '[2]Technical measure database'!$A$5:$A$1028, 0), 6)+1, "Roadmap Goal/Target", "Early R&D (not basic science, but still lab bench)", "Late R&D (cost reduction, performance improvement, may be available to early adopters)", "Early Deployment (savings not yet proven in whole building context)", "Late Deployment (savings proven, but need to transform the market)", "Standards (rule in place, underway, planned, or ready to be planned)") -> 2: Late R&D (cost reduction, performance improvement, may be available to early adopters) | G12: =INDEX('[2]Technical measure database'!$A$5:$CQ$1028, MATCH($A12, '[2]Technical measure database'!$A$5:$A$1028, 0), 67) -> 15 | I12: =INDEX('[2]Technical measure database'!$A$5:$CQ$1028,MATCH($A12,'[2]Technical measure database'!$A$5:$A$1028,0),7) -> Residential | J12: =INDEX('[2]Technical measure database'!$A$5:$CQ$1028, MATCH($A12, '[2]Technical measure database'!$A$5:$A$1028, 0), 71) -> Total residential water heating energy consumption in all multi-family homes | L12: =INDEX('[2]Technical measure database'!$A$5:$CQ$1028, MATCH($A12, '[2]Technical measure database'!$A$5:$A$1028, 0), 11) -> kWh/unit | M12: =INDEX('[2]Technical measure database'!$A$5:$CQ$1028, MATCH($A12, '[2]Technical measure database'!$A$5:$A$1028, 0), 12) -> 1000 | N12: =INDEX('[2]Technical measure database'!$A$5:$CQ$1028, MATCH($A12, '[2]Technical measure database'!$A$5:$A$1028, 0), 13) -> 2700 | O12: =1-M12/N12 -> 0.6296296296 | Q12: =INDEX('[2]Technical measure database'!$A$5:$CQ$1028, MATCH($A12, '[2]Technical measure database'!$A$5:$A$1028, 0), 15) -> $677/unit, based on a prototypical mid-rise multifamily building with 163 units and a total incremental project cost of $110,275 | R12: =INDEX('[2]Technical measure database'!$A$5:$CQ$1028, MATCH($A12, '[2]Technical measure database'!$A$5:$A$1028, 0), 16) -> 0 | S12: =INDEX('[2]Technical measure database'!$A$5:$CQ$1028, MATCH($A12, '[2]Technical measure database'!$A$5:$A$1028, 0), 17) -> 677 | T12: =INDEX('[2]Technical measure database'!$A$5:$CQ$1028, MATCH($A12, '[2]Technical measure database'!$A$5:$A$1028, 0), 18) -> 677 | U12: =INDEX('[2]Technical measure database'!$A$5:$CQ$1028, MATCH($A12, '[2]Technical measure database'!$A$5:$A$1028, 0), 19) -> per unit; 20 tons per building | W12: =INDEX('[2]Technical measure database'!$A$5:$CQ$1028, MATCH($A12, '[2]Technical measure database'!$A$5:$A$1028, 0), 24) -> Heller, J. & Cejudo, C. Reverse Cycle Chillers for Multifamily Buildings in the Pacific Northwest : Phase I Final Report. Bonneville Power Administration (2009) | X12: =INDEX('[2]Technical measure database'!$A$5:$CQ$1028, MATCH($A12, '[2]Technical measure database'!$A$5:$A$1028, 0), 25) -> BTP Tool: Analyzed for multi-family Appendix B: "The savings from this alternative design are about 1,700 kWh/yr per unit with an expected measure life of 15 years. This represents a simple payback of about 4.4 years at a retail electricity cost of $0.09/kWh." Reducing kWh/unit from 2,700 to 1,000 with indicated payback.
